Workbook

Sheet Guía Rápida
B2: Guía Rápida
B3: A) Al abrir el simulador da click en "Habilitar Contenido" en caso de aparecer esta opción.
B4: B) Seleccionar el Perfil del Cliente "Premier, No Premier"
B5: C) Seleccionar el tipo de simulación "Por Valor de la Vivienda, Por Monto del Crédito Y Valor de la Vivienda, Por Ingresos del Cliente"
B6: D) Seleccionar Producto "Adquisición, Exclusiva, Liquidez, Pago de Hipoteca"
B7: E) Seleccionar Tipo de Financiamiento "Tradicional, Cofinavit, Apoyo Infonavit, Respalda2, Alia2"
B8: F) Introducir el valor de la vivienda
B9: G) Seleccionar Plazo "5,10,15,20 años"
B10: H) Si es el caso introduce el importe del crédito o el ingreso mensual del cliente
B11: I) Si es el caso, introduce el crédito Infonavit o FOVISSSTE y el saldo de la subcuenta.
B12: J) Seleccionar si es cliente Nómina HSBC o No
B13: K) En caso de haber elegido un "Adquisición, No Premier" aparecerá un combo para elegir una tasa, seleccionar alguna. Con la tasa más baja solo accedemos al 65% de LTV, con la tasa más alta solo accedemos al 75% de LTV
B14: L) En caso de elegir la tasa más alta (Nivel de riesgo alto) y solicitar un aforo superior al 75%, seleccionar "SI" en el combo "LTV 90%", con esto se cobrará la sobretasa
B15: M) En caso de tener duda o creer que algo puede estar afectando la simulación selecciona "Nueva Cotización" y vuelve a empezar

Sheet Resumen
L3: Cliente HSBC | M3: Tipo | N3: Producto | O3: Tipo Financiamiento | P3: Plazo | Q3: Aguascalientes | R3: =IF($N$20="VERDADERO",$N$28,0.3174) -> 0.3174 | U3: Pago Fijo
D4: CREDITO HIPOTECARIO | L4: SI | M4: Por monto de crédito y valor de la vivienda | N4: Adquisicion | O4: Tradicional | P4: 5 | Q4: Baja California | R4: =IF($N$20="VERDADERO",$N$28,0.3174) -> 0.3174 | BG4: AdquisicionPremier50.9 | BH4: 20.86 | BJ4: AdquisicionPremier50.9 | BK4: 20.26
L5: NO | M5: Por ingresos del cliente | N5: Pago de Hipoteca | O5: Apoyo Infonavit | P5: 10 | Q5: Baja California Sur | R5: 0.3174 | T5: Segment | U5: Premier | Y5: No premier | AK5: Exclusiva | AO5: Pago Hipoteca | AS5: Liquidez Premier | AV5: Liquidez No Premier | BB5: Nómina Especial | BG5: AdquisicionPremier100.9 | BH5: 12.91 | BJ5: AdquisicionPremier100.9 | BK5: 12.16
C6: =TODAY() -> 2026-02-24 | L6: AdquisicionNo PremierTradicional | M6: Por Valor de la Vivienda | N6: Liquidez | O6: Cofinavit | P6: 15 | Q6: Campeche | R6: 0.3174 | U6: 5 años | V6: 10años | W6: 15años | X6: 20años | Y6: 5 años | Z6: 5 años | AA6: 5 años | AB6: 10años | AC6: 10años | AD6: 10años | AE6: 15años | AF6: 15años | AG6: 20años | AH6: 20años | AI6: 20años | AJ6: 20años | AK6: 5 años | AL6: 10años | AM6: 15años | AN6: 20años | AO6: 5 años | AP6: 10años | AQ6: 15años | AR6: 20años | AS6: 5 años | AT6: 10años | AU6: 15años | AV6: 5 años | AW6: 5 años | AX6: 10años | AY6: 10años | AZ6: 15años | BA6: 15años | BB6: 5 años | BC6: 10años | BD6: 15años | BE6: 20años | BG6: AdquisicionPremier150.9 | BH6: 10.56 | BJ6: AdquisicionPremier150.9 | BK6: 9.7
L7: AdquisicionPremierTradicional | M7: Por Campaña | N7: Exclusiva | O7: CI+CB | P7: =IF(D21=N6,"",20) -> 20 | Q7: Coahuila | R7: 0.3174 | T7: Rate | U7: 0.092 | V7: 0.0945 | W7: 0.097 | X7: 0.097 | Y7: 0.095 | Z7: 0.1 | AA7: 0.104 | AB7: 0.0975 | AC7: 0.1025 | AD7: 0.1065 | AE7: 0.1 | AF7: 0.105 | AG7: 0.109 | AH7: 0.1 | AI7: 0.105 | AJ7: 0.109 | AK7: 0.097 | AL7: 0.0995 | AM7: 0.102 | AN7: 0.102 | AO7: 0.092 | AP7: 0.0945 | AQ7: 0.097 | AR7: 0.097 | AS7: 0.115 | AT7: 0.1175 | AU7: 0.12 | AV7: 0.12 | AW7: 0.13 | AX7: 0.1225 | AY7: 0.1325 | AZ7: 0.125 | BA7: 0.135 | BB7: 0.094 | BC7: 0.0965 | BD7: 0.099 | BE7: 0.099 | BG7: AdquisicionPremier200.9 | BH7: 9.45 | BJ7: AdquisicionPremier200.9 | BK7: 8.5
L8: Perfil | N8: Pago Hipoteca+Liquidez | O8: Alia2 | P8: =IF(AND(D21="Exclusiva",D22="Tradicional"),25,IF(OR(D22=O5,D22=O6,$D$21&$D$22&N20=$N$24),25,"")) ->  | Q8: Colima | R8: 0.3174 | T8: Opening Fee | U8: 0 | V8: 0 | W8: 0 | X8: 0 | Y8: 0.01 | Z8: 0.01 | AA8: 0.01 | AB8: 0.01 | AC8: 0.01 | AD8: 0.01 | AE8: 0.01 | AF8: 0.01 | AG8: 0.01 | AH8: 0.01 | AI8: 0.01 | AJ8: 0.01 | AK8: 0.01 | AL8: 0.01 | AM8: 0.01 | AN8: 0.01 | AO8: 0 | AP8: 0 | AQ8: 0 | AR8: 0 | AS8: 0 | AT8: 0 | AU8: 0 | AV8: 0.015 | AW8: 0.015 | AX8: 0.015 | AY8: 0.015 | AZ8: 0.015 | BA8: 0.015 | BB8: 0 | BC8: 0 | BD8: 0 | BE8: 0 | BG8: AdquisicionNo Premier50.5 | BH8: 21 | BJ8: AdquisicionNo Premier50.5 | BK8: 20.41
C9: Nombre del ejecutivo | F9: Teléfono | N9: Nomina Especial | O9: Casa con casa | Q9: Chiapas | R9: 0.3174
C10: Nombre del cliente | F10: Teléfono | Q10: Chihuahua | R10: 0.3174
C11: Conjunto | M11: AdquisicionNo PremierCI+CB | Q11: Ciudad de México | R11: 0.3174
M12: AdquisicionPremierCI+CB | Q12: Durango | R12: 0.3174
Q13: Estado de México | R13: 0.3174
C14: Instrucciones: Llenar solo los campos en gris claro. | M14: AdquisicionNo PremierCasa con casa | N14: =L189 -> Pago Hipoteca+LiquidezAlto Valor | Q14: Guanajuato | R14: 0.3174
C15: Datos del Cliente | F15: Resultados | M15: AdquisicionPremierCasa con casa | Q15: Guerrero | R15: 0.3174
C16: Perfil Cliente | D16: No Premier | F16: Desembolso inicial | M16: AdquisicionNo PremierApoyo Infonavit | Q16: Hidalgo | R16: 0.3174
C17: ¿Es cliente Nómina HSBC? | D17: NO | F17: =IF(G17>=0,"Enganche","") -> Enganche | G17: =IFERROR(IF(J4<>"","-",IF(D21=V78,0,IF(D21=V79,0,IF(D21=V80,0,D26-IF(D22=O8,D32+D33+H25,IF(D22=O7,D33+H25,IF(D22=O6,D32+D33+H25,H25))))))),0) -> 225000 | M17: AdquisicionNo PremierCofinavit | N17: =10.45%-IF(D28=5,0.5%,IF(D28=10,0.25%,0)) -> 0.1045 | Q17: Jalisco | R17: 0.3174
C18: Estado Vivienda | D18: Ciudad de México | F18: Gasto de Preoriginación - Avalúo Hipotecario | G18: =IF(J4<>"","-",IF(OR(D21&D22&N20=N22,D21&D22&N20=N23,D21&D22&N20=N24),0,VLOOKUP(D26,Q71:R79,2))) -> 12470 | Q18: Michoacán | R18: 0.3174
C19: =IF(D16="Premier","Tipo de Cliente","") ->  | F19: C. Contratación Crédito | G19: =IF(OR(D21&D22&N20=N22,D21&D22&N20=N23,D21&D22&N20=N24),0,IF(F19=M19,IF(D21="Pago Hipoteca+Liquidez",1%,IF(L45="Adquisicion","1%",IF(L45="Exclusiva","1%",IF(L45="Liquidez","1%",IF(D21=N9,"1%","0%"))))/IF(AND(D17="SI",D21<>N6),2,IF(L43="AdquisicionCofinavit",2,IF(L43="ExclusivaCofinavit",2,IF(L43="AdquisicionApoyo Infonavit",2,IF(L43="ExclusivaApoyo Infonavit",2,1))))))-IF(D21&D19=L189,1%,0),IF(F19=M20,IF(AND(D16="Premier",OR(D22=O5,D22=O6)),1.5%,2.5%)))) -> 0.01 | H19: =IF(F19="C. Penalización Pago Anticipado","",IFERROR(IF($D$25="Por ingresos del cliente",$N$58,IF($D$27=0,$M$83,$M$83))*G19,0)) -> 31500 | M19: C. Contratación Crédito | N19: Hipoteca Verde? | Q19: Morelos | R19: 0.3174
C20: Datos del crédito | F20: Gastos de Investigación | G20: =IF(D21=N8,"","") ->  | M20: C. Penalización Pago Anticipado | N20: FALSE | Q20: Nayarit | R20: 0.3174
C21: Escoja la opción de Producto | D21: Adquisicion | F21: Gastos Notariales | H21: =IF(J4<>"","-",IF(OR(D21=V77,D21=V82),D26*G21,IF(OR(D21=V79,D21=V78,D21=V80),H25*G21,IF(OR(D21=V81),G21*D26,"-")))) -> 0 | N21: =IF(D28=5,9.25%,IF(D28=10,9.5%,9.75%)) -> 0.0975 | Q21: Nuevo León | R21: 0.3174
C22: =IF(OR(D21=N4,D21=N7,D21=N9),L161,"") -> Tipo de Programa | D22: CI+CB | F22: Desembolso Total | G22: =IF(J4<>"","-",IF(G17<=0,0,G17)+IF(ISNUMBER(G18),G18,0)+IF(ISNUMBER(G20),G20,0)+IF(ISNUMBER(H21),H21,0))+IF(ISNUMBER(H19),H19,0) -> 268970 | N22: AdquisicionApoyo InfonavitVERDADERO | Q22: Oaxaca | R22: 0.3174
C23: =IF(OR(D21&D16&D22=L6,D21&D16&D22=M11),"Elige una tasa de interés",IF(AND(D21&D16&D22=L7,G25>0.9),"Elige una tasa de interés","")) -> Elige una tasa de interés | D23: 0.1175 | N23: AdquisicionCofinavitVERDADERO | Q23: Puebla | R23: 0.3174
C24: =IF(D21="Pago de Hipoteca","¿La hipoteca proviene de un Cofinavit, Apoyo, Aliados o Respaldados?",IF(D22="CI+CB","¿Es Cliente Asalariado?","")) -> ¿Es Cliente Asalariado? | D24: NO | F24: Condiciones del crédito | N24: AdquisicionTradicionalVERDADERO | Q24: Querétaro | R24: 0.3174
C25: Tipo de calculo | D25: Por Valor de la Vivienda | F25: Monto de crédito Total | G25: =IFERROR(H25/D26,0) -> 0.85 | H25: =IFERROR(IF(AND(D21="Liquidez",IF(D3<>"","-",IF(D21=N8,MIN(M58,D31+D26*0.2),IF(OR(D21=N4,D21=N7,D21=N9),M64,M58)))>70000000),70000000,IF(D3<>"","-",IF(D21=N8,MIN(M58,D31+D26*0.7),IF(OR(D21=N4,D21=N7,D21=N9),M64,M58))))-IF(D25=M6,D34,0),0) -> 2975000 | Q25: Quintana Roo | R25: 0.3174
C26: =IF(D22="Casa con casa", "Valor de Vivienda Garantía", "Valor de la Vivienda a Adquirir") -> Valor de la Vivienda a Adquirir | D26: 3500000 | F26: =IF(D22="CI+CB", "Tasa HSBC", "Tasa Final") -> Tasa HSBC | G26: =IF(OR(D21&D22&N20=N22,D21&D22&N20=N23,D21&D22&N20=N24),N21,IF(OR(AND(D16="No Premier",D21="Adquisicion",D24="NO"),AND(D16="Premier",D21="Adquisicion",D22="Tradicional",G25>0.9)),D23,IF(AND(D16="No Premier",D21="Adquisicion",OR(D22="Apoyo Infonavit",D22="Cofinavit")),N17,IFERROR(IF(D21=N8,11.25%,VLOOKUP(D16&D21&D28&IF(D21&D16=N45,O45,IF(D21&D16=N46,O46,IF(D21&D16=N48,O48,O50))),R102:S190,2,0)),IF(AND(D21&D16&D22=L7,G25>0.9),D23,0))+IFERROR(IF(D24="X",L179,0),0)))) -> 0.1175 | Q26: San Luis Potosí | R26: 0.3174
C27: =IF(OR(D25=M5,D25=M6, D25=M7),"",L163) ->  | F27: Pago mensual total HSBC | G27: =IF(Amortización!E16="SI",Amortización!K24,Amortización!K21) -> 24552.12958 | N27: 0.37 | Q27: Sinaloa | R27: 0.3174
C28: Plazo solicitado (años) | D28: 20 | F28: =IF(D22=O7,"CAT HSBC**","CAT**") -> CAT HSBC** | G28: =Amortización!K17 -> 0.1398392837 | N28: 0.292 | Q28: Sonora | R28: 0.3174
C29: =IF(OR($D$25=$M$5,AND(OR(D21=N4,D21=N7,D21=N9),D22=O5)),"Ingreso Mensual Neto*",IF(D25=M7,"Pago mensual máximo","")) ->  | F29: =IF(OR(D25="Por ingresos del cliente",D25="Por Campaña"),"Monto Máximo Por Ingresos","Ingreso Neto Requerido") -> Ingreso Neto Requerido | G29: =IFERROR(IF(D26="","-",IF(OR(D25="Por ingresos del cliente",D25="Por Campaña"),ROUND(M69/M76*1000,-3),IF(D21=V79,MIN(5000000,IF(OR(D25=M4,D25=M6),VLOOKUP(D28,V84:W87,2,0),ROUND(M69/M76*1000,-3))),IF(OR(D25=M4,D25=M6),VLOOKUP(D28,V84:W87,2,0))))),0) -> 52579.17603 | Q29: Tabasco | R29: 0.3174
C30: =IF($D$25=$M$5,"Pago Mensual en Buro(Obligaciones)","") ->  | Q30: Tamaulipas | R30: 0.3174
C31: =IF(OR(D25&D21=M49,D25&D21=M50,D25&D21=M51),"Monto Hipoteca Actual","") ->  | F31: =IF(D21=N8,"Pago Mensual",IF(D22="CI+CB","Distribución del Crédito","")) -> Distribución del Crédito | I31: Mensualidad | L31: =AF78 -> 0 | Q31: Tlaxcala | R31: 0.3174
C32: =IF(AND(OR(D21=N4,D21=N7,D21=N9),D22="Cofinavit"),"Crédito Otorgado menos Ecotecnologías",IF(AND(OR(D21=N4,D21=N7),D22="Alia2"),"Crédito FOVISSSTE","")) ->  | F32: =IF(D21=N8,"Pago Hipoteca",IF(D22=O7,"Crédito HSBC - Tasa "&(G26*100)&"%","")) -> Crédito HSBC - Tasa 11.75% | G32: =IF(D22=O7,H25-G33,PMT($G$26/12,$D$28*12,-$D$31)+($M$73*1000)+($D$31*$L$86/1000)) -> 2082500 | I32: =IF(D22=O7,Amortización!K21,"") -> 24552.12958 | Q32: Veracruz | R32: 0.3174
C33: =IF(AND(OR(D21=N4,D21=N7, D21=N9),D22="Cofinavit"),"Saldo Subcuenta de Vivienda",IF(AND(OR(D21=N4,D21=N7),D22="CI+CB"),"Saldo Subcuenta de Vivienda",IF(AND(OR(D21=N4,D21=N7),D22=O8),"Saldo Subcuenta de Vivienda",""))) -> Saldo Subcuenta de Vivienda | D33: 300000 | F33: =IF(D21=N8,"Liquidez (Sin IVA)",IF(D22=O7,"Crédito Infonavit - Tasa 10.45%","")) -> Crédito Infonavit - Tasa 10.45% | G33: =IF(D22=O7,ROUNDDOWN(MIN(H25*0.3,325*3153.7),2),PMT($G$26/12,$D$28*12,-(H25-D31))+((H25-D31)*$L$86/1000)) -> 892500 | I33: =IF(D22=O7,Amortización!AY12,"") -> 9624.33484 | Q33: Yucatán | R33: 0.3174
C34: =IF(OR(D25&D21=M47,D25&D21=M48),"Enganche Adicional","") -> Enganche Adicional | D34: 0 | Q34: Zacatecas | R34: 0.3174
C35: =IF(D23=L171,"Comportamiento Crediticio","") ->  | D35: 3
C36: Mensajes clave
C37: =IF(ISERROR(VLOOKUP(TRUE,$N$177:$O$200,2,0)),"",VLOOKUP(TRUE,$N$177:$O$200,2,0)) -> 
C38: =IF(C23="Elige una tasa de interés", "EN BASE AL ESTUDIO DE CREDITO DEL CLIENTE Y SU AFORO, SE ASIGNARA UNA TASA DE INTERES","") -> EN BASE AL ESTUDIO DE CREDITO DEL CLIENTE Y SU AFORO, SE ASIGNARA UNA TASA DE INTERES
C39: =IF(C24="Se requiere LTV al 90%?", "EL CLIENTE PUEDE ACCEDER AL AFORO HASTA EL 90% SI ASI LO REQUIERE","") -> 
C40: * Condiciones aplicables en caso de ser asalariado. En caso de tener otra actividad, revisar en comparativo los plazos. | L40: Premier | M40: =K41&K43 -> 0.1175Adquisicion | T40: Research Fee | U40: 0 | V40: 0 | W40: 0 | X40: 0 | Y40: 0 | Z40: 0 | AA40: 0 | AB40: 0 | AC40: 0 | AD40: 0 | AE40: 0 | AF40: 0 | AG40: 0 | AH40: 0 | AI40: 0 | AJ40: 0 | AK40: 0 | AL40: 0 | AM40: 0 | AN40: 0 | AO40: 0 | AP40: 0 | AQ40: 0 | AR40: 0 | AS40: 0 | AT40: 0 | AU40: 0 | AV40: 0 | AW40: 0 | AX40: 0 | AY40: 0 | AZ40: 0 | BA40: 0 | BB40: 0 | BC40: 0 | BD40: 0 | BE40: 0 | BG40: AdquisicionNo Premier50.75 | BH40: 21.25 | BJ40: AdquisicionNo Premier50.75 | BK40: 20.65
C41: ** CAT HSBC promedio sin IVA. Informativo. Tasa fija anual. Cobertura Nacional. Crédito en Moneda Nacional. Información sujeta a cambios sin previo aviso. | K41: =L170 -> 0.1175 | L41: No Premier | M41: 0 | T41: Appraisal | U41: Sí | V41: Sí | W41: Sí | X41: Sí | Y41: Sí | Z41: Sí | AA41: Sí | AB41: Sí | AC41: Sí | AD41: Sí | AE41: Sí | AF41: Sí | AG41: Sí | AH41: Sí | AI41: Sí | AJ41: Sí | AK41: Sí | AL41: Sí | AM41: Sí | AN41: Sí | AO41: Sí | AP41: Sí | AQ41: Sí | AR41: Sí | AS41: Sí | AT41: Sí | AU41: Sí | AV41: Sí | AW41: Sí | AX41: Sí | AY41: Sí | AZ41: Sí | BA41: Sí | BB41: Sí | BC41: Sí | BD41: Sí | BE41: Sí | BG41: AdquisicionNo Premier50.9 | BH41: 21.44 | BJ41: AdquisicionNo Premier50.9 | BK41: 20.84
C42: Aplican condiciones. Sujeto a aprobación de crédito. Consulta términos, condiciones de contratación y comisiones en www.hsbc.com.mx | K42: =L171 -> 0.1225 | L42: =K42&K43 -> 0.1225Adquisicion | M42: 0.01 | N42: AdquisicionNo Premier | O42: =IF(D23=L168,90%,IF(D23=L169,94%,IF(D23=L170,85%,IF(D23&D35=L183,75%,90%)))) -> 0.85 | T42: LTV | U42: 0.9 | V42: 0.9 | W42: 0.9 | X42: 0.9 | Y42: 0.5 | Z42: 0.75 | AA42: 0.9 | AB42: 0.5 | AC42: 0.75 | AD42: 0.9 | AE42: 0.5 | AF42: 0.75 | AG42: 0.9 | AH42: 0.5 | AI42: 0.75 | AJ42: 0.9 | AK42: 0.9 | AL42: 0.9 | AM42: 0.9 | AN42: 0.9 | AO42: 0.85 | AP42: 0.85 | AQ42: 0.85 | AR42: 0.85 | AS42: 0.7 | AT42: 0.7 | AU42: 0.7 | AV42: 0.5 | AW42: 0.7 | AX42: 0.5 | AY42: 0.7 | AZ42: 0.5 | BA42: 0.7 | BB42: 0.9 | BC42: 0.9 | BD42: 0.9 | BE42: 0.9 | BG42: AdquisicionNo Premier100.5 | BH42: 13.08 | BJ42: AdquisicionNo Premier100.5 | BK42: 12.32
C43: Información mostrada para fines informativos y de comparación exclusivamente. No constituye obligación alguna para HSBC o las Aseguradoras indicadas. | K43: Adquisicion | L43: =D21&D22 -> AdquisicionCI+CB | N43: Pago de HipotecaNo Premier | O43: =IF(H25/D26<=85%,85%,IF(AND(H25/D26<=95%,D24="SI"),85%,"")) -> 0.85 | T43: Monthly Fee (sin Iva) | U43: 0 | V43: 0 | W43: 0 | X43: 0 | Y43: 348 | Z43: 348 | AA43: 348 | AB43: 348 | AC43: 348 | AD43: 348 | AE43: 348 | AF43: 348 | AG43: 348 | AH43: 348 | AI43: 348 | AJ43: 348 | AK43: 0 | AL43: 0 | AM43: 0 | AN43: 0 | AO43: 348 | AP43: 348 | AQ43: 348 | AR43: 348 | AS43: 348 | AT43: 348 | AU43: 348 | AV43: 348 | AW43: 348 | AX43: 348 | AY43: 348 | AZ43: 348 | BA43: 348 | BB43: 0 | BC43: 0 | BD43: 0 | BE43: 0 | BG43: AdquisicionNo Premier100.75 | BH43: 13.35 | BJ43: AdquisicionNo Premier100.75 | BK43: 12.59
C44: El Seguro de Vida es registrado y operado por HSBC Seguros S.A. de CV., Grupo Financiero HSBC. El Seguro de Daños es registrado y operado por AXA Seguros S.A. de C.V. | K44: =K43&L40 -> AdquisicionPremier | L44: Liga | N44: LiquidezNo Premier | O44: =IF(H25/D26<=50%,50%,IF(H25/D26<=80%,80%,"")) ->  | T44: Pago Por mil | U44: 20.86 | V44: 12.91 | W44: 10.56 | X44: 9.45 | Y44: 21 | Z44: 21.25 | AA44: 21.44 | AB44: 13.08 | AC44: 13.35 | AD44: 13.58 | AE44: 10.75 | AF44: 11.05 | AG44: 11.3 | AH44: 9.65 | AI44: 9.98 | AJ44: 10.25 | AK44: 21.1 | AL44: 13.19 | AM44: 10.87 | AN44: 9.78 | AO44: 20.86 | AP44: 12.91 | AQ44: 10.56 | AR44: 9.45 | AS44: 21.99 | AT44: 14.2 | AU44: 12 | AV44: 22.24 | AW44: 22.75 | AX44: 14.49 | AY44: 15.08 | AZ44: 12.33 | BA44: 12.98 | BB44: 20.95 | BC44: 13.02 | BD44: 10.68 | BE44: 9.58 | BG44: AdquisicionNo Premier100.9 | BH44: 13.58 | BJ44: AdquisicionNo Premier100.9 | BK44: 12.81
L45: =(IF(D21&D16=N7&L40,N4,D21)) -> Adquisicion | M45: =D21&D16&D28&O50 -> AdquisicionNo Premier200.85 | N45: AdquisicionPremier | O45: =IF(AND(D22="CI+CB",D24="SI"),90%,IF(OR(H25/D26<=90%,D22=O5,D22=O6),90%,90%)) -> 0.9 | T45: Factor de Línea | U45: 21.49 | V45: 13.54 | W45: 11.19 | X45: 10.08 | Y45: 21.97 | Z45: 22.22 | AA45: 22.41 | AB45: 14.05 | AC45: 14.32 | AD45: 14.55 | AE45: 11.72 | AF45: 12.02 | AG45: 12.27 | AH45: 10.62 | AI45: 10.95 | AJ45: 11.22 | AK45: 21.73 | AL45: 13.82 | AM45: 11.5 | AN45: 10.41 | AO45: 21.83 | AP45: 13.88 | AQ45: 11.53 | AR45: 10.42 | AS45: 22.96 | AT45: 15.17 | AU45: 12.97 | AV45: 23.21 | AW45: 23.72 | AX45: 15.46 | AY45: 16.05 | AZ45: 13.3 | BA45: 13.95 | BB45: 21.58 | BC45: 13.65 | BD45: 11.31 | BE45: 10.21 | BG45: AdquisicionNo Premier150.5 | BH45: 10.75 | BJ45: AdquisicionNo Premier150.5 | BK45: 9.88
H46: Versión 2025.11.18 | L46: =(IF(D21&D16=N7&L40,N4,D21)&D16&D28) -> AdquisicionNo Premier20 | N46: LiquidezPremier | O46: =IF(H25/D26<=50%,50%,IF(H25/D26<=80%,80%,"")) ->  | T46: CaT | U46: 0.1121395052 | V46: 0.1123844645 | W46: 0.1136170685 | X46: 0.112644602 | Y46: 0.1319832009 | Z46: 0.1331994651 | AA46: 0.1366819827 | AB46: 0.1285718338 | AC46: 0.1302007031 | AD46: 0.1341027646 | AE46: 0.1280470607 | AF46: 0.1300829161 | AG46: 0.1339573905 | AH46: 0.125937852 | AI46: 0.1283281486 | AJ46: 0.1322447121 | AK46: 0.122374832 | AL46: 0.1206130811 | AM46: 0.1211379222 | AN46: 0.1197416463 | AO46: 0.1172043485 | AP46: 0.1173667351 | AQ46: 0.1182404626 | AR46: 0.1169777705 | AS46: 0.1450956399 | AT46: 0.1441838717 | AU46: 0.1446123011 | AV46: 0.1622471431 | AW46: 0.1697431932 | AX46: 0.1573170912 | AY46: 0.1654434508 | AZ46: 0.1565655314 | BA46: 0.1649007745 | BB46: 0.1141433518 | BC46: 0.1145455795 | BD46: 0.1157401184 | BE46: 0.1147699478 | BG46: AdquisicionNo Premier150.75 | BH46: 11.05 | BJ46: AdquisicionNo Premier150.75 | BK46: 10.17
C47: * Condiciones aplicables en caso de ser asalariado. En caso de tener otra actividad, revisar en comparativo los plazos. | L47: =(IF(D21&D16=N7&L40,N4,D21)&D16&D28&O50) -> AdquisicionNo Premier200.85 | M47: =M6&N4 -> Por Valor de la ViviendaAdquisicion | N47: ExclusivaNo Premier | O47: =IF(H25/D26<=97%,90%,"") -> 0.9 | BG47: AdquisicionNo Premier150.9 | BH47: 11.3 | BJ47: AdquisicionNo Premier150.9 | BK47: 10.41
L48: =(IF(D21&D16=N7&L40,N4,D21)&D28) -> Adquisicion20 | M48: =M6&N7 -> Por Valor de la ViviendaExclusiva | N48: ExclusivaPremier | O48: =IF(H25/D26<=97%,90%,"") -> 0.9 | BG48: AdquisicionNo Premier200.5 | BH48: 9.65 | BJ48: AdquisicionNo Premier200.5 | BK48: 8.69
L49: =(IF(D21&D16=N7&L40,N4,D21)&D28) -> Adquisicion20 | M49: =M4&N8 -> Por monto de crédito y valor de la viviendaPago Hipoteca+Liquidez | N49: Nomina Especial | O49: 0.9 | BG49: AdquisicionNo Premier200.75 | BH49: 9.98 | BJ49: AdquisicionNo Premier200.75 | BK49: 9.01
L50: =(IF(D21&D16=N7&L40,N4,D21)&D16&D28) -> AdquisicionNo Premier20 | M50: =M6&N8 -> Por Valor de la ViviendaPago Hipoteca+Liquidez | N50: LTV | O50: =IF(D21=N4,O42,IF(D21=N5,O43,IF(D21=N6,O44,IF(D21=N7,O47,IF(D21=N9,O49))))) -> 0.85 | U50: Pago Bajo | BG50: AdquisicionNo Premier200.9 | BH50: 10.25 | BJ50: AdquisicionNo Premier200.9 | BK50: 9.27
L51: LTV | M51: =M5&N8 -> Por ingresos del clientePago Hipoteca+Liquidez | BG51: ExclusivaNo Premier50.9 | BH51: 21.1 | BJ51: ExclusivaNo Premier50.9 | BK51: 20.5
L52: =IF($L$45="LiquidezPremier",N52,M52) -> 0.5 | M52: 0.5 | N52: 0.7 | O52: 0.85 | T52: Segment | U52: Premier | Y52: No premier | AK52: Exclusiva | AO52: Pago Hipoteca | BB52: Nómina Especial | BG52: ExclusivaNo Premier100.9 | BH52: 13.19 | BJ52: ExclusivaNo Premier100.9 | BK52: 12.43
L53: =IF($L$45="LiquidezPremier",N53,M53) -> 0.7 | M53: 0.7 | N53: 0.7 | O53: 0.85 | U53: 5 años | V53: 10años | W53: 15años | X53: 20años | Y53: 5 años | Z53: 5 años | AA53: 5 años | AB53: 10años | AC53: 10años | AD53: 10años | AE53: 15años | AF53: 15años | AG53: 20años | AH53: 20años | AI53: 20años | AJ53: 20años | AK53: 5 años | AL53: 10años | AM53: 15años | AN53: 20años | AO53: 5 años | AP53: 10años | AQ53: 15años | AR53: 20años | BB53: 5 años | BC53: 10años | BD53: 15años | BE53: 20años | BG53: ExclusivaNo Premier150.9 | BH53: 10.87 | BJ53: ExclusivaNo Premier150.9 | BK53: 10
L54: =IF($L$45="LiquidezPremier",N54,M54) -> 0.75 | M54: 0.75 | N54: 0.7 | O54: 0.85 | T54: Rate | U54: 0.092 | V54: 0.0945 | W54: 0.097 | X54: 0.097 | Y54: 0.095 | Z54: 0.1 | AA54: 0.104 | AB54: 0.0975 | AC54: 0.1025 | AD54: 0.1065 | AE54: 0.1 | AF54: 0.105 | AG54: 0.109 | AH54: 0.1 | AI54: 0.105 | AJ54: 0.109 | AK54: 0.097 | AL54: 0.0995 | AM54: 0.102 | AN54: 0.102 | AO54: 0.092 | AP54: 0.0945 | AQ54: 0.097 | AR54: 0.097 | BB54: 0.094 | BC54: 0.0965 | BD54: 0.099 | BE54: 0.099 | BG54: ExclusivaNo Premier200.9 | BH54: 9.78 | BJ54: ExclusivaNo Premier200.9 | BK54: 8.82
L55: =IF($L$45="LiquidezPremier",N55,M55) -> 0.85 | M55: 0.85 | N55: 0.7 | O55: 0.85 | T55: Opening Fee | U55: 0 | V55: 0 | W55: 0 | X55: 0 | Y55: 0.01 | Z55: 0.01 | AA55: 0.01 | AB55: 0.01 | AC55: 0.01 | AD55: 0.01 | AE55: 0.01 | AF55: 0.01 | AG55: 0.01 | AH55: 0.01 | AI55: 0.01 | AJ55: 0.01 | AK55: 0.01 | AL55: 0.01 | AM55: 0.01 | AN55: 0.01 | AO55: 0 | AP55: 0 | AQ55: 0 | AR55: 0 | BB55: 0 | BC55: 0 | BD55: 0 | BE55: 0 | BG55: Pago de Hipoteca50.85 | BH55: 20.86 | BJ55: Pago de Hipoteca50.85 | BK55: 20.26
L56: =IF($L$45="LiquidezPremier",N56,M56) -> 0.9 | M56: 0.9 | N56: 0.7 | O56: 0.85 | T56: Research Fee | U56: 0 | V56: 0 | W56: 0 | X56: 0 | Y56: 0 | Z56: 0 | AA56: 0 | AB56: 0 | AC56: 0 | AD56: 0 | AE56: 0 | AF56: 0 | AG56: 0 | AH56: 0 | AI56: 0 | AJ56: 0 | AK56: 0 | AL56: 0 | AM56: 0 | AN56: 0 | AO56: 0 | AP56: 0 | AQ56: 0 | AR56: 0 | BB56: 0 | BC56: 0 | BD56: 0 | BE56: 0 | BG56: Pago de Hipoteca100.85 | BH56: 12.91 | BJ56: Pago de Hipoteca100.85 | BK56: 12.16
T57: Appraisal | U57: Sí | V57: Sí | W57: Sí | X57: Sí | Y57: Sí | Z57: Sí | AA57: Sí | AB57: Sí | AC57: Sí | AD57: Sí | AE57: Sí | AF57: Sí | AG57: Sí | AH57: Sí | AI57: Sí | AJ57: Sí | AK57: Sí | AL57: Sí | AM57: Sí | AN57: Sí | AO57: Sí | AP57: Sí | AQ57: Sí | AR57: Sí | BB57: Sí | BC57: Sí | BD57: Sí | BE57: Sí | BG57: Pago de Hipoteca150.85 | BH57: 10.56 | BJ57: Pago de Hipoteca150.85 | BK57: 9.7
M58: =IF(AND(D25=M6,D22="Alia2",D23=L170),MIN(P75,P76),IF(AND(D25=M6,D22="Alia2",D23=L171),MIN(P75,P76),IF(J4="",IF(D25=M6,P76,IF(P75<100000,"-",P75)),0))) -> 3200000 | N58: =IFERROR(MIN(M58,M64),0) -> 2975000 | O58: =N58*G19 -> 29750 | T58: LTV | U58: 0.9 | V58: 0.9 | W58: 0.9 | X58: 0.9 | Y58: 0.5 | Z58: 0.75 | AA58: 0.9 | AB58: 0.5 | AC58: 0.75 | AD58: 0.9 | AE58: 0.5 | AF58: 0.75 | AG58: 0.9 | AH58: 0.5 | AI58: 0.75 | AJ58: 0.9 | AK58: 0.9 | AL58: 0.9 | AM58: 0.9 | AN58: 0.9 | AO58: 0.85 | AP58: 0.85 | AQ58: 0.85 | AR58: 0.85 | BB58: 0.9 | BC58: 0.9 | BD58: 0.9 | BE58: 0.9 | BG58: Pago de Hipoteca200.85 | BH58: 9.45 | BJ58: Pago de Hipoteca200.85 | BK58: 8.5
L59: Gastos-Subcueta | M59: =IF(H21="-",0,-D33) -> -300000 | T59: Monthly Fee (sin Iva) | U59: 0 | V59: 0 | W59: 0 | X59: 0 | Y59: 348 | Z59: 348 | AA59: 348 | AB59: 348 | AC59: 348 | AD59: 348 | AE59: 348 | AF59: 348 | AG59: 348 | AH59: 348 | AI59: 348 | AJ59: 348 | AK59: 0 | AL59: 0 | AM59: 0 | AN59: 0 | AO59: 348 | AP59: 348 | AQ59: 348 | AR59: 348 | BB59: 0 | BC59: 0 | BD59: 0 | BE59: 0 | BG59: LiquidezPremier50.7 | BH59: 21.99 | BJ59: LiquidezPremier50.7 | BK59: 21.99
L60: Enganche base | M60: =IF(D21=V78,"",IF(D21=V79,"",IF(D21=V80,"",IF(J4="",IF(OR(D22&D21=O8&N4,D22&D21=O8&N7),D26-D32-M58,IF(OR(D22&D21=O7&N4,D22&D21=O7&N7),D26-M58,IF(OR(D22&D21=O6&N4,D22&D21=O6&N7,D22&D21=O6&N9),D26-D32-M58,D26-M58))),"-")))) -> 300000 | O60: =N4&O5 -> AdquisicionApoyo Infonavit | T60: Pago Por mil | U60: 20.26 | V60: 12.16 | W60: 9.7 | X60: 8.5 | Y60: 20.41 | Z60: 20.65 | AA60: 20.84 | AB60: 12.32 | AC60: 12.59 | AD60: 12.81 | AE60: 9.88 | AF60: 10.17 | AG60: 10.41 | AH60: 8.69 | AI60: 9.01 | AJ60: 9.27 | AK60: 20.5 | AL60: 12.43 | AM60: 10 | AN60: 8.82 | AO60: 20.26 | AP60: 12.16 | AQ60: 9.7 | AR60: 8.5 | BB60: 20.36 | BC60: 12.27 | BD60: 9.82 | BE60: 8.63 | BG60: LiquidezPremier100.7 | BH60: 14.2 | BJ60: LiquidezPremier100.7 | BK60: 14.2
L61: Ajuste por SSV | M61: =IFERROR(M59+IF(M60="-",0,M60)-IF(D25=M6,0,0),2) -> 0 | O61: =N7&O5 -> ExclusivaApoyo Infonavit | T61: Factor de Línea | U61: 20.89 | V61: 12.79 | W61: 10.33 | X61: 9.13 | Y61: 21.38 | Z61: 21.62 | AA61: 21.81 | AB61: 13.29 | AC61: 13.56 | AD61: 13.78 | AE61: 10.85 | AF61: 11.14 | AG61: 11.38 | AH61: 9.66 | AI61: 9.98 | AJ61: 10.24 | AK61: 21.13 | AL61: 13.06 | AM61: 10.63 | AN61: 9.45 | AO61: 21.23 | AP61: 13.13 | AQ61: 10.67 | AR61: 9.47 | BB61: 20.99 | BC61: 12.9 | BD61: 10.45 | BE61: 9.26 | BG61: LiquidezPremier150.7 | BH61: 12 | BJ61: LiquidezPremier150.7 | BK61: 12
L62: Monto Max | M62: =IF(AND(D22=O6,D32>1),97%,IF(AND(D22=O8,D32>1),95%,IF(D22=O5,97%,IF(AND(D22=O7,D24="NO"),85%,90%)))) -> 0.85 | O62: =N9&O5 -> Nomina EspecialApoyo Infonavit | T62: CaT | U62: 0.111833189 | V62: 0.1120510149 | W62: 0.1131486799 | X62: 0.112023581 | Y62: 0.13161243 | Z62: 0.1327715094 | AA62: 0.1364203222 | AB62: 0.1277860711 | AC62: 0.1296469182 | AD62: 0.1334468823 | AE62: 0.127005065 | AF62: 0.1292907052 | AG62: 0.1331708227 | AH62: 0.1247228451 | AI62: 0.1273317149 | AJ62: 0.1312750085 | AK62: 0.122095737 | AL62: 0.1201081174 | AM62: 0.120510789 | AN62: 0.119038217 | AO62: 0.1168353355 | AP62: 0.1177754346 | AQ62: 0.1175840944 | AR62: 0.1161185891 | BB62: 0.1140065629 | BC62: 0.114209602 | BD62: 0.1153067081 | BE62: 0.1141855964 | BG62: LiquidezNo Premier50.5 | BH62: 22.24 | BJ62: LiquidezNo Premier50.5 | BK62: 22.24
L63: Cofi | M63: =IF(AND(D22="Cofinavit",D32>1),1-(D26-D32)/D26,IF(D22="Apoyo Infonavit",1-(D26-D32)/D26,0)) -> 0 | BG63: LiquidezNo Premier50.7 | BH63: 22.75 | BJ63: LiquidezNo Premier50.7 | BK63: 22.75
L64: Final | M64: =IFERROR(MIN(D26*(M62-M63),IF(D25=M6,MIN(P76+M61,M58),IF(P75<100000,"-",MIN(P75+M61,M58)))),0) -> 2975000 | BG64: LiquidezNo Premier100.5 | BH64: 14.49 | BJ64: LiquidezNo Premier100.5 | BK64: 14.49
L65: Factores y Estimación de Línea | BG65: LiquidezNo Premier100.7 | BH65: 15.08 | BJ65: LiquidezNo Premier100.7 | BK65: 15.08
BG66: LiquidezNo Premier150.5 | BH66: 12.33 | BJ66: LiquidezNo Premier150.5 | BK66: 12.33
L67: Factor DTI | M67: =IF(D25="Por Campaña",100%,65%) -> 0.65 | BG67: LiquidezNo Premier150.7 | BH67: 12.98 | BJ67: LiquidezNo Premier150.7 | BK67: 12.98
F68: =IF(AND(D19="Asalariado",H25>10000000),90%,0) -> 0 | L68: Factor No Asalariado | M68: 1
M69: =MIN(((IF(D17="SI",D31,0)+D29)*M67),(((IF(D17="SI",D28,0)+D29)*M67)-D30))*M68 -> 0 | Q69: Costo Avaluos | T69: Gastos Notariales | V69: Tipo de Financiamiento | W69: Monto Maximo | X69: Validación | Y69: Cumple
Q70: De | R70: Costo | T70: 0.02 | V70: Tradicional | W70: =D27 -> 0 | X70: HSBC + Inf < 97% | Y70: =IF(D21&D16&D23&L5=M168,(D26*0.97),IF(D21&D16&D23&D24=M170,(D26*0.85),IF(D21&D16&D23&D24=N170,(D26*0.9),IF(D21&D16&D23&D24=N171,(D26*0.9),IF(D21&D16&D23&D24=M171,(D26*O50),(D26*1)-D32))))) -> 2975000
L71: Factor Comisión Mensual | M71: =IF(D21=N6,0.348,IF(D21&D16=L6,0.29,0)) -> 0 | Q71: 0 | R71: 2146 | T71: 0.03 | V71: Apoyo Infonavit | W71: =Y72 -> 2975000 | X71: 100% GyH | Y71: =IF(SUM(Y70,D32)<SUM(D26,G18,G21*D26),SUM(D26,G18,G21*D26)-SUM(D32,D33),Y70) -> 3212470
L72: Factor Vida | M72: =L86 -> 0.44 | Q72: 500001 | R72: 3422 | T72: 0.04 | V72: Cofinavit | W72: =Y72 -> 2975000 | Y72: =MIN(Y71,Y70) -> 2975000
L73: Factor Daños | M73: =VLOOKUP(D18,$Q$3:$R$39,2,0)*IF(D25=M7,1,0.7) -> 0.22218 | Q73: 1000001 | R73: 5916 | T73: 0.045 | V73: CI+CB | W73: =IF(D25="Valor de la Vivienda",D26-D33,MIN(D26-D33,D29)) -> 3200000 | AB73: Apoyo Infonavit0.097
L74: Tasa para cálculo ingreso | M74: =IF(D22="CI+CB",(IF(OR(D25=M4),G26,VLOOKUP(D16&D21&D28,M102:N165,2,0))*0.7)+(10.45%*0.3),IF(OR(D25=M4),G26,VLOOKUP(D16&D21&D28,M102:N165,2,0))) -> 0.10205 | Q74: 2000001 | R74: 9222 | T74: 0.05 | V74: Respalda2 | W74: =IF(D25="Valor de la Vivienda",D26-D33,MIN(D26-D33,D29)) -> 3200000 | AB74: =D22&D23 -> CI+CB0.1175
L75: Ajuste corrección | M75: 0 | O75: Monto de Máximo | P75: =IFERROR(VLOOKUP(D21,V77:X82,IF(OR(D25=M4,D25=M6),2,3),0),0) -> 2975000 | Q75: 3000001 | R75: 12470 | T75: 0.06
L76: Factor de Línea/Tasa | M76: =IF(Amortización!E14="Pago Fijo",ROUND(PMT(M74/12,D28*12,-1000),2),VLOOKUP(D16&D21&D28,M102:O131,3,0))+M72+M73+M71+M75 -> 10.45218 | O76: Valor de Vivienda | P76: =IF(OR(D21=V81,D21=V77),MIN(IF(D22=V74,W74,IF(D22=V72,W72,IF(D22=V73,W73,VLOOKUP(D21,V77:Y82,4,0)*D26))),Y81*D26,30000000),MIN(VLOOKUP(D21,V77:Y82,4,0)*D26,30000000))-IF(AND(D25=X45,D21=V77),D27,0) -> 3200000 | Q76: 4000001 | R76: 15370 | T76: 0.07 | V76: Producto | W76: Monto Max por Monto | X76: Monto Max por Ingreso | Y76: Max Financiamiento | Z76: Min Financiamiento
Q77: 5000001 | R77: 19952 | T77: 0.08 | V77: Adquisicion | W77: =MIN(VLOOKUP(D22,$V$70:$W$74,2,0),IF(D25=M4,D27,50000000),D26*Y77,50000000) -> 2975000 | X77: =MIN($G$29,IF($D$21=$V$77,IF(OR($D$22=$V$70,$D$22=$V$72,$D$22=$V$71),$D$26*Y77,IF($D$22=$V$74,MIN($D$26-D33,$D$26*Y77),IF($D$32+$D$33>0.1*$D$26,$D$26-$D$32,IF($D$32<0.05*$D$26,$G$29,$D$26*0.95-$D$32)))),$D$26*Y77)) -> 52579.17603 | Y77: =IF(AND(D16="Premier",D24="SI"),AC77,IF(AND(OR(D16="Premier",D16="No Premier"),D22="Apoyo Infonavit"),AD77,IF(AND(D16="Premier",D22="Alia2"),AD77,IF(AND(D23=L170,D22="Apoyo Infonavit",D24="SI"),AC77,IF(AND(D23=L171,D22="Apoyo Infonavit",D24="SI"),AC77,IF(AND(D22="Alia2",D23=L171),AC78,IF(D22="CI+CB",AD78,IF(D17="SI",AC77,AB77)))))))) -> 0.85 | Z77: 350000 | AB77: =IF(D16=L40,90%,IF(AND(D22="Cofinavit",D23=L168),95%,IF(D22="Apoyo Infonavit",97%,IF(AND(D23=L170,D22="Apoyo Infonavit"),97%,IF(AND(D23=L170,D22="Tradicional"),85%,IF(D23=L168,90%,IF(D23&D35=L183,80%,IF(D23&D35=L184,75%,90%))))+IF(D16=L40,0%,IF(D24=L4,15%))+IF(D22&D24=O6&L4,0.05,0)+IF(D22&O50=O6&0.9,0.05,+IF(D22&D24=O5&L4,0.05,0)+IF(D22&O50=O5&0.9,0.05,0))))))+IF(AB74=AB73,0.05,0) -> 0.9 | AC77: 0.9 | AD77: 0.97
Q78: 7000001 | R78: 23200 | T78: 0.09 | V78: Pago de Hipoteca | W78: =IF(D25="Por Valor de la Vivienda",MIN(D26*Y78,50000000),MIN(D26*Y78,D27,50000000)) -> 2975000 | X78: =MIN(D26*Y78,G29) -> 52579.17603 | Y78: =IF(D24="SI",AR42+0.1,AR42) -> 0.85 | Z78: 350000 | AC78: =IF(D16=L40,90%,IF(AND(D22="Alia2",D23=L170,D24="SI"),90%,IF(AND(D23=L168,D22="Apoyo Infonavit"),95%,IF(AND(D23=L170,D22="Alia2"),85%,IF(AND(D23=L170,D22="Tradicional"),85%,IF(D23=L168,90%,IF(D23&D35=L183,75%,IF(D23&D35=L184,75%,90%))))+IF(D16=L40,0%,IF(D24=L4,15%))+IF(D22&D24=O6&L4,0.05,0)+IF(D22&O50=O6&0.9,0.05,+IF(D22&D24=O5&L4,0.05,0)+IF(D22&O50=O5&0.9,0.05,0)))))) -> 0.9 | AD78: =IF(D24="SI",90%,85%) -> 0.85
M79: =ROUND(M69/(ROUND(PMT(M74/12,D28*12,-1000),2)+M71+M72+M73)*1000,0) -> 0 | Q79: 10000001 | R79: 24360 | T79: 0.1 | V79: Liquidez | W79: =MIN($D$26*Y79,$D$27,70000000) -> 2800000 | X79: =MIN(D26*Y79,G29,50000000) -> 52579.17603 | Y79: 0.8 | Z79: 350000
T80: 0.11 | V80: =N8 -> Pago Hipoteca+Liquidez | W80: =MIN($D$26*Y80,$D$27,50000000) -> 2975000 | X80: =MIN(D26*Y80,G29) -> 52579.17603 | Y80: =AR42 -> 0.85 | Z80: 350000
L81: CréditoLTV | M81: =IF(D25=M4,D27,M82) -> 3150000 | T81: 0.12 | V81: Exclusiva | W81: =MIN(VLOOKUP(D22,$V$70:$W$74,2,0),IF(D25=M4,D27,50000000),D26*Y81,50000000) -> 3200000 | X81: =MIN($G$29,IF($D$21=$V$81,IF(OR($D$22=$V$70,$D$22=$V$71),$D$26*$Y$81,IF($D$22=$V$74,MIN($D$26-#REF!,$D$26*$Y$81),IF($D$32+$D$33>0.1*$D$26,$D$26-$D$32-$D$33,IF($D$32<0.05*$D$26,$G$29,$D$26*0.95-$D$32)))),$D$26*Y77)) -> 52579.17603 | Y81: =IF(D21=N4,97%,IF(D22=O6,97%,IF(AND(D22=O5,D24="SI"),90%,IF(D22=O5,97%,IF(D22=O8,95%,IF(D22=O7,85%+AB81,AK42)))))) -> 0.97 | Z81: 350000 | AB81: =IF(D24="SI",5%,0) -> 0
L82: Credito solicitado | M82: =IF($D$25=$M$6,MIN(($D$26*$O$82)-$D$34,$P$76),"") -> 3150000 | O82: =IF(D21=V79,Y79,IF(D21=V78,Y78,IF(D21=V80,Y80,90%))) -> 0.9 | V82: Nomina Especial | W82: =MIN(VLOOKUP(D22,$V$70:$W$74,2,0),IF(D25=M4,D27,50000000),D26*Y82,50000000) -> 3150000 | X82: =MIN($G$29,IF($D$21=$V$82,IF(OR($D$22=$V$70,$D$22=$V$71),$D$26*$Y$82,IF($D$22=$V$74,MIN($D$26-#REF!,$D$26*$Y$82),IF($D$32+$D$33>0.1*$D$26,$D$26-$D$32-$D$33,IF($D$32<0.05*$D$26,$G$29,$D$26*0.95-$D$32)))),$D$26*Y77)) -> 52579.17603 | Y82: =IF(D22=O5,97%,90%) -> 0.9 | Z82: 350000
M83: =MIN(M82,M84,M81) -> 3150000 | N83: =IFERROR(M83*G19,0) -> 31500 | V83: Plazos | W83: Ingresos Mínimos
M84: =MIN($D$26-$D$32-$D$33-D34,$D$26*1-$D$32) -> 3200000 | V84: =$D$28 -> 20 | W84: =IF($D$22="CI+CB",(Amortización!$K$21+Amortización!$AY$12)/100%/65%,IF(Amortización!$F$16="NO",Amortización!$K$21/100%/65%,Amortización!$K$24/100%/65%)) -> 52579.17603 | Y84: =IF(H25>10000000,"SI","NO") -> NO
L85: Factores Seguros | V85: =$D$28 -> 20 | W85: =IF($D$22="CI+CB",(Amortización!$K$21+Amortización!$AY$12)/100%/65%,IF(Amortización!$F$16="NO",Amortización!$K$21/100%/65%,Amortización!$K$24/100%/65%)) -> 52579.17603
K86: Vida | L86: =IF(N20="Verdadero",0.44,0.44) -> 0.44 | V86: =$D$28 -> 20 | W86: =IF($D$22="CI+CB",(Amortización!$K$21+Amortización!$AY$12)/100%/65%,IF(Amortización!$F$16="NO",Amortización!$K$21/100%/65%,Amortización!$K$24/100%/65%)) -> 52579.17603
K87: Daños | V87: =$D$28 -> 20 | W87: =IF($D$22="CI+CB",(Amortización!$K$21+Amortización!$AY$12)/100%/65%,IF(Amortización!$F$16="NO",Amortización!$K$21/100%/65%,Amortización!$K$24/100%/65%)) -> 52579.17603
K89: Pago Fijo | M89: Pago Fijo
K90: Pago Bajo
R91: =IF(D22=O6,"Cofi",IF(D22=O8,"Cofi","")) ->  | V91: DTI | W91: 0.65
L93: =MIN(D26*0.9,D26-D34) -> 3150000
T94: =IF(OR(D22=O6,D22=O8),(H25+D32)/D26,G25) -> 0.85 | V94: =V77&L190 -> Adquisicion | W94: =IF(H25>10000000,"SI","NO") -> NO | X94: =IF(W94="SI","10%",0) -> 0
T95: =IF(AND(R91="Cofi",T94<=0.8, G25<=70%),0.7,MAX(T94,G25)) -> 0.85 | V95: =V77&L191 -> AdquisicionNormal | X95: 0.1
T96: =IF(D22<>O4,"",G25) ->  | V96: =V77&L192 -> Adquisicion | X96: 0.15
V97: =V77&L193 -> Adquisicion | X97: 0.4
V98: =$V$81&L190 -> Exclusiva | X98: 0.1
V99: =$V$81&L191 -> ExclusivaNormal | X99: 0.1
V100: =$V$81&L192 -> Exclusiva | X100: 0.15
L101: Premier | V101: =$V$81&L193 -> Exclusiva | X101: 0.4
K102: 5 | L102: 0.092 | M102: PremierAdquisicion5 | N102: =N103-0.25% -> 0.096 | O102: 19.99 | R102: ="PremierAdquisicion5"&IF(D24="SI","0.9","0.9") -> PremierAdquisicion50.9 | S102: =11.1%-0.5%-T102-U102-V102-W102 -> 0.102 | T102: =IF(D19=L190,0%,IF($T$96<=0.85,0%,0)) -> 0 | U102: =IF($D$19=$L$190,0%,IF(AND($D$22<>$O$4,$T$95<=0.97),0.72%,0)) -> 0 | V102: =IF($D$19=$L$190,0.95%,0) -> 0.0095 | W102: =IF($D$22="CI+CB",-0.55%,0) -> -0.0055
K103: 10 | L103: 0.0945 | M103: PremierAdquisicion10 | N103: =N104-0.25% -> 0.0985 | O103: 11.84 | R103: ="PremierAdquisicion10"&IF(D24="SI","0.9","0.9") -> PremierAdquisicion100.9 | S103: =11.1%-0.25%-T103-U103-V103-W103 -> 0.1045 | T103: =IF(D19=L190,0%,IF($T$96<=0.85,0%,0)) -> 0 | U103: =IF($D$19=$L$190,0%,IF(AND($D$22<>$O$4,$T$95<=0.97),0.72%,0)) -> 0 | V103: =IF($D$19=$L$190,0.95%,0) -> 0.0095 | W103: -0.0055
K104: 15 | L104: 0.097 | M104: PremierAdquisicion15 | N104: =N105 -> 0.101 | O104: 9.34 | R104: ="PremierAdquisicion15"&IF(D24="SI","0.9","0.9") -> PremierAdquisicion150.9 | S104: =11.1%-T104-U104-V104-W104 -> 0.107 | T104: =IF(D19=L190,0%,IF($T$96<=0.85,0%,0)) -> 0 | U104: 0 | V104: =IF($D$19=$L$190,0.95%,0) -> 0.0095 | W104: -0.0055
K105: 20 | L105: 0.097 | M105: PremierAdquisicion20 | N105: 0.101 | O105: 8.11 | R105: ="PremierAdquisicion20"&IF(D24="SI","0.9","0.9") -> PremierAdquisicion200.9 | S105: =11.1%-T105-U105-V105-W105 -> 0.107 | T105: =IF(D19=L190,0%,IF($T$96<=0.85,0%,0)) -> 0 | U105: 0 | V105: =IF($D$19=$L$190,0.95%,0) -> 0.0095 | W105: -0.0055
M106: No PremierAdquisicion5 | N106: =N107-0.25% -> 0.096 | O106: 20.15 | R106: ="PremierAdquisicion25"&IF(D25="SI","0.9","0.9") -> PremierAdquisicion250.9 | S106: =11.1%-T106-U106-V106-W106 -> 0.107 | T106: =IF(D20=L191,0%,IF($T$96<=0.85,0%,0)) -> 0 | U106: 0 | V106: =IF($D$19=$L$190,0.95%,0) -> 0.0095 | W106: =IF($D$22="CI+CB",-0.55%,0) -> -0.0055
L107: No premier | M107: No PremierAdquisicion10 | N107: =N108-0.25% -> 0.0985 | O107: 12.02 | R107: No PremierAdquisicion50.9 | S107: =S111-0.25% -> 0.106
M108: No PremierAdquisicion15 | N108: =N109 -> 0.101 | O108: 9.54 | R108: No PremierAdquisicion50.94 | S108: =S112-0.25% -> 0.106
K109: 5 | L109: 0.104 | M109: No PremierAdquisicion20 | N109: 0.101 | O109: 8.33 | R109: No PremierAdquisicion50.85 | S109: 0.1125
K110: 10 | L110: 0.1065 | M110: No PremierExclusiva5 | N110: =N111-0.25% -> 0.096 | O110: 20.03 | R110: No PremierAdquisicion50.75 | S110: 0.1175
K111: 15 | L111: 0.109 | M111: No PremierExclusiva10 | N111: =N112-0.25% -> 0.0985 | O111: 11.89 | R111: No PremierAdquisicion100.9 | S111: =S115-0.25% -> 0.1085
K112: 20 | L112: 0.109 | M112: No PremierExclusiva15 | N112: =N113 -> 0.101 | O112: 9.4 | R112: No PremierAdquisicion100.94 | S112: =S116-0.25% -> 0.1085
M113: No PremierExclusiva20 | N113: 0.101 | O113: 8.18 | R113: No PremierAdquisicion100.85 | S113: 0.115
L114: Exclusiva | M114: No PremierPago de Hipoteca5 | N114: =N115-0.25% -> 0.0985 | O114: 20.06 | R114: No PremierAdquisicion100.75 | S114: 0.12
K115: 5 | L115: 0.097 | M115: No PremierPago de Hipoteca10 | N115: =N116-0.25% -> 0.101 | O115: 11.92 | R115: No PremierAdquisicion150.9 | S115: 0.111
K116: 10 | L116: 0.0995 | M116: No PremierPago de Hipoteca15 | N116: =N117 -> 0.1035 | O116: 9.43 | R116: No PremierAdquisicion150.94 | S116: 0.111
K117: 15 | L117: 0.102 | M117: No PremierPago de Hipoteca20 | N117: 0.1035 | O117: 8.21 | R117: No PremierAdquisicion150.85 | S117: 0.1175
K118: 20 | L118: 0.102 | M118: No PremierLiquidez5 | N118: =N119-0.25% -> 0.125 | R118: No PremierAdquisicion150.75 | S118: 0.1225
L119: Pago Hipoteca | M119: No PremierLiquidez10 | N119: =N120-0.25% -> 0.1275 | R119: No PremierExclusiva50.9 | S119: =S120-0.25% -> 0.106
K120: 5 | L120: 0.092 | M120: No PremierLiquidez15 | N120: 0.13 | R120: No PremierExclusiva100.9 | S120: =S121-0.25% -> 0.1085
K121: 10 | L121: 0.0945 | M121: PremierLiquidez5 | N121: =N122-0.25% -> 0.116 | R121: No PremierExclusiva150.9 | S121: =S122 -> 0.111
K122: 15 | L122: 0.097 | M122: PremierLiquidez10 | N122: =N123-0.25% -> 0.1185 | R122: No PremierExclusiva200.9 | S122: 0.111
K123: 20 | L123: 0.097 | M123: PremierLiquidez15 | N123: 0.121 | R123: No PremierExclusiva250.9 | S123: 0.111
M124: PremierPago de Hipoteca5 | N124: =N125-0.25% -> 0.0985 | O124: 19.89 | R124: No PremierPago de Hipoteca50.85 | S124: =S125-0.25% -> 0.1075
L125: LiquidezNo Premier | M125: PremierPago de Hipoteca10 | N125: =N126-0.25% -> 0.101 | O125: 11.74 | R125: No PremierPago de Hipoteca100.85 | S125: =S126-0.25% -> 0.11
K126: 5 | L126: 0.115 | M126: PremierPago de Hipoteca15 | N126: =N127 -> 0.1035 | O126: 9.23 | R126: No PremierPago de Hipoteca150.85 | S126: =S127 -> 0.1125
K127: 10 | L127: 0.1175 | M127: PremierPago de Hipoteca20 | N127: 0.1035 | O127: 7.99 | R127: No PremierPago de Hipoteca200.85 | S127: 0.1125
K128: 15 | L128: 0.12 | M128: PremierExclusiva5 | N128: =N129-0.25% -> 0.096 | O128: 19.99 | R128: PremierLiquidez50.8 | S128: =S129-0.25% -> 0.1225 | V128: =IF($D$19=$L$190,0.4%,0) -> 0.004
M129: PremierExclusiva10 | N129: =N130-0.25% -> 0.0985 | O129: 11.84 | R129: PremierLiquidez100.8 | S129: =S130-0.25% -> 0.125 | V129: =IF($D$19=$L$190,0.4%,0) -> 0.004
L130: liquidez Premier | M130: PremierExclusiva15 | N130: =N131 -> 0.101 | O130: 9.34 | R130: PremierLiquidez150.8 | S130: 0.1275 | V130: =IF($D$19=$L$190,0.4%,0) -> 0.004
K131: 5 | L131: 0.13 | M131: PremierExclusiva20 | N131: 0.101 | O131: 8.11 | R131: No PremierLiquidez50.5 | S131: =S133-0.25% -> 0.13
K132: 10 | L132: 0.1325 | M132: PremierPago de Hipoteca6 | N132: =N133 -> 0.0985 | R132: No PremierLiquidez50.8 | S132: =S134-0.25% -> 0.1325
K133: 15 | L133: 0.135 | M133: PremierPago de Hipoteca7 | N133: 0.0985 | R133: No PremierLiquidez100.5 | S133: 0.1325
K134: 5 | M134: PremierPago de Hipoteca8 | N134: =N135 -> 0.0985 | R134: No PremierLiquidez100.8 | S134: =S136-0.25% -> 0.135
K135: 6 | M135: PremierPago de Hipoteca9 | N135: =N136-0.25% -> 0.0985 | R135: No PremierLiquidez150.5 | S135: 0.135
K136: 7 | M136: PremierPago de Hipoteca11 | N136: =N137 -> 0.101 | R136: No PremierLiquidez150.8 | S136: 0.1375
K137: 8 | M137: PremierPago de Hipoteca12 | N137: 0.101 | R137: PremierPago de Hipoteca50.85 | S137: =S138-0.25%-V137 -> 0.0895 | V137: =IF($D$19=$L$190,0.6%,0) -> 0.006
K138: 9 | M138: PremierPago de Hipoteca13 | N138: =N139 -> 0.101 | R138: PremierPago de Hipoteca100.85 | S138: =S139-0.25%-V138 -> 0.098 | V138: =IF($D$19=$L$190,0.6%,0) -> 0.006
K139: 10 | M139: PremierPago de Hipoteca14 | N139: =N140-0.25% -> 0.101 | R139: PremierPago de Hipoteca150.85 | S139: =S140-V139 -> 0.1065 | V139: =IF($D$19=$L$190,0.6%,0) -> 0.006
K140: 11 | M140: PremierPago de Hipoteca16 | N140: =N141 -> 0.1035 | R140: PremierPago de Hipoteca200.85 | S140: 0.1125 | V140: =IF($D$19=$L$190,0.6%,0) -> 0.006
K141: 12 | M141: PremierPago de Hipoteca17 | N141: 0.1035 | R141: PremierExclusiva50.9 | S141: =S142-0.25% -> 0.106
K142: 13 | M142: PremierPago de Hipoteca18 | N142: =N143 -> 0.1035 | R142: PremierExclusiva100.9 | S142: =S143-0.25% -> 0.1085
K143: 14 | M143: PremierPago de Hipoteca19 | N143: 0.1035 | R143: PremierExclusiva150.9 | S143: =S144 -> 0.111
K144: 15 | M144: No PremierPago de Hipoteca6 | N144: =N145 -> 0.0985 | R144: PremierExclusiva200.9 | S144: 0.111
K145: 16 | M145: No PremierPago de Hipoteca7 | N145: 0.0985 | R145: PremierExclusiva250.9 | S145: 0.111
K146: 17 | M146: No PremierPago de Hipoteca8 | N146: =N147 -> 0.0985 | R146: No PremierAdquisicion200.9 | S146: 0.111
K147: 18 | M147: No PremierPago de Hipoteca9 | N147: =N148-0.25% -> 0.0985 | R147: No PremierAdquisicion200.94 | S147: 0.111
K148: 19 | M148: No PremierPago de Hipoteca11 | N148: =N149 -> 0.101 | R148: No PremierAdquisicion200.85 | S148: 0.1175
K149: 20 | M149: No PremierPago de Hipoteca12 | N149: 0.101 | R149: No PremierAdquisicion200.75 | S149: 0.1225
M150: No PremierPago de Hipoteca13 | N150: =N151 -> 0.101 | R150: No PremierAdquisicion250.9 | S150: 0.111
M151: No PremierPago de Hipoteca14 | N151: =N152-0.25% -> 0.101 | R151: No PremierAdquisicion250.94 | S151: 0.111
M152: No PremierPago de Hipoteca16 | N152: =N153 -> 0.1035 | R152: No PremierAdquisicion250.85 | S152: 0.1175
L153: Crédito Infonavit | M153: No PremierPago de Hipoteca17 | N153: 0.1035 | R153: No PremierAdquisicion250.75 | S153: 0.1225
L154: Crédito FOVISSSTE incluyendo SSV | M154: No PremierPago de Hipoteca18 | N154: =N155 -> 0.1035 | R154: PremierLiquidez50.5 | S154: =S155-0.25% -> 0.12
L155: Saldo Subcuenta de Vivienda | M155: No PremierPago de Hipoteca19 | N155: 0.1035 | R155: PremierLiquidez100.5 | S155: =S156-0.25% -> 0.1225
M156: PremierNomina Especial5 | N156: =N157-0.25% -> 0.096 | R156: PremierLiquidez150.5 | S156: 0.125
M157: PremierNomina Especial10 | N157: =N158-0.25% -> 0.0985 | R157: No PremierPago de Hipoteca60.85 | S157: =S161-0.25% -> 0.1075
L158: =IF(C29="Ingreso mensual neto*","Ingreso mensual neto*",IF(C29="Pago Mensual Máximo","Pago Mensual Máximo","1")) -> 1 | M158: PremierNomina Especial15 | N158: =N159 -> 0.101 | R158: No PremierPago de Hipoteca70.85 | S158: 0.1075
L159: Pago mensual en Buro(Obligaciones) | M159: PremierNomina Especial20 | N159: 0.101 | R159: No PremierPago de Hipoteca80.85 | S159: 0.1075
M160: No PremierNomina Especial5 | N160: =N161-0.25% -> 0.096 | R160: No PremierPago de Hipoteca90.85 | S160: 0.1075
L161: Tipo de Programa | M161: No PremierNomina Especial10 | N161: =N162-0.25% -> 0.0985 | R161: No PremierPago de Hipoteca110.85 | S161: 0.11
M162: No PremierNomina Especial15 | N162: =N163 -> 0.101 | R162: No PremierPago de Hipoteca120.85 | S162: 0.11
L163: Monto del Crédito | M163: No PremierNomina Especial20 | N163: 0.101 | R163: No PremierPago de Hipoteca130.85 | S163: 0.11
L164: Monto Hipoteca Actual | M164: ="Premier"&N8&D28 -> PremierPago Hipoteca+Liquidez20 | N164: 0.107 | R164: No PremierPago de Hipoteca140.85 | S164: =S168-0.25% -> 0.11
L165: Enganche Adicional | M165: ="No Premier"&N8&D28 -> No PremierPago Hipoteca+Liquidez20 | N165: 0.107 | R165: No PremierPago de Hipoteca160.85 | S165: 0.1125
L166: Elige una tasa de interés | R166: No PremierPago de Hipoteca170.85 | S166: 0.1125
L167: ¿La hipoteca proviene de un Cofinavit, Apoyo, Aliados o Respaldados? | R167: No PremierPago de Hipoteca180.85 | S167: 0.1125
J168: 1 | L168: =IF($D$28=$P$4,10.6%,IF($D$28=$P$5,10.85%,11.1%)) -> 0.111 | M168: =N4&L41&L168&L5 -> AdquisicionNo Premier0.111NO | R168: No PremierPago de Hipoteca190.85 | S168: 0.1125
J169: 2 | L169: =IF($D$28=$P$4,10.6%,IF($D$28=$P$5,10.85%,11.1%)) -> 0.111 | R169: PremierPago de Hipoteca60.85 | S169: =11.25%-0.5%-V169 -> 0.1015 | V169: =IF($D$19=$L$190,0.6%,0) -> 0.006
J170: 3 | L170: =IF($D$28=$P$4,11.25%,IF($D$28=$P$5,11.5%,11.75%)) -> 0.1175 | M170: =N4&L41&L170&L5 -> AdquisicionNo Premier0.1175NO | N170: =N4&L41&L170&L4 -> AdquisicionNo Premier0.1175SI | R170: PremierPago de Hipoteca70.85 | S170: =11.25%-0.5%-V170 -> 0.1015 | V170: =IF($D$19=$L$190,0.6%,0) -> 0.006
J171: 4 | L171: =IF($D$28=$P$4,11.75%,IF($D$28=$P$5,12%,12.25%)) -> 0.1225 | M171: =N4&L41&L171&L5 -> AdquisicionNo Premier0.1225NO | N171: =N4&L41&L171&L4 -> AdquisicionNo Premier0.1225SI | R171: PremierPago de Hipoteca80.85 | S171: =11.25%-0.5%-V171 -> 0.1015 | V171: =IF($D$19=$L$190,0.6%,0) -> 0.006
L172: ¿Se requiere financiamiento máximo? | R172: PremierPago de Hipoteca90.85 | S172: =11.25%-0.5%-V172 -> 0.1015 | V172: =IF($D$19=$L$190,0.6%,0) -> 0.006
L173: Elige una Tasa | N173: =D27/D26 -> 0 | R173: PremierPago de Hipoteca110.85 | S173: =11.25%-0.25%-V173 -> 0.104 | V173: =IF($D$19=$L$190,0.6%,0) -> 0.006
R174: PremierPago de Hipoteca120.85 | S174: =11.25%-0.25%-V174 -> 0.104 | V174: 0.006
R175: PremierPago de Hipoteca130.85 | S175: =11.25%-0.25%-V175 -> 0.104 | V175: 0.006
R176: PremierPago de Hipoteca140.85 | S176: =11.25%-0.25%-V176 -> 0.104 | V176: 0.006
N177: =D21="" -> FALSE | O177: Introducir Producto | R177: PremierPago de Hipoteca160.85 | S177: =11.25%-V177 -> 0.1065 | V177: 0.006
N178: =D26=0 -> FALSE | O178: Introducir Valor de la Vivienda | R178: PremierPago de Hipoteca170.85 | S178: =11.25%-V178 -> 0.1065 | V178: 0.006
L179: =IF(D22="CI+CB",0,IF(D21=N5,0,IF(D16=L40,0.7%,IF(D21=N7,0.7%,0.6%)))) -> 0 | N179: =D26<350000 -> FALSE | O179: El monto mínimo de la garantía son $350,000 | R179: PremierPago de Hipoteca180.85 | S179: =11.25%-V179 -> 0.1065 | V179: 0.006
N180: =AND(D25=M4,D27=0) -> FALSE | O180: Introducir el Monto del Crédito | R180: PremierPago de Hipoteca190.85 | S180: =11.25%-V180 -> 0.1065 | V180: 0.006
L181: 3 | N181: =AND(D25=M5,D29<8500) -> FALSE | O181: Se necesita un ingreso mayor a $10,000 | R181: PremierNomina Especial50.9 | S181: =S182-0.25% -> 0.106
L182: 4 | N182: =AND(D21=N6,D26<350000) -> FALSE | O182: El monto mínimo de la garantía son $350,000 | R182: PremierNomina Especial100.9 | S182: =S183-0.25% -> 0.1085
L183: =L171&L181 -> 0.12253 | N183: =AND(D21<>N6,H25>20000000) -> FALSE | O183: El monto máximo de crédito son $20,000,000 | R183: PremierNomina Especial150.9 | S183: =S185 -> 0.111
L184: =L171&L182 -> 0.12254 | N184: =AND(D21=N6,H25>50000000) -> FALSE | O184: El monto máximo de crédito son $50,000,000 | R184: PremierNomina Especial200.9 | S184: 0.111
L185: Comportamiento Crediticio | N185: =AND(D21=N6,D27>50000000) -> FALSE | O185: El monto máximo de crédito son $50,000,000 | R185: PremierNomina Especial250.9 | S185: 0.111
N186: =AND(D21=N6,N173>70%) -> FALSE | O186: Recuerda, el LTV máximo es de 70% | R186: No PremierNomina Especial50.9 | S186: =S187-0.25% -> 0.106
O187: Recuerda, el LTV máximo es de 90% | R187: No PremierNomina Especial100.9 | S187: =S188-0.25% -> 0.1085
N188: =AND($D$21=$N$5,$G$25>85%,$D$24="NO") -> FALSE | O188: Recuerda, el LTV máximo es de 85% | R188: No PremierNomina Especial150.9 | S188: =S190 -> 0.111
L189: Pago Hipoteca+LiquidezAlto Valor | N189: =AND(D21=N6,G25>70%) -> FALSE | O189: Recuerda, el LTV máximo es de 70% | R189: No PremierNomina Especial200.9 | S189: 0.111
L190: =IF(D16="Premier","Alto Valor","") ->  | N190: =AND(D21=N6,D28>15) -> FALSE | O190: Introducir un plazo válido | R190: No PremierNomina Especial250.9 | S190: 0.111
L191: Normal
N192: =AND(D21=N7,D22<>O6,D22<>O8,H25<200000) -> FALSE | O192: El monto de crédito debe ser mayor a $200,000
O193: Seleccone un Tipo de Financiamiento Válido
N194: =AND(D22=O6,H25<100000) -> FALSE | O194: El monto de crédito debe ser mayor a $100,000
N195: =AND(D22=O8,H25<100000) -> FALSE | O195: El monto de crédito debe ser mayor a $100,000
N196: =AND(OR(D25=M5,D25=M4,D25=M6),D21=N8,D31=0) -> FALSE | O196: Introducir Monto de Hipoteca Actual
N197: =AND(D21=N8,D25=M4,D31<200000) -> FALSE | O197: Monto de Hipoteca Actual Debe Ser Mayor a $200,000
N198: =AND(D25=M4,D21=N8,D27-D31<10000) -> FALSE | O198: Monto de crédito solicitado debe ser al menos $10,000 mayor a la hipoteca actual
N199: =AND($D$21=$N$8,$G$25>85%) -> FALSE | O199: Recuerda, el LTV máximo es de 85%
N200: =AND(D21<>N7,D22<>O6,D22<>O8,H25<200000) -> FALSE | O200: El monto de crédito debe ser mayor a $200,000
T267: Pago de Hipoteca
T268: Liquidez

Sheet Amortización
V1: SI | X1: =Resumen!D28 -> 20 | AB1: =IF(X1=5,60,IF(X1=10,120,IF(X1=15,180,IF(X1=20,240)))) -> 240 | AE1: =V1&0 -> SI0
V2: NO | X2: =IF(E16=V1,3,0) -> 0 | AE2: =COUNT(F21:F320) -> 240 | AH2: verde?
G3: CREDITO HIPOTECARIO | AH3: =Resumen!N20 -> FALSE | AV3: CREDITO CI +CB
C4: Tabla de amortización | G4: Mensualidad | X4: Pago FijoSI
F5: =IF(E7="Pago de Hipoteca",E7&Resumen!D28&Resumen!O50,IF(E7&E9="AdquisicionPremier",Amortización!E7&Amortización!E9&Resumen!D28&90%,IF(E7&E9="LiquidezPremier",E7&E9&Resumen!D28&70%,E7&E9&Resumen!D28&Resumen!O50))) -> AdquisicionNo Premier200.85 | G5: plazo | H5: =E8&E11 -> Adquisicion | L5: =TODAY() -> 2026-02-24
C7: Datos Generales | E7: =IF(E8&E9=Resumen!N7&Resumen!L40,Resumen!N4,Amortización!E8) -> Adquisicion | H7: =IF(E10="CI+CB", "Datos del crédito HSBC - CI+CB", "Datos del crédito") -> Datos del crédito HSBC - CI+CB | U7: Producto | AK7: =K11/12 -> 20 | AL7: Plazo | AV7: Datos del crédito INFONAVIT - CI+CB
C8: Producto | E8: =Resumen!D21 -> Adquisicion | H8: Monto de Vivienda | K8: =Resumen!D26 -> 3500000 | M8: =IF(E16="SI","Intereses Diferidos","") ->  | Q8: =IF(E16="SI",MAX(0,(F24*3)-AG19),"") ->  | U8: Adquisicion | X8: Pago Fijo | AB8: AdquisicionNo Premier15Pago Fijo | AV8: Monto de Vivienda
C9: Tipo de cliente | E9: =Resumen!D16 -> No Premier | H9: Crédito | K9: =IF(H5="Pago Hipoteca+LiquidezPago de Hipoteca",Resumen!D31,IF(H5="Pago Hipoteca+LiquidezLiquidez",Resumen!H25-Resumen!D31,IF(E10=Resumen!O7,Resumen!G32,Resumen!H25))) -> 2082500 | M9: =IF(M8="","","Los prepagos liquidan inicialmente los intereses diferidos") ->  | U9: Pago de Hipoteca | X9: Pago Bajo | AB9: AdquisicionNo Premier20Pago Fijo | AK9: =C8&C9&AL7&H10 -> ProductoTipo de clientePlazoTasa anual | AQ9: Plazo&Tasa | AV9: Crédito | AY9: =IF(E10="CI+CB",Resumen!G33,0) -> 892500
C10: =IF(OR(E8=U11,E8=U10),"Esquema","Tipo de financiamiento") -> Tipo de financiamiento | E10: =IF(OR(E8=U11,E8=U10),"Pago Fijo",Resumen!D22) -> CI+CB | H10: Tasa anual | K10: =Resumen!G26 -> 0.1175 | U10: Liquidez | AB10: =K11/12 -> 20 | AK10: =E8&E9&AK7&K10 -> AdquisicionNo Premier200.1175 | AQ10: =AK7&K10 -> 200.1175 | AV10: Tasa anual | AY10: 0.1045
C11: =IF(E8=U11,"Tabla a simular","") ->  | H11: Plazo en meses | K11: =Resumen!$D$28*12 -> 240 | U11: Pago Hipoteca+Liquidez | AV11: Plazo en meses | AY11: =Resumen!$D$28*12 -> 240
H12: =Resumen!$F$19 -> C. Contratación Crédito | K12: =IF(H12="Comisión por apertura",Resumen!$G$19, Resumen!$G$19) -> 0.01 | U12: Exclusiva | AV12: Mensualidad | AY12: =MAX(BD21:BD260) -> 9624.33484
C13: Opciones de pago | H13: Gasto de Preoriginación - Avalúo Hipotecario | K13: =Resumen!G18 -> 12470 | U13: Apoyo Infonavit | V13: Apoyo InfonavitAdquisicion | AB13: Seguro de Daños | AE13: =VLOOKUP(Resumen!D18,Resumen!Q3:R39,2,0)/1000 -> 0.0003174 | AG13: 0.000292 | AH13: daños verde | AV13: Comisión por administración | AY13: 0.01
C14: =IF(E8=U10,"",IF(E8=U11,"",IF(E8=U9,"Esquema","Esquema"))) -> Esquema | E14: Pago Fijo | H14: Plazo para liquidación | K14: =IF(K9="-","-",COUNT($D$20:$D$320)) -> 240 | U14: Infonavit | AB14: Comisión por administración | AE14: =IF(OR(E8&E9="AdquisicionPremier",Resumen!D21=Resumen!N8),"0",IF(OR(E8="Exclusiva",E10="Apoyo Infonavit", E10= "Cofinavit",Resumen!N20="VERDADERO"),"0",IF(E8&E9="AdquisicionNo Premier",250,IF(OR(E8="Pago de Hipoteca",E8="nomina Especial"),"0",250)))) -> 250 | AG14: 0.37 | AH14: vida verde | AV14: Plazo para liquidación | AY14: =IF(AY9="-","-",COUNT($D$20:$D$320)) -> 240
C15: Tipo prepago | E15: Plazo | H15: ="Factor "&IF(E10="Pago Fijo","Pago Fijo",E14) -> Factor Pago Fijo | K15: =IF(E14=X9,VLOOKUP(AQ10,AQ17:AR89,2,0),PMT($K$10/12,$K$11,-1000)) -> 10.83707063 | U15: Apoyo Infonavit | AV15: ="Factor "&IF(AS10="Pago Fijo","Pago Fijo",AS14) -> Factor | AY15: =PMT($AY$10/12,$AY$11,-1000) -> 9.950235115
C16: =IF(C12="","",IF(E14=X9,"","Skip Payment")) ->  | E16: NO
C17: Ingreso mensual | E17: =IF(OR(Resumen!D21&Resumen!D22=Resumen!O60,Resumen!D21&Resumen!D22=Resumen!O61,Resumen!D21&Resumen!D22=Resumen!O62),MIN(IF(Resumen!D29="",0,Resumen!D29),3439.46*25),0) -> 0 | H17: CAT* | K17: =IF(ISERROR(((1+IRR(V20:V320))^(12))-1),"-",(((1+IRR(V20:V320))^(12))-1)) -> 0.1398392837 | AK17: AdquisicionPremier50.084 | AL17: 19.77 | AO17: 5 | AP17: =AP18-0.25% -> 0.0988 | AQ17: =AO17&AP17 -> 50.0988 | AR17: 20.48 | AV17: CAT* | AY17: =IF(ISERROR(((1+IRR(BK20:BK320))^(12))-1),"-",(((1+IRR(BK20:BK320))^(12))-1)) -> 0.1210483727
AK18: AdquisicionPremier50.084 | AL18: 19.77 | AO18: 10 | AP18: =AP19-0.25% -> 0.1013 | AQ18: =AO18&AP18 -> 100.1013 | AR18: 12.39
C19: Mes | D19: Saldo Inicial | E19: Pago a Capital | F19: Interes | G19: Seguro de Vida | H19: Seguro de Daños | I19: Comisión por Administración - Renta | J19: =IF(OR(E11=Resumen!N6,E8=Resumen!N6),"Iva Sobre Intereses","") ->  | K19: Pago Mensual Total | L19: Saldo Final | M19: Pago Anticipado | N19: Pago Anticipado a Capital | O19: C. Penalización Pago Anticipado | P19: IVA C. Penalización Pago Anticipado | Q19: Aportación Infonavit | R19: Tasa de Interes | U19: Flujo sin IVA | V19: Flujo CAT | X19: FACTOR | Y19: IVA | AG19: =SUM(M21:M320) -> 0 | AH19: Intereses diferidos por pagar | AI19: Prepago a saldo | AK19: AdquisicionPremier50.084 | AL19: 19.77 | AO19: 15 | AP19: =AP20 -> 0.1038 | AQ19: 150.1038 | AR19: 9.94 | AV19: Mes | AW19: Saldo Inicial | AX19: Pago a Capital | AY19: Intereses | AZ19: Seguro de Vida | BA19: Seguro de Daños | BB19: Comisión por Administración | BC19: =IF(OR(AX11=Resumen!BD6,AX8=Resumen!BD6),"Iva Intereses","") ->  | BD19: Mensualidad Total | BE19: Saldo Final | BF19: Prepago | BH19: Tasa de Interes | BK19: Flujo sin IVA
C20: 0 | K20: =IF(D20="","",E20+F20+G20+H20+I20) ->  | L20: =K9 -> 2082500 | T20: 0 | U20: =IF(ISNUMBER(K9),-K9,0)+IF(H12="Comisión por apertura",IF(ISNUMBER(K12),K12*K9,0),0)+IF(ISNUMBER(K13),K13/1.16,0)+IF(ISNUMBER(Resumen!G20),Resumen!G20/1.16) -> -2071750 | V20: =IF(ISNUMBER(K9),-K9,0)+IF(H12="C. Contratación Crédito",IF(ISNUMBER(K12),K12*K9,0),0)+IF(ISNUMBER(K13),K13/1.16,0)+IF(ISNUMBER(Resumen!G20),Resumen!G20/1.16) -> -2050925 | AG20: Prepago real | AH20: =IF(E16="no",0,K9*K10*3/12) -> 0 | AK20: AdquisicionPremier100.0865 | AL20: 11.61 | AO20: 20 | AP20: =AP21 -> 0.1038 | AQ20: 200.1038 | AR20: 8.76 | AV20: 0 | BD20: =IF(AW20="","",AX20+AY20+AZ20+BA20+BB20) ->  | BE20: =BD9 -> 0 | BJ20: 0 | BK20: =IF(ISNUMBER(AY9),-AY9,0)+IF(ISNUMBER(AY12),AY12,0)+IF(ISNUMBER(AY13),AY13/1.16,0)+IF(ISNUMBER(Resumen!AW20),Resumen!AW20/1.16) -> -882875.6565
C21: 1 | D21: =IF(K9="-","",K9) -> 2082500 | E21: =IF($E$16=$V$1,0,IF(D21="","",IF($E$14="Pago Fijo",MIN(IF($E$15="Mensualidad",-PMT(R21/12,$K$11-C20,D21)-F21,-PMT(R21/12,$K$11,$K$9)-F21),D21),MIN(X21*$K$9*$K$15/1000-F21,D21)))) -> 2177.053744 | F21: =IF($E$16=$V$1,0,IF(D21="","",D21*(R21/12))) -> 20391.14583 | G21: =IF($E$16=$V$1,0,IF(D21="","",L20*Resumen!$L$86/1000)) -> 916.3 | H21: =IF($E$16=$V$1,0,IF(D21="","",IF($E$11="Liquidez","0",AB21))) -> 777.63 | I21: =IF($E$16=$V$1,0,IF(D21="","",Amortización!$AE$14*1.16)) -> 290 | J21: =IFERROR(IF(OR($E$11=Resumen!$N$6,$E$8=Resumen!$N$6),Amortización!F21*0.16,0),"") -> 0 | K21: =IFERROR(IF(D21="","",E21+F21+G21+H21+I21+Y21+J21),0) -> 24552.12958 | L21: =IFERROR(IF(D21="","",IF((D21-E21-AI21-Q21)<1,0,D21-E21-AI21-Q21)),0) -> 2080322.946 | N21: =IF(OR(O21="",O21=0),M21,M21-O21-P21) -> 0 | O21: =IF(M21="","",IF(AND($H$12="C. Penalización Pago Anticipado",C21<=60),M21-(M21/(1+$K$12)),0)) ->  | P21: =IF(O21="","",IF(O21=0,0,O21*0.16)) ->  | R21: =IF(D21="","",Resumen!$G$26) -> 0.1175 | T21: =IF(ISNUMBER(T20),IF($K$11>=T20+1,T20+1,""),"") -> 1 | U21: =IF(D21="","",E21+F21+G21+H21/1.16+(I21/1.16)+Q21) -> 24404.87027 | V21: =IF($E$16=$V$1,AI21,IF(ISNUMBER(T21),IF($E$14="Pago Fijo",PMT(R21/12,$K$11,-$K$9),X21*$K$15*$K$9/1000)+G21+AI21+Q21+H21/1.16+$AE$14,0)) -> 24404.87027 | X21: 1 | Y21: 0 | AB21: =IF((($K$8*0.7)*($AE$13))>L20*($AE$13),($K$8*0.7)*($AE$13),($AE$13)*L20) -> 777.63 | AG21: =IF($AH$20=0,0,IF(N21>AH20,MAX(0,N21-AH20),N21)) -> 0 | AH21: =IFERROR(MAX(0,AH20-N21),0) -> 0 | AI21: =IF($E$16="no",N21,IF(AH21>0,0,AG21)) -> 0 | AK21: AdquisicionPremier100.0865 | AL21: 11.61 | AO21: 25 | AP21: 0.1038 | AQ21: 250.1038 | AR21: 8.71 | AV21: 1 | AW21: =IF(AY9="-","",AY9) -> 892500 | AX21: =IF($E$16=$V$1,0,IF(AW21="","",PMT($AY$10/12,$AY$11,-$AW$21)-AY21)) -> 1108.39734 | AY21: =IF($E$16=$V$1,0,IF(AW21="","",AW21*(BH21/12))) -> 7772.1875 | AZ21: =IF($E$16=$V$1,0,IF(AW21="","",BE20*0/1000)) -> 0 | BA21: =IF($E$16=$V$1,0,IF(AW21="","",IF($E$11="Liquidez","0",0))) -> 0 | BB21: =IF($E$16=$V$1,0,IF(AW21="","",AW21*$AY$13/12)) -> 743.75 | BC21: =IFERROR(IF(OR($E$11=Resumen!$N$6,$E$8=Resumen!$N$6),Amortización!AY21*0.16,0),"") -> 0 | BD21: =IFERROR(IF(AW21="","",AX21+AY21+AZ21+BA21+BB21+BC21),0) -> 9624.33484 | BE21: =IFERROR(IF(AW21="","",IF((AW21-AX21-BY21)<1,0,AW21-AX21-BY21)),0) -> 891391.6027 | BF21: =IF(OR(BE20=0,BE20=""),"",0) ->  | BH21: =IF(AW21="","",$AY$10) -> 0.1045 | BJ21: =IF(ISNUMBER(BJ20),IF($K$11>=BJ20+1,BJ20+1,""),"") -> 1 | BK21: =IF(AW21="","",AX21+AY21+AZ21+BA21/1.16+BB21/1.16) -> 9521.748633
C22: =IF(OR(L21="",L21=0),"",IF(C21+1>$K$11+$X$2,"",C21+1)) -> 2 | D22: =IF(IF(D21="","",D21-E21-Q21-AI21)<0.01,"",IF(D21="","",L21)) -> 2080322.946 | E22: =IF($E$16=$V$1,0,IF(D22="","",IF($E$14="Pago Fijo",MIN(IF($E$15="Mensualidad",-PMT(R22/12,$K$11-C21,D22)-F22,-PMT(R22/12,$K$11,$K$9)-F22),D22),MIN(X22*$K$9*$K$15/1000-F22,D22)))) -> 2198.370729 | F22: =IF($E$16=$V$1,0,IF(D22="","",D22*(R22/12))) -> 20369.82885 | G22: =IF($E$16=$V$1,0,IF(D22="","",L21*Resumen!$L$86/1000)) -> 915.3420964 | H22: =IF($E$16=$V$1,0,IF(D22="","",IF($E$11="Liquidez","0",AB22))) -> 777.63 | I22: =IF($E$16=$V$1,0,IF(D22="","",Amortización!$AE$14*1.16)) -> 290 | J22: =IFERROR(IF(OR($E$11=Resumen!$N$6,$E$8=Resumen!$N$6),Amortización!F22*0.16,0),"") -> 0 | K22: =IFERROR(IF(D22="","",E22+F22+G22+H22+I22+Y22+J22),0) -> 24551.17167 | L22: =IFERROR(IF(D22="","",IF((D22-E22-AI22-Q22)<1,0,D22-E22-AI22-Q22)),0) -> 2078124.576 | N22: =IF(OR(O22="",O22=0),M22,M22-O22-P22) -> 0 | O22: =IF(M22="","",IF(AND($H$12="C. Penalización Pago Anticipado",C22<=60),M22-(M22/(1+$K$12)),0)) ->  | P22: =IF(O22="","",IF(O22=0,0,O22*0.16)) ->  | Q22: =IF(OR(L21=0,L21=""),"",IF(E22>=D22,0,$E$17*10%)) -> 0 | R22: =IF(D22="","",R21) -> 0.1175 | T22: =C22 -> 2 | U22: =IF(D22="","",E22+F22+G22+H22/1.16+(I22/1.16)+Q22) -> 24403.91236 | V22: =IF($E$16=$V$1,AI22,IF(ISNUMBER(T22),IF($E$14="Pago Fijo",PMT(R22/12,$K$11,-$K$9),X22*$K$15*$K$9/1000)+G22+AI22+Q22+H22/1.16+$AE$14,0)) -> 24403.91236 | X22: 1 | Y22: 0 | AB22: =IF((($K$8*0.7)*($AE$13))>L21*($AE$13),($K$8*0.7)*($AE$13),($AE$13)*L21) -> 777.63 | AG22: =IF($AH$20=0,0,IF(N22>AH21,MAX(0,N22-AH21),N22)) -> 0 | AH22: =IFERROR(MAX(0,AH21-N22),0) -> 0 | AI22: =IF($E$16="no",N22,IF(AH22>0,0,AG22)) -> 0 | AK22: AdquisicionPremier100.0865 | AL22: 11.61 | AO22: 5 | AP22: =AP23-0.25% -> 0.0995 | AQ22: 50.0995 | AR22: 20.51 | AV22: =IF(OR(BE21="",BE21=0),"",IF(AV21+1>$K$11+$X$2,"",AV21+1)) -> 2 | AW22: =IF(IF(AW21="","",AW21-AX21-BM21-BY21)<0.01,"",IF(AW21="","",BE21)) -> 891391.6027 | AX22: =IF($E$16=$V$1,0,IF(AW22="","",PMT($AY$10/12,$AY$11,-$AW$21)-AY22)) -> 1118.049634 | AY22: =IF($E$16=$V$1,0,IF(AW22="","",AW22*(BH22/12))) -> 7762.535206 | AZ22: =IF($E$16=$V$1,0,IF(AW22="","",BE21*0/1000)) -> 0 | BA22: =IF($E$16=$V$1,0,IF(AW22="","",IF($E$11="Liquidez","0",0))) -> 0 | BB22: =IF($E$16=$V$1,0,IF(AW22="","",AW22*$AY$13/12)) -> 742.8263355 | BC22: =IFERROR(IF(OR($E$11=Resumen!$N$6,$E$8=Resumen!$N$6),Amortización!AY22*0.16,0),"") -> 0 | BD22: =IFERROR(IF(AW22="","",AX22+AY22+AZ22+BA22+BB22+BC22),0) -> 9623.411176 | BE22: 890273.553 | BF22: 0 | BH22: =IF(AW22="","",BH21) -> 0.1045 | BJ22: =AV22 -> 2 | BK22: =IF(AW22="","",AX22+AY22+AZ22+BA22/1.16+BB22/1.16) -> 9520.952371
C23: 3 | D23: =IF(IF(D22="","",D22-E22-Q22-AI22)<0.01,"",IF(D22="","",L22)) -> 2078124.576 | E23: =IF($E$16=$V$1,0,IF(D23="","",IF($E$14="Pago Fijo",MIN(IF($E$15="Mensualidad",-PMT(R23/12,$K$11-C22,D23)-F23,-PMT(R23/12,$K$11,$K$9)-F23),D23),MIN(X23*$K$9*$K$15/1000-F23,D23)))) -> 2219.896442 | F23: =IF($E$16=$V$1,0,IF(D23="","",D23*(R23/12))) -> 20348.30314 | G23: =IF($E$16=$V$1,0,IF(D23="","",L22*Resumen!$L$86/1000)) -> 914.3748132 | H23: 777.63 | I23: =IF($E$16=$V$1,0,IF(D23="","",Amortización!$AE$14*1.16)) -> 290 | J23: =IFERROR(IF(OR($E$11=Resumen!$N$6,$E$8=Resumen!$N$6),Amortización!F23*0.16,0),"") -> 0 | K23: 24550.20439 | L23: 2075904.679 | N23: 0 | O23: =IF(M23="","",IF(AND($H$12="C. Penalización Pago Anticipado",C23<=60),M23-(M23/(1+$K$12)),0)) ->  | R23: 0.1175 | T23: 3 | U23: =IF(D23="","",E23+F23+G23+H23/1.16+(I23/1.16)+Q23) -> 24402.94508 | V23: 24402.94508 | X23: 1 | Y23: 0 | AB23: 777.63 | AG23: 0 | AH23: 0 | AI23: 0 | AK23: AdquisicionPremier150.089 | AL23: 9.09 | AO23: 10 | AP23: =AP24-0.25% -> 0.102 | AQ23: 100.102 | AR23: 12.42 | AV23: 3 | AW23: 890273.553 | AX23: 1127.785983 | AY23: =IF($E$16=$V$1,0,IF(AW23="","",AW23*(BH23/12))) -> 7752.798858 | AZ23: 0 | BA23: 0 | BB23: 741.8946275 | BC23: =IFERROR(IF(OR($E$11=Resumen!$N$6,$E$8=Resumen!$N$6),Amortización!AY23*0.16,0),"") -> 0 | BD23: 9622.479468 | BE23: 889145.767 | BF23: 0 | BH23: 0.1045 | BJ23: 3 | BK23: 9520.149174
C24: 4 | D24: 2075904.679 | E24: =IFERROR(IF($E$14&$E$16=$X$4,PMT(R24/12,$K$11,-$K$9)-F24,IF(D24="","",IF($E$14="Pago Fijo",MIN(IF($E$15="Mensualidad",-PMT(R24/12,$K$11-C23,D24)-F24,-PMT(R24/12,$K$11,$K$9)-F24),D24),MIN(X24*$K$9*$K$15/1000-F24,D24)))),0) -> 2241.632928 | F24: =IF(D24="","",D24*(R24/12)) -> 20326.56665 | G24: =IF(D24="","",L23*Resumen!$L$86/1000) -> 913.3980588 | H24: 777.63 | I24: =IF($E$16=$V$1,0,IF(D24="","",Amortización!$AE$14*1.16)) -> 290 | J24: =IFERROR(IF(OR($E$11=Resumen!$N$6,$E$8=Resumen!$N$6),Amortización!F24*0.16,0),"") -> 0 | K24: 24549.22764 | L24: =IFERROR(IF(D24="","",IF((D24-E24-AI24-Q24)<1,0,D24-E24-AI24-Q24)),0) -> 2073663.046 | N24: 0 | O24: =IF(M24="","",IF(AND($H$12="C. Penalización Pago Anticipado",C24<=60),M24-(M24/(1+$K$12)),0)) ->  | Q24: =IF(OR(L23=0,L23=""),"",IF(E24>=D24,0,$E$17*10%)) -> 0 | R24: 0.1175 | T24: 4 | U24: =IF(D24="","",E24+F24+G24+H24/1.16+(I24/1.16)+Q24) -> 24401.96833 | V24: 24401.96833 | X24: 1 | Y24: 0 | AB24: 777.63 | AG24: 0 | AH24: 0 | AI24: 0 | AK24: AdquisicionPremier150.089 | AL24: 9.09 | AO24: 15 | AP24: =AP25 -> 0.1045 | AQ24: 150.1045 | AR24: 9.98 | AV24: 4 | AW24: 889145.767 | AX24: 1137.607119 | AY24: =IF(AW24="","",AW24*(BH24/12)) -> 7742.977721 | AZ24: 0 | BA24: 0 | BB24: 740.9548059 | BC24: =IFERROR(IF(OR($E$11=Resumen!$N$6,$E$8=Resumen!$N$6),Amortización!AY24*0.16,0),"") -> 0 | BD24: 9621.539646 | BE24: 888008.1599 | BF24: 0 | BH24: 0.1045 | BJ24: 4 | BK24: 9519.338983
C25: 5 | D25: 2073663.046 | E25: =IFERROR(IF($E$14&$E$16=$X$4,PMT(R25/12,$K$11,-$K$9)-F25,IF(D25="","",IF($E$14="Pago Fijo",MIN(IF($E$15="Mensualidad",-PMT(R25/12,$K$11-C24,D25)-F25,-PMT(R25/12,$K$11,$K$9)-F25),D25),MIN(X25*$K$9*$K$15/1000-F25,D25)))),0) -> 2263.582251 | F25: =IF(D25="","",D25*(R25/12)) -> 20304.61733 | G25: =IF(D25="","",L24*Resumen!$L$86/1000) -> 912.4117403 | H25: 777.63 | I25: =IF($E$16=$V$1,0,IF(D25="","",Amortización!$AE$14*1.16)) -> 290 | J25: =IFERROR(IF(OR($E$11=Resumen!$N$6,$E$8=Resumen!$N$6),Amortización!F25*0.16,0),"") -> 0 | K25: 24548.24132 | L25: 2071399.464 | N25: 0 | R25: 0.1175 | T25: 5 | U25: 24400.98201 | V25: 24400.98201 | X25: 1 | Y25: 0 | AB25: 777.63 | AG25: 0 | AH25: 0 | AI25: 0 | AK25: AdquisicionPremier150.089 | AL25: 9.09 | AO25: 20 | AP25: =AP26 -> 0.1045 | AQ25: 200.1045 | AR25: 8.8 | AV25: 5 | AW25: 888008.1599 | AX25: 1147.513781 | AY25: 7733.071059 | AZ25: 0 | BA25: 0 | BB25: 740.0067999 | BC25: =IFERROR(IF(OR($E$11=Resumen!$N$6,$E$8=Resumen!$N$6),Amortización!AY25*0.16,0),"") -> 0 | BD25: 9620.59164 | BE25: 886860.6461 | BF25: 0 | BH25: 0.1045 | BJ25: 5 | BK25: 9518.521737
C26: 6 | D26: 2071399.464 | E26: 2285.746493 | F26: 20282.45308 | G26: =IF(D26="","",L25*Resumen!$L$86/1000) -> 911.4157641 | H26: 777.63 | I26: =IF($E$16=$V$1,0,IF(D26="","",Amortización!$AE$14*1.16)) -> 290 | J26: =IFERROR(IF(OR($E$11=Resumen!$N$6,$E$8=Resumen!$N$6),Amortización!F26*0.16,0),"") -> 0 | K26: 24547.24534 | L26: 2069113.717 | N26: 0 | Q26: =IF(OR(L25=0,L25=""),"",IF(E26>=D26,0,$E$17*10%)) -> 0 | R26: 0.1175 | T26: 6 | U26: 24399.98603 | V26: 24399.98603 | X26: 1 | Y26: 0 | AB26: 777.63 | AG26: 0 | AH26: 0 | AI26: 0 | AK26: AdquisicionPremier200.089 | AL26: 7.84 | AO26: 25 | AP26: 0.1045 | AQ26: =AO26&AP26 -> 250.1045 | AR26: 8.76 | AV26: 6 | AW26: 886860.6461 | AX26: 1157.506714 | AY26: 7723.078127 | AZ26: 0 | BA26: 0 | BB26: 739.0505385 | BC26: =IFERROR(IF(OR($E$11=Resumen!$N$6,$E$8=Resumen!$N$6),Amortización!AY26*0.16,0),"") -> 0 | BD26: 9619.635379 | BE26: 885703.1394 | BF26: 0 | BH26: 0.1045 | BJ26: 6 | BK26: 9517.697374
C27: 7 | D27: 2069113.717 | E27: 2308.127761 | F27: 20260.07182 | G27: =IF(D27="","",L26*Resumen!$L$86/1000) -> 910.4100357 | H27: 777.63 | I27: =IF($E$16=$V$1,0,IF(D27="","",Amortización!$AE$14*1.16)) -> 290 | J27: =IFERROR(IF(OR($E$11=Resumen!$N$6,$E$8=Resumen!$N$6),Amortización!F27*0.16,0),"") -> 0 | K27: 24546.23961 | L27: 2066805.59 | N27: 0 | R27: 0.1175 | T27: 7 | U27: 24398.9803 | V27: 24398.9803 | X27: 1 | Y27: 0 | AB27: 777.63 | AG27: 0 | AH27: 0 | AI27: 0 | AK27: AdquisicionPremier200.089 | AL27: 7.84 | AO27: 5 | AP27: =AP31-0.25% -> 0.106 | AQ27: 50.106 | AR27: 20.83 | AV27: 7 | AW27: 885703.1394 | AX27: 1167.586668 | AY27: 7712.998173 | AZ27: 0 | BA27: 0 | BB27: 738.0859495 | BC27: =IFERROR(IF(OR($E$11=Resumen!$N$6,$E$8=Resumen!$N$6),Amortización!AY27*0.16,0),"") -> 0 | BD27: 9618.67079 | BE27: 884535.5528 | BF27: 0 | BH27: 0.1045 | BJ27: 7 | BK27: 9516.865831
C28: 8 | D28: 2066805.59 | E28: 2330.728179 | F28: 20237.4714 | G28: =IF(D28="","",L27*Resumen!$L$86/1000) -> 909.3944594 | H28: 777.63 | I28: =IF($E$16=$V$1,0,IF(D28="","",Amortización!$AE$14*1.16)) -> 290 | J28: =IFERROR(IF(OR($E$11=Resumen!$N$6,$E$8=Resumen!$N$6),Amortización!F28*0.16,0),"") -> 0 | K28: 24545.22404 | L28: 2064474.861 | N28: 0 | Q28: =IF(OR(L27=0,L27=""),"",IF(E28>=D28,0,$E$17*10%)) -> 0 | R28: 0.1175 | T28: 8 | U28: 24397.96473 | V28: 24397.96473 | X28: 1 | Y28: 0 | AB28: 777.63 | AG28: 0 | AH28: 0 | AI28: 0 | AK28: AdquisicionPremier200.089 | AL28: 7.84 | AO28: 5 | AP28: =AP32-0.25% -> 0.106 | AQ28: 50.106 | AR28: 20.83 | AV28: 8 | AW28: 884535.5528 | AX28: 1177.754402 | AY28: 7702.830439 | AZ28: 0 | BA28: 0 | BB28: 737.1129606 | BC28: =IFERROR(IF(OR($E$11=Resumen!$N$6,$E$8=Resumen!$N$6),Amortización!AY28*0.16,0),"") -> 0 | BD28: 9617.697801 | BE28: 883357.7984 | BF28: 0 | BH28: 0.1045 | BJ28: 8 | BK28: 9516.027048
C29: 9 | D29: 2064474.861 | E29: 2353.549892 | F29: 20214.64969 | G29: =IF(D29="","",L28*Resumen!$L$86/1000) -> 908.368939 | H29: 777.63 | I29: =IF($E$16=$V$1,0,IF(D29="","",Amortización!$AE$14*1.16)) -> 290 | J29: =IFERROR(IF(OR($E$11=Resumen!$N$6,$E$8=Resumen!$N$6),Amortización!F29*0.16,0),"") -> 0 | K29: 24544.19852 | L29: 2062121.312 | N29: 0 | R29: 0.1175 | T29: 9 | U29: 24396.93921 | V29: 24396.93921 | X29: 1 | Y29: 0 | AB29: 777.63 | AG29: 0 | AH29: 0 | AI29: 0 | AK29: AdquisicionNo Premier50.084 | AL29: 19.77 | AO29: 5 | AP29: 0.1125 | AQ29: 50.1125 | AR29: 21.15 | AV29: 9 | AW29: 883357.7984 | AX29: 1188.01068 | AY29: 7692.574161 | AZ29: 0 | BA29: 0 | BB29: 736.1314986 | BC29: =IFERROR(IF(OR($E$11=Resumen!$N$6,$E$8=Resumen!$N$6),Amortización!AY29*0.16,0),"") -> 0 | BD29: 9616.716339 | BE29: 882169.7877 | BF29: 0 | BH29: 0.1045 | BJ29: 9 | BK29: 9515.18096
C30: 10 | D30: 2062121.312 | E30: 2376.595068 | F30: 20191.60451 | G30: =IF(D30="","",L29*Resumen!$L$86/1000) -> 907.3333771 | H30: 777.63 | I30: =IF($E$16=$V$1,0,IF(D30="","",Amortización!$AE$14*1.16)) -> 290 | J30: =IFERROR(IF(OR($E$11=Resumen!$N$6,$E$8=Resumen!$N$6),Amortización!F30*0.16,0),"") -> 0 | K30: 24543.16295 | L30: 2059744.717 | N30: 0 | Q30: =IF(OR(L29=0,L29=""),"",IF(E30>=D30,0,$E$17*10%)) -> 0 | R30: 0.1175 | T30: 10 | U30: 24395.90364 | V30: 24395.90364 | X30: 1 | Y30: 0 | AB30: 777.63 | AG30: 0 | AH30: 0 | AI30: 0 | AK30: AdquisicionNo Premier50.086 | AL30: 19.87 | AO30: 5 | AP30: 0.1175 | AQ30: 50.1175 | AR30: 21.39 | AV30: 10 | AW30: 882169.7877 | AX30: 1198.356273 | AY30: 7682.228568 | AZ30: 0 | BA30: 0 | BB30: 735.1414897 | BC30: =IFERROR(IF(OR($E$11=Resumen!$N$6,$E$8=Resumen!$N$6),Amortización!AY30*0.16,0),"") -> 0 | BD30: 9615.72633 | BE30: 880971.4314 | BF30: 0 | BH30: 0.1045 | BJ30: 10 | BK30: 9514.327504
C31: 11 | D31: 2059744.717 | E31: 2399.865895 | F31: 20168.33368 | G31: =IF(D31="","",L30*Resumen!$L$86/1000) -> 906.2876753 | H31: 777.63 | I31: =IF($E$16=$V$1,0,IF(D31="","",Amortización!$AE$14*1.16)) -> 290 | J31: =IFERROR(IF(OR($E$11=Resumen!$N$6,$E$8=Resumen!$N$6),Amortización!F31*0.16,0),"") -> 0 | K31: 24542.11725 | L31: 2057344.851 | N31: 0 | R31: 0.1175 | T31: 11 | U31: 24394.85794 | V31: 24394.85794 | X31: 1 | Y31: 0 | AB31: 777.63 | AG31: 0 | AH31: 0 | AI31: 0 | AK31: AdquisicionNo Premier50.088 | AL31: 19.96 | AO31: 10 | AP31: =AP35-0.25% -> 0.1085 | AQ31: 100.1085 | AR31: 12.77 | AV31: 11 | AW31: 880971.4314 | AX31: 1208.791959 | AY31: 7671.792882 | AZ31: 0 | BA31: 0 | BB31: 734.1428595 | BC31: =IFERROR(IF(OR($E$11=Resumen!$N$6,$E$8=Resumen!$N$6),Amortización!AY31*0.16,0),"") -> 0 | BD31: 9614.7277 | BE31: 879762.6394 | BF31: 0 | BH31: 0.1045 | BJ31: 11 | BK31: 9513.466616
C32: 12 | D32: 2057344.851 | E32: 2423.364582 | F32: 20144.835 | G32: =IF(D32="","",L31*Resumen!$L$86/1000) -> 905.2317343 | H32: 777.63 | I32: =IF($E$16=$V$1,0,IF(D32="","",Amortización!$AE$14*1.16)) -> 290 | J32: =IFERROR(IF(OR($E$11=Resumen!$N$6,$E$8=Resumen!$N$6),Amortización!F32*0.16,0),"") -> 0 | K32: 24541.06131 | L32: 2054921.486 | N32: 0 | Q32: =IF(OR(L31=0,L31=""),"",IF(E32>=D32,0,$E$17*10%)) -> 0 | R32: 0.1175 | T32: 12 | U32: 24393.802 | V32: 24393.802 | X32: 1 | Y32: 0 | AB32: 777.63 | AG32: 0 | AH32: 0 | AI32: 0 | AK32: AdquisicionNo Premier50.0915 | AL32: 20.13 | AO32: 10 | AP32: =AP36-0.25% -> 0.1085 | AQ32: 100.1085 | AR32: 12.77 | AV32: 12 | AW32: 879762.6394 | AX32: 1219.318522 | AY32: 7661.266319 | AZ32: 0 | BA32: 0 | BB32: 733.1355329 | BC32: =IFERROR(IF(OR($E$11=Resumen!$N$6,$E$8=Resumen!$N$6),Amortización!AY32*0.16,0),"") -> 0 | BD32: 9613.720373 | BE32: 878543.3209 | BF32: 0 | BH32: 0.1045 | BJ32: 12 | BK32: 9512.598231
C33: 13 | D33: 2054921.486 | E33: =IFERROR(IF($E$14&$E$16=$X$4,PMT(R33/12,$K$11,-$K$9)-F33,IF(D33="","",IF($E$14="Pago Fijo",MIN(IF($E$15="Mensualidad",-PMT(R33/12,$K$11-C32,D33)-F33,-PMT(R33/12,$K$11,$K$9)-F33),D33),MIN(X33*$K$9*$K$15/1000-F33,D33)))),0) -> 2447.09336 | F33: 20121.10622 | G33: =IF(D33="","",L32*Resumen!$L$86/1000) -> 904.1654539 | H33: 777.63 | I33: =IF($E$16=$V$1,0,IF(D33="","",Amortización!$AE$14*1.16)) -> 290 | J33: =IFERROR(IF(OR($E$11=Resumen!$N$6,$E$8=Resumen!$N$6),Amortización!F33*0.16,0),"") -> 0 | K33: 24539.99503 | L33: 2052474.393 | N33: 0 | R33: =IF(D33="","",R32)-IF(E8&E9&AB10&E14=AB8,0%,IF(E8&E9&AB10&E14=AB9,0%,0))+IF(E10&E8=V13,0%,0) -> 0.1175 | T33: 13 | U33: 24392.73572 | V33: 24392.73572 | X33: =IF($E$16=$V$1,1,IF(OR(AND($E$8="Adquisicion",$E$9="Premier"),AND($E$8="Exclusiva",$E$9="Premier"),AND($E$8="Nomina Especial",$E$9="Premier")),X23*1.019,IF(OR(AND($E$8="Adquisicion",$E$9="No Premier"),AND($E$8="Exclusiva",$E$9="No Premier"),AND($E$8="Nomina Especial",$E$9="No Premier")),X23*1.019,IF($E$8="Pago de Hipoteca",X21*1.019)))) -> 1.019 | Y33: 0 | AB33: 777.63 | AG33: 0 | AH33: 0 | AI33: 0 | AK33: AdquisicionNo Premier100.0865 | AL33: 11.61 | AO33: 10 | AP33: 0.115 | AQ33: 100.115 | AR33: 13.13 | AV33: 13 | AW33: 878543.3209 | AX33: 1229.936754 | AY33: 7650.648086 | AZ33: 0 | BA33: 0 | BB33: 732.1194341 | BC33: =IFERROR(IF(OR($E$11=Resumen!$N$6,$E$8=Resumen!$N$6),Amortización!AY33*0.16,0),"") -> 0 | BD33: 9612.704274 | BE33: 877313.3842 | BF33: 0 | BH33: =IF(AW33="","",BH32)-IF(AX8&AX9&BR10&AX14=BR8,0%,IF(AX8&AX9&BR10&AX14=BR9,0%,0))+IF(AX10&AX8=BL13,0%,0) -> 0.1045 | BJ33: 13 | BK33: 9511.722284
C34: 14 | D34: 2052474.393 | E34: 2471.054483 | F34: 20097.14509 | G34: =IF(D34="","",L33*Resumen!$L$86/1000) -> 903.0887328 | H34: 777.63 | I34: =IF($E$16=$V$1,0,IF(D34="","",Amortización!$AE$14*1.16)) -> 290 | J34: =IFERROR(IF(OR($E$11=Resumen!$N$6,$E$8=Resumen!$N$6),Amortización!F34*0.16,0),"") -> 0 | K34: 24538.91831 | L34: 2050003.338 | N34: 0 | Q34: =IF(OR(L33=0,L33=""),"",IF(E34>=D34,0,$E$17*10%)) -> 0 | R34: =IF(D34="","",R33) -> 0.1175 | T34: 14 | U34: 24391.659 | V34: 24391.659 | X34: =IF($E$16=$V$1,1,IF(OR(AND($E$8="Adquisicion",$E$9="Premier"),AND($E$8="Exclusiva",$E$9="Premier"),AND($E$8="Nomina Especial",$E$9="Premier")),X24*1.019,IF(OR(AND($E$8="Adquisicion",$E$9="No Premier"),AND($E$8="Exclusiva",$E$9="No Premier"),AND($E$8="Nomina Especial",$E$9="No Premier")),X24*1.019,IF($E$8="Pago de Hipoteca",X22*1.019)))) -> 1.019 | Y34: 0 | AB34: 777.63 | AG34: 0 | AH34: 0 | AI34: 0 | AK34: AdquisicionNo Premier100.0885 | AL34: 11.71 | AO34: 10 | AP34: 0.12 | AQ34: 100.12 | AR34: 13.41 | AV34: 14 | AW34: 877313.3842 | AX34: 1240.647453 | AY34: 7639.937387 | AZ34: 0 | BA34: 0 | BB34: 731.0944868 | BC34: =IFERROR(IF(OR($E$11=Resumen!$N$6,$E$8=Resumen!$N$6),Amortización!AY34*0.16,0),"") -> 0 | BD34: 9611.679327 | BE34: 876072.7367 | BF34: 0 | BH34: =IF(AW34="","",BH33) -> 0.1045 | BJ34: 14 | BK34: 9510.838708
C35: 15 | D35: 2050003.338 | E35: 2495.250224 | F35: 20072.94935 | G35: =IF(D35="","",L34*Resumen!$L$86/1000) -> 902.0014688 | H35: 777.63 | I35: =IF($E$16=$V$1,0,IF(D35="","",Amortización!$AE$14*1.16)) -> 290 | J35: =IFERROR(IF(OR($E$11=Resumen!$N$6,$E$8=Resumen!$N$6),Amortización!F35*0.16,0),"") -> 0 | K35: 24537.83105 | L35: 2047508.088 | N35: 0 | R35: 0.1175 | T35: 15 | U35: 24390.57174 | V35: 24390.57174 | X35: =IF($E$16=$V$1,1,IF(OR(AND($E$8="Adquisicion",$E$9="Premier"),AND($E$8="Exclusiva",$E$9="Premier"),AND($E$8="Nomina Especial",$E$9="Premier")),X25*1.019,IF(OR(AND($E$8="Adquisicion",$E$9="No Premier"),AND($E$8="Exclusiva",$E$9="No Premier"),AND($E$8="Nomina Especial",$E$9="No Premier")),X25*1.019,IF($E$8="Pago de Hipoteca",X23*1.019)))) -> 1.019 | Y35: 0 | AB35: 777.63 | AG35: 0 | AH35: 0 | AI35: 0 | AK35: AdquisicionNo Premier100.0905 | AL35: 11.81 | AO35: 15 | AP35: =AP39 -> 0.111 | AQ35: 150.111 | AR35: 10.37 | AV35: 15 | AW35: 876072.7367 | AX35: 1251.451425 | AY35: 7629.133416 | AZ35: 0 | BA35: 0 | BB35: 730.0606139 | BC35: =IFERROR(IF(OR($E$11=Resumen!$N$6,$E$8=Resumen!$N$6),Amortización!AY35*0.16,0),"") -> 0 | BD35: 9610.645454 | BE35: 874821.2853 | BF35: 0 | BH35: 0.1045 | BJ35: 15 | BK35: 9509.947439
C36: 16 | D36: 2047508.088 | E36: 2519.682883 | F36: 20048.51669 | G36: =IF(D36="","",L35*Resumen!$L$86/1000) -> 900.9035587 | H36: 777.63 | I36: =IF($E$16=$V$1,0,IF(D36="","",Amortización!$AE$14*1.16)) -> 290 | J36: =IFERROR(IF(OR($E$11=Resumen!$N$6,$E$8=Resumen!$N$6),Amortización!F36*0.16,0),"") -> 0 | K36: 24536.73314 | L36: 2044988.405 | N36: 0 | Q36: =IF(OR(L35=0,L35=""),"",IF(E36>=D36,0,$E$17*10%)) -> 0 | R36: 0.1175 | T36: 16 | U36: 24389.47383 | V36: 24389.47383 | X36: =IF(OR(AND($E$8="Adquisicion",$E$9="Premier"),AND($E$8="Exclusiva",$E$9="Premier"),AND($E$8="Nomina Especial",$E$9="Premier")),X24*1.019,IF(OR(AND($E$8="Adquisicion",$E$9="No Premier"),AND($E$8="Exclusiva",$E$9="No Premier"),AND($E$8="Nomina Especial",$E$9="No Premier")),X24*1.019,IF($E$8="Pago de Hipoteca",X24*1.019))) -> 1.019 | Y36: 0 | AB36: 777.63 | AG36: 0 | AH36: 0 | AI36: 0 | AK36: AdquisicionNo Premier100.094 | AL36: 12 | AO36: 15 | AP36: =AP40 -> 0.111 | AQ36: 150.111 | AR36: 10.37 | AV36: 16 | AW36: 874821.2853 | AX36: 1262.349481 | AY36: 7618.235359 | AZ36: 0 | BA36: 0 | BB36: 729.0177377 | BC36: =IFERROR(IF(OR($E$11=Resumen!$N$6,$E$8=Resumen!$N$6),Amortización!AY36*0.16,0),"") -> 0 | BD36: 9609.602578 | BE36: 873558.9358 | BF36: 0 | BH36: 0.1045 | BJ36: 16 | BK36: 9509.048407
C37: 17 | D37: 2044988.405 | E37: 2544.354778 | F37: 20023.8448 | G37: =IF(D37="","",L36*Resumen!$L$86/1000) -> 899.7948982 | H37: 777.63 | I37: =IF($E$16=$V$1,0,IF(D37="","",Amortización!$AE$14*1.16)) -> 290 | J37: =IFERROR(IF(OR($E$11=Resumen!$N$6,$E$8=Resumen!$N$6),Amortización!F37*0.16,0),"") -> 0 | K37: 24535.62448 | L37: 2042444.05 | N37: 0 | R37: 0.1175 | T37: 17 | U37: 24388.36517 | V37: 24388.36517 | X37: =IF(OR(AND($E$8="Adquisicion",$E$9="Premier"),AND($E$8="Exclusiva",$E$9="Premier"),AND($E$8="Nomina Especial",$E$9="Premier")),X25*1.019,IF(OR(AND($E$8="Adquisicion",$E$9="No Premier"),AND($E$8="Exclusiva",$E$9="No Premier"),AND($E$8="Nomina Especial",$E$9="No Premier")),X25*1.019,IF($E$8="Pago de Hipoteca",X25*1.019))) -> 1.019 | Y37: 0 | AB37: 777.63 | AG37: 0 | AH37: 0 | AI37: 0 | AK37: AdquisicionNo Premier150.089 | AL37: 9.09 | AO37: 15 | AP37: 0.1175 | AQ37: 150.1175 | AR37: 10.77 | AV37: 17 | AW37: 873558.9358 | AX37: 1273.342441 | AY37: 7607.242399 | AZ37: 0 | BA37: 0 | BB37: 727.9657798 | BC37: =IFERROR(IF(OR($E$11=Resumen!$N$6,$E$8=Resumen!$N$6),Amortización!AY37*0.16,0),"") -> 0 | BD37: 9608.55062 | BE37: 872285.5934 | BF37: 0 | BH37: 0.1045 | BJ37: 17 | BK37: 9508.141547
C38: 18 | D38: 2042444.05 | E38: 2569.268252 | F38: 19998.93133 | G38: =IF(D38="","",L37*Resumen!$L$86/1000) -> 898.6753821 | H38: 777.63 | I38: =IF($E$16=$V$1,0,IF(D38="","",Amortización!$AE$14*1.16)) -> 290 | J38: =IFERROR(IF(OR($E$11=Resumen!$N$6,$E$8=Resumen!$N$6),Amortización!F38*0.16,0),"") -> 0 | K38: 24534.50496 | L38: 2039874.782 | N38: 0 | Q38: =IF(OR(L37=0,L37=""),"",IF(E38>=D38,0,$E$17*10%)) -> 0 | R38: 0.1175 | T38: 18 | U38: 24387.24565 | V38: 24387.24565 | X38: 1.019 | Y38: 0 | AB38: 777.63 | AG38: 0 | AH38: 0 | AI38: 0 | AK38: AdquisicionNo Premier150.091 | AL38: 9.2 | AO38: 15 | AP38: 0.1225 | AQ38: 150.1225 | AR38: 11.08 | AV38: 18 | AW38: 872285.5934 | AX38: 1284.431131 | AY38: 7596.153709 | AZ38: 0 | BA38: 0 | BB38: 726.9046611 | BC38: =IFERROR(IF(OR($E$11=Resumen!$N$6,$E$8=Resumen!$N$6),Amortización!AY38*0.16,0),"") -> 0 | BD38: 9607.489502 | BE38: 871001.1622 | BF38: 0 | BH38: 0.1045 | BJ38: 18 | BK38: 9507.22679
C39: 19 | D39: 2039874.782 | E39: 2594.42567 | F39: 19973.77391 | G39: =IF(D39="","",L38*Resumen!$L$86/1000) -> 897.5449041 | H39: 777.63 | I39: =IF($E$16=$V$1,0,IF(D39="","",Amortización!$AE$14*1.16)) -> 290 | J39: =IFERROR(IF(OR($E$11=Resumen!$N$6,$E$8=Resumen!$N$6),Amortización!F39*0.16,0),"") -> 0 | K39: 24533.37448 | L39: 2037280.356 | N39: 0 | R39: 0.1175 | T39: 19 | U39: 24386.11517 | V39: 24386.11517 | X39: 1.019 | Y39: 0 | AB39: 777.63 | AG39: 0 | AH39: 0 | AI39: 0 | AK39: AdquisicionNo Premier150.093 | AL39: 9.31 | AO39: 20 | AP39: 0.111 | AQ39: 200.111 | AR39: 9.31 | AV39: 19 | AW39: 871001.1622 | AX39: 1295.616386 | AY39: 7584.968455 | AZ39: 0 | BA39: 0 | BB39: 725.8343019 | BC39: =IFERROR(IF(OR($E$11=Resumen!$N$6,$E$8=Resumen!$N$6),Amortización!AY39*0.16,0),"") -> 0 | BD39: 9606.419142 | BE39: 869705.5459 | BF39: 0 | BH39: 0.1045 | BJ39: 19 | BK39: 9506.304066
C40: 20 | D40: 2037280.356 | E40: 2619.829421 | F40: 19948.37016 | G40: =IF(D40="","",L39*Resumen!$L$86/1000) -> 896.4033568 | H40: 777.63 | I40: =IF($E$16=$V$1,0,IF(D40="","",Amortización!$AE$14*1.16)) -> 290 | J40: =IFERROR(IF(OR($E$11=Resumen!$N$6,$E$8=Resumen!$N$6),Amortización!F40*0.16,0),"") -> 0 | K40: 24532.23293 | L40: 2034660.527 | N40: 0 | Q40: =IF(OR(L39=0,L39=""),"",IF(E40>=D40,0,$E$17*10%)) -> 0 | R40: 0.1175 | T40: 20 | U40: 24384.97362 | V40: 24384.97362 | X40: 1.019 | Y40: 0 | AB40: 777.63 | AG40: 0 | AH40: 0 | AI40: 0 | AK40: AdquisicionNo Premier150.0965 | AL40: 9.52 | AO40: 20 | AP40: 0.111 | AQ40: 200.111 | AR40: 9.31 | AV40: 20 | AW40: 869705.5459 | AX40: 1306.899045 | AY40: 7573.685795 | AZ40: 0 | BA40: 0 | BB40: 724.7546215 | BC40: =IFERROR(IF(OR($E$11=Resumen!$N$6,$E$8=Resumen!$N$6),Amortización!AY40*0.16,0),"") -> 0 | BD40: 9605.339462 | BE40: 868398.6468 | BF40: 0 | BH40: 0.1045 | BJ40: 20 | BK40: 9505.373307
C41: 21 | D41: 2034660.527 | E41: 2645.481918 | F41: 19922.71766 | G41: =IF(D41="","",L40*Resumen!$L$86/1000) -> 895.2506319 | H41: 777.63 | I41: =IF($E$16=$V$1,0,IF(D41="","",Amortización!$AE$14*1.16)) -> 290 | J41: =IFERROR(IF(OR($E$11=Resumen!$N$6,$E$8=Resumen!$N$6),Amortización!F41*0.16,0),"") -> 0 | K41: 24531.08021 | L41: 2032015.045 | N41: 0 | R41: 0.1175 | T41: 21 | U41: 24383.8209 | V41: 24383.8209 | X41: 1.019 | Y41: 0 | AB41: 777.63 | AG41: 0 | AH41: 0 | AI41: 0 | AK41: AdquisicionNo Premier200.089 | AL41: 7.84 | AO41: 20 | AP41: 0.1175 | AQ41: 200.1175 | AR41: 9.85 | AV41: 21 | AW41: 868398.6468 | AX41: 1318.279958 | AY41: 7562.304883 | AZ41: 0 | BA41: 0 | BB41: 723.665539 | BC41: =IFERROR(IF(OR($E$11=Resumen!$N$6,$E$8=Resumen!$N$6),Amortización!AY41*0.16,0),"") -> 0 | BD41: 9604.250379 | BE41: 867080.3669 | BF41: 0 | BH41: 0.1045 | BJ41: 21 | BK41: 9504.434443
C42: 22 | D42: 2032015.045 | E42: 2671.385595 | F42: 19896.81398 | G42: =IF(D42="","",L41*Resumen!$L$86/1000) -> 894.0866198 | H42: 777.63 | I42: =IF($E$16=$V$1,0,IF(D42="","",Amortización!$AE$14*1.16)) -> 290 | J42: =IFERROR(IF(OR($E$11=Resumen!$N$6,$E$8=Resumen!$N$6),Amortización!F42*0.16,0),"") -> 0 | K42: 24529.9162 | L42: 2029343.659 | N42: 0 | Q42: =IF(OR(L41=0,L41=""),"",IF(E42>=D42,0,$E$17*10%)) -> 0 | R42: 0.1175 | T42: 22 | U42: 24382.65689 | V42: 24382.65689 | X42: 1.019 | Y42: 0 | AB42: 777.63 | AG42: 0 | AH42: 0 | AI42: 0 | AK42: AdquisicionNo Premier200.091 | AL42: 7.96 | AO42: 20 | AP42: 0.1225 | AQ42: 200.1225 | AR42: 10.26 | AV42: 22 | AW42: 867080.3669 | AX42: 1329.759979 | AY42: 7550.824861 | AZ42: 0 | BA42: 0 | BB42: 722.5669724 | BC42: =IFERROR(IF(OR($E$11=Resumen!$N$6,$E$8=Resumen!$N$6),Amortización!AY42*0.16,0),"") -> 0 | BD42: 9603.151813 | BE42: 865750.6069 | BF42: 0 | BH42: 0.1045 | BJ42: 22 | BK42: 9503.487403
C43: 23 | D43: 2029343.659 | E43: 2697.542912 | F43: 19870.65667 | G43: =IF(D43="","",L42*Resumen!$L$86/1000) -> 892.9112102 | H43: 777.63 | I43: =IF($E$16=$V$1,0,IF(D43="","",Amortización!$AE$14*1.16)) -> 290 | J43: =IFERROR(IF(OR($E$11=Resumen!$N$6,$E$8=Resumen!$N$6),Amortización!F43*0.16,0),"") -> 0 | K43: 24528.74079 | L43: 2026646.117 | N43: 0 | R43: 0.1175 | T43: 23 | U43: 24381.48148 | V43: 24381.48148 | X43: 1.019 | Y43: 0 | AB43: 777.63 | AG43: 0 | AH43: 0 | AI43: 0 | AK43: AdquisicionNo Premier200.093 | AL43: 8.08 | AO43: 25 | AP43: =AP39 -> 0.111 | AQ43: 250.111 | AR43: 9.31 | AV43: 23 | AW43: 865750.6069 | AX43: 1341.339972 | AY43: 7539.244868 | AZ43: 0 | BA43: 0 | BB43: 721.4588391 | BC43: =IFERROR(IF(OR($E$11=Resumen!$N$6,$E$8=Resumen!$N$6),Amortización!AY43*0.16,0),"") -> 0 | BD43: 9602.043679 | BE43: 864409.2669 | BF43: 0 | BH43: 0.1045 | BJ43: 23 | BK43: 9502.532115
C44: 24 | D44: 2026646.117 | E44: 2723.956353 | F44: 19844.24322 | G44: =IF(D44="","",L43*Resumen!$L$86/1000) -> 891.7242913 | H44: 777.63 | I44: =IF($E$16=$V$1,0,IF(D44="","",Amortización!$AE$14*1.16)) -> 290 | J44: =IFERROR(IF(OR($E$11=Resumen!$N$6,$E$8=Resumen!$N$6),Amortización!F44*0.16,0),"") -> 0 | K44: 24527.55387 | L44: 2023922.16 | N44: 0 | Q44: =IF(OR(L43=0,L43=""),"",IF(E44>=D44,0,$E$17*10%)) -> 0 | R44: 0.1175 | T44: 24 | U44: 24380.29456 | V44: 24380.29456 | X44: 1.019 | Y44: 0 | AB44: 777.63 | AG44: 0 | AH44: 0 | AI44: 0 | AK44: AdquisicionNo Premier200.0965 | AL44: 8.3 | AO44: 25 | AP44: =AP40 -> 0.111 | AQ44: 250.111 | AR44: 9.31 | AV44: 24 | AW44: 864409.2669 | AX44: 1353.020808 | AY44: 7527.564033 | AZ44: 0 | BA44: 0 | BB44: 720.3410558 | BC44: =IFERROR(IF(OR($E$11=Resumen!$N$6,$E$8=Resumen!$N$6),Amortización!AY44*0.16,0),"") -> 0 | BD44: 9600.925896 | BE44: 863056.2461 | BF44: 0 | BH44: 0.1045 | BJ44: 24 | BK44: 9501.568509
C45: 25 | D45: 2023922.16 | E45: 2750.628426 | F45: 19817.57115 | G45: =IF(D45="","",L44*Resumen!$L$86/1000) -> 890.5257505 | H45: 777.63 | I45: =IF($E$16=$V$1,0,IF(D45="","",Amortización!$AE$14*1.16)) -> 290 | J45: =IFERROR(IF(OR($E$11=Resumen!$N$6,$E$8=Resumen!$N$6),Amortización!F45*0.16,0),"") -> 0 | K45: 24526.35533 | L45: 2021171.532 | N45: 0 | R45: =IF(D45="","",R44)-IF(E20&E21&AB23&E26=AB21,0%,IF(E20&E21&AB23&E26=AB22,0%,0))+IF(E22&E20=V25,0%,0) -> 0.1175 | T45: 25 | U45: 24379.09602 | V45: 24379.09602 | X45: 1.038361 | Y45: 0 | AB45: 777.63 | AG45: 0 | AH45: 0 | AI45: 0 | AK45: ExclusivaNo Premier50.0825 | AL45: 19.7 | AO45: 25 | AP45: 0.1175 | AQ45: 250.1175 | AR45: 9.85 | AV45: 25 | AW45: 863056.2461 | AX45: 1364.803364 | AY45: 7515.781476 | AZ45: 0 | BA45: 0 | BB45: 719.2135384 | BC45: =IFERROR(IF(OR($E$11=Resumen!$N$6,$E$8=Resumen!$N$6),Amortización!AY45*0.16,0),"") -> 0 | BD45: 9599.798379 | BE45: 861691.4427 | BF45: 0 | BH45: =IF(AW45="","",BH44)-IF(AX20&AX21&BR23&AX26=BR21,0%,IF(AX20&AX21&BR23&AX26=BR22,0%,0))+IF(AX22&AX20=BL25,0%,0) -> 0.1045 | BJ45: 25 | BK45: 9500.596511
C46: 26 | D46: 2021171.532 | E46: 2777.561662 | F46: 19790.63792 | G46: =IF(D46="","",L45*Resumen!$L$86/1000) -> 889.315474 | H46: 777.63 | I46: =IF($E$16=$V$1,0,IF(D46="","",Amortización!$AE$14*1.16)) -> 290 | J46: =IFERROR(IF(OR($E$11=Resumen!$N$6,$E$8=Resumen!$N$6),Amortización!F46*0.16,0),"") -> 0 | K46: 24525.14505 | L46: 2018393.97 | N46: 0 | Q46: =IF(OR(L45=0,L45=""),"",IF(E46>=D46,0,$E$17*10%)) -> 0 | R46: =IF(D46="","",R45) -> 0.1175 | T46: 26 | U46: 24377.88574 | V46: 24377.88574 | X46: 1.038361 | Y46: 0 | AB46: 777.63 | AG46: 0 | AH46: 0 | AI46: 0 | AK46: ExclusivaNo Premier100.085 | AL46: 11.53 | AO46: 25 | AP46: 0.1225 | AQ46: 250.1225 | AR46: 10.26 | AV46: 26 | AW46: 861691.4427 | AX46: 1376.688527 | AY46: 7503.896314 | AZ46: 0 | BA46: 0 | BB46: 718.0762023 | BC46: =IFERROR(IF(OR($E$11=Resumen!$N$6,$E$8=Resumen!$N$6),Amortización!AY46*0.16,0),"") -> 0 | BD46: 9598.661043 | BE46: 860314.7542 | BF46: 0 | BH46: =IF(AW46="","",BH45) -> 0.1045 | BJ46: 26 | BK46: 9499.616049
C47: 27 | D47: 2018393.97 | E47: 2804.75862 | F47: 19763.44096 | G47: =IF(D47="","",L46*Resumen!$L$86/1000) -> 888.0933468 | H47: 777.63 | I47: =IF($E$16=$V$1,0,IF(D47="","",Amortización!$AE$14*1.16)) -> 290 | J47: =IFERROR(IF(OR($E$11=Resumen!$N$6,$E$8=Resumen!$N$6),Amortización!F47*0.16,0),"") -> 0 | K47: 24523.92292 | L47: 2015589.211 | N47: 0 | R47: 0.1175 | T47: 27 | U47: 24376.66361 | V47: 24376.66361 | X47: 1.038361 | Y47: 0 | AB47: 777.63 | AG47: 0 | AH47: 0 | AI47: 0 | AK47: ExclusivaNo Premier150.0875 | AL47: 9 | AO47: 5 | AP47: =AP48 -> 0.1075 | AQ47: 50.1075 | AR47: 20.9 | AV47: 27 | AW47: 860314.7542 | AX47: 1388.677189 | AY47: 7491.907651 | AZ47: 0 | BA47: 0 | BB47: 716.9289618 | BC47: =IFERROR(IF(OR($E$11=Resumen!$N$6,$E$8=Resumen!$N$6),Amortización!AY47*0.16,0),"") -> 0 | BD47: 9597.513802 | BE47: 858926.077 | BF47: 0 | BH47: 0.1045 | BJ47: 27 | BK47: 9498.627049
C48: 28 | D48: 2015589.211 | E48: 2832.221882 | F48: 19735.9777 | G48: =IF(D48="","",L47*Resumen!$L$86/1000) -> 886.8592531 | H48: 777.63 | I48: =IF($E$16=$V$1,0,IF(D48="","",Amortización!$AE$14*1.16)) -> 290 | J48: =IFERROR(IF(OR($E$11=Resumen!$N$6,$E$8=Resumen!$N$6),Amortización!F48*0.16,0),"") -> 0 | K48: 24522.68883 | L48: 2012756.99 | N48: 0 | Q48: =IF(OR(L47=0,L47=""),"",IF(E48>=D48,0,$E$17*10%)) -> 0 | R48: 0.1175 | T48: 28 | U48: 24375.42952 | V48: 24375.42952 | X48: 1.038361 | Y48: 0 | AB48: 777.63 | AG48: 0 | AH48: 0 | AI48: 0 | AK48: ExclusivaNo Premier200.0875 | AL48: 7.75 | AO48: 6 | AP48: 0.1075 | AQ48: 60.1075 | AR48: 18.14 | AV48: 28 | AW48: 858926.077 | AX48: 1400.770253 | AY48: 7479.814587 | AZ48: 0 | BA48: 0 | BB48: 715.7717308 | BC48: =IFERROR(IF(OR($E$11=Resumen!$N$6,$E$8=Resumen!$N$6),Amortización!AY48*0.16,0),"") -> 0 | BD48: 9596.356571 | BE48: 857525.3068 | BF48: 0 | BH48: 0.1045 | BJ48: 28 | BK48: 9497.629436
C49: 29 | D49: 2012756.99 | E49: 2859.954054 | F49: 19708.24552 | G49: =IF(D49="","",L48*Resumen!$L$86/1000) -> 885.6130754 | H49: 777.63 | I49: =IF($E$16=$V$1,0,IF(D49="","",Amortización!$AE$14*1.16)) -> 290 | J49: =IFERROR(IF(OR($E$11=Resumen!$N$6,$E$8=Resumen!$N$6),Amortización!F49*0.16,0),"") -> 0 | K49: 24521.44265 | L49: 2009897.036 | N49: 0 | R49: 0.1175 | T49: 29 | U49: 24374.18334 | V49: 24374.18334 | X49: 1.038361 | Y49: 0 | AB49: 777.63 | AG49: 0 | AH49: 0 | AI49: 0 | AK49: Pago de HipotecaNo Premier50.0805 | AL49: 19.61 | AO49: 7 | AP49: 0.1075 | AQ49: 70.1075 | AR49: 16.18 | AV49: 29 | AW49: 857525.3068 | AX49: 1412.968627 | AY49: 7467.616213 | AZ49: 0 | BA49: 0 | BB49: 714.6044223 | BC49: =IFERROR(IF(OR($E$11=Resumen!$N$6,$E$8=Resumen!$N$6),Amortización!AY49*0.16,0),"") -> 0 | BD49: 9595.189263 | BE49: 856112.3381 | BF49: 0 | BH49: 0.1045 | BJ49: 29 | BK49: 9496.623135
C50: 30 | D50: 2009897.036 | E50: 2887.957771 | F50: 19680.24181 | G50: =IF(D50="","",L49*Resumen!$L$86/1000) -> 884.3546956 | H50: 777.63 | I50: =IF($E$16=$V$1,0,IF(D50="","",Amortización!$AE$14*1.16)) -> 290 | J50: =IFERROR(IF(OR($E$11=Resumen!$N$6,$E$8=Resumen!$N$6),Amortización!F50*0.16,0),"") -> 0 | K50: 24520.18427 | L50: 2007009.078 | N50: 0 | Q50: =IF(OR(L49=0,L49=""),"",IF(E50>=D50,0,$E$17*10%)) -> 0 | R50: 0.1175 | T50: 30 | U50: 24372.92496 | V50: 24372.92496 | X50: 1.038361 | Y50: 0 | AB50: 777.63 | AG50: 0 | AH50: 0 | AI50: 0 | AK50: Pago de HipotecaNo Premier100.083 | AL50: 11.43 | AO50: 8 | AP50: =AP51 -> 0.1075 | AQ50: 80.1075 | AR50: 14.73 | AV50: 30 | AW50: 856112.3381 | AX50: 1425.273229 | AY50: 7455.311611 | AZ50: 0 | BA50: 0 | BB50: 713.4269484 | BC50: =IFERROR(IF(OR($E$11=Resumen!$N$6,$E$8=Resumen!$N$6),Amortización!AY50*0.16,0),"") -> 0 | BD50: 9594.011789 | BE50: 854687.0649 | BF50: 0 | BH50: 0.1045 | BJ50: 30 | BK50: 9495.608072
C51: 31 | D51: 2007009.078 | E51: 2916.235691 | F51: 19651.96389 | G51: =IF(D51="","",L50*Resumen!$L$86/1000) -> 883.0839942 | H51: 777.63 | I51: =IF($E$16=$V$1,0,IF(D51="","",Amortización!$AE$14*1.16)) -> 290 | J51: =IFERROR(IF(OR($E$11=Resumen!$N$6,$E$8=Resumen!$N$6),Amortización!F51*0.16,0),"") -> 0 | K51: 24518.91357 | L51: 2004092.842 | N51: 0 | R51: 0.1175 | T51: 31 | U51: 24371.65426 | V51: 24371.65426 | X51: 1.038361 | Y51: 0 | AB51: 777.63 | AG51: 0 | AH51: 0 | AI51: 0 | AK51: Pago de HipotecaNo Premier150.0855 | AL51: 8.89 | AO51: 9 | AP51: =AP52-0.25% -> 0.1075 | AQ51: 90.1075 | AR51: 13.61 | AV51: 31 | AW51: 854687.0649 | AX51: 1437.684983 | AY51: 7442.899857 | AZ51: 0 | BA51: 0 | BB51: 712.2392208 | BC51: =IFERROR(IF(OR($E$11=Resumen!$N$6,$E$8=Resumen!$N$6),Amortización!AY51*0.16,0),"") -> 0 | BD51: 9592.824061 | BE51: 853249.3799 | BF51: 0 | BH51: 0.1045 | BJ51: 31 | BK51: 9494.584169
C52: 32 | D52: 2004092.842 | E52: 2944.790499 | F52: 19623.40908 | G52: =IF(D52="","",L51*Resumen!$L$86/1000) -> 881.8008505 | H52: 777.63 | I52: =IF($E$16=$V$1,0,IF(D52="","",Amortización!$AE$14*1.16)) -> 290 | J52: =IFERROR(IF(OR($E$11=Resumen!$N$6,$E$8=Resumen!$N$6),Amortización!F52*0.16,0),"") -> 0 | K52: 24517.63043 | L52: 2001148.052 | N52: 0 | Q52: =IF(OR(L51=0,L51=""),"",IF(E52>=D52,0,$E$17*10%)) -> 0 | R52: 0.1175 | T52: 32 | U52: 24370.37112 | V52: 24370.37112 | X52: 1.038361 | Y52: 0 | AB52: 777.63 | AG52: 0 | AH52: 0 | AI52: 0 | AK52: Pago de HipotecaNo Premier200.0855 | AL52: 7.63 | AO52: 10 | AP52: =AP53 -> 0.11 | AQ52: 100.11 | AR52: 12.86 | AV52: 32 | AW52: 853249.3799 | AX52: 1450.204824 | AY52: 7430.380017 | AZ52: 0 | BA52: 0 | BB52: 711.0411499 | BC52: =IFERROR(IF(OR($E$11=Resumen!$N$6,$E$8=Resumen!$N$6),Amortización!AY52*0.16,0),"") -> 0 | BD52: 9591.62599 | BE52: 851799.1751 | BF52: 0 | BH52: 0.1045 | BJ52: 32 | BK52: 9493.551349
C53: 33 | D53: 2001148.052 | E53: 2973.624906 | F53: 19594.57467 | G53: =IF(D53="","",L52*Resumen!$L$86/1000) -> 880.5051427 | H53: 777.63 | I53: =IF($E$16=$V$1,0,IF(D53="","",Amortización!$AE$14*1.16)) -> 290 | J53: =IFERROR(IF(OR($E$11=Resumen!$N$6,$E$8=Resumen!$N$6),Amortización!F53*0.16,0),"") -> 0 | K53: 24516.33472 | L53: 1998174.427 | N53: 0 | R53: 0.1175 | T53: 33 | U53: 24369.07541 | V53: 24369.07541 | X53: 1.038361 | Y53: 0 | AB53: 777.63 | AG53: 0 | AH53: 0 | AI53: 0 | AK53: ExclusivaPremier50.0825 | AL53: 19.7 | AO53: 11 | AP53: 0.11 | AQ53: 110.11 | AR53: 12.14 | AV53: 33 | AW53: 851799.1751 | AX53: 1462.833691 | AY53: 7417.75115 | AZ53: 0 | BA53: 0 | BB53: 709.8326459 | BC53: =IFERROR(IF(OR($E$11=Resumen!$N$6,$E$8=Resumen!$N$6),Amortización!AY53*0.16,0),"") -> 0 | BD53: 9590.417486 | BE53: 850336.3414 | BF53: 0 | BH53: 0.1045 | BJ53: 33 | BK53: 9492.509535
C54: =IF(OR(L53="",L53=0),"",IF(C53+1>$K$11+$X$2,"",C53+1)) -> 34 | D54: 1998174.427 | E54: 3002.74165 | F54: 19565.45793 | G54: =IF(D54="","",L53*Resumen!$L$86/1000) -> 879.1967477 | H54: 777.63 | I54: =IF($E$16=$V$1,0,IF(D54="","",Amortización!$AE$14*1.16)) -> 290 | J54: =IFERROR(IF(OR($E$11=Resumen!$N$6,$E$8=Resumen!$N$6),Amortización!F54*0.16,0),"") -> 0 | K54: 24515.02633 | L54: 1995171.685 | N54: 0 | Q54: =IF(OR(L53=0,L53=""),"",IF(E54>=D54,0,$E$17*10%)) -> 0 | R54: 0.1175 | T54: =C54 -> 34 | U54: 24367.76701 | V54: 24367.76701 | X54: 1.038361 | Y54: 0 | AB54: 777.63 | AG54: 0 | AH54: 0 | AI54: 0 | AK54: ExclusivaPremier50.0825 | AL54: 19.7 | AO54: 12 | AP54: 0.11 | AQ54: 120.11 | AR54: 11.56 | AV54: 34 | AW54: 850336.3414 | AX54: 1475.572534 | AY54: 7405.012306 | AZ54: 0 | BA54: 0 | BB54: 708.6136178 | BC54: =IFERROR(IF(OR($E$11=Resumen!$N$6,$E$8=Resumen!$N$6),Amortización!AY54*0.16,0),"") -> 0 | BD54: 9589.198458 | BE54: 848860.7689 | BF54: 0 | BH54: 0.1045 | BJ54: 34 | BK54: 9491.458649
C55: 35 | D55: 1995171.685 | E55: 3032.143495 | F55: 19536.05608 | G55: =IF(D55="","",L54*Resumen!$L$86/1000) -> 877.8755414 | H55: 777.63 | I55: =IF($E$16=$V$1,0,IF(D55="","",Amortización!$AE$14*1.16)) -> 290 | J55: =IFERROR(IF(OR($E$11=Resumen!$N$6,$E$8=Resumen!$N$6),Amortización!F55*0.16,0),"") -> 0 | K55: 24513.70512 | L55: 1992139.542 | N55: 0 | R55: 0.1175 | T55: 35 | U55: 24366.44581 | V55: 24366.44581 | X55: 1.038361 | Y55: 0 | AB55: 777.63 | AG55: 0 | AH55: 0 | AI55: 0 | AK55: ExclusivaPremier50.0825 | AL55: 19.7 | AO55: 13 | AP55: =AP56 -> 0.11 | AQ55: 130.11 | AR55: 11.07 | AV55: 35 | AW55: 848860.7689 | AX55: 1488.422311 | AY55: 7392.162529 | AZ55: 0 | BA55: 0 | BB55: 707.3839741 | BC55: =IFERROR(IF(OR($E$11=Resumen!$N$6,$E$8=Resumen!$N$6),Amortización!AY55*0.16,0),"") -> 0 | BD55: 9587.968814 | BE55: 847372.3466 | BF55: 0 | BH55: 0.1045 | BJ55: 35 | BK55: 9490.398611
C56: 36 | D56: 1992139.542 | E56: 3061.833233 | F56: =IF(D56="","",D56*(R56/12)) -> 19506.36634 | G56: =IF(D56="","",L55*Resumen!$L$86/1000) -> 876.5413983 | H56: 777.63 | I56: =IF($E$16=$V$1,0,IF(D56="","",Amortización!$AE$14*1.16)) -> 290 | J56: =IFERROR(IF(OR($E$11=Resumen!$N$6,$E$8=Resumen!$N$6),Amortización!F56*0.16,0),"") -> 0 | K56: 24512.37098 | L56: 1989077.708 | N56: 0 | Q56: =IF(OR(L55=0,L55=""),"",IF(E56>=D56,0,$E$17*10%)) -> 0 | R56: 0.1175 | T56: 36 | U56: 24365.11167 | V56: 24365.11167 | X56: 1.038361 | Y56: 0 | AB56: 777.63 | AG56: 0 | AH56: 0 | AI56: 0 | AK56: ExclusivaPremier100.085 | AL56: 11.53 | AO56: 14 | AP56: =AP57-0.25% -> 0.11 | AQ56: 140.11 | AR56: 10.66 | AV56: 36 | AW56: 847372.3466 | AX56: 1501.383989 | AY56: 7379.200851 | AZ56: 0 | BA56: 0 | BB56: 706.1436221 | BC56: =IFERROR(IF(OR($E$11=Resumen!$N$6,$E$8=Resumen!$N$6),Amortización!AY56*0.16,0),"") -> 0 | BD56: 9586.728462 | BE56: 845870.9626 | BF56: 0 | BH56: 0.1045 | BJ56: 36 | BK56: 9489.329342
C57: 37 | D57: 1989077.708 | E57: 3091.813684 | F57: 19476.38589 | G57: =IF(D57="","",L56*Resumen!$L$86/1000) -> 875.1941917 | H57: 777.63 | I57: =IF($E$16=$V$1,0,IF(D57="","",Amortización!$AE$14*1.16)) -> 290 | J57: =IFERROR(IF(OR($E$11=Resumen!$N$6,$E$8=Resumen!$N$6),Amortización!F57*0.16,0),"") -> 0 | K57: 24511.02377 | L57: 1985985.895 | N57: 0 | R57: 0.1175 | T57: 37 | U57: 24363.76446 | V57: 24363.76446 | X57: 1.058089859 | Y57: 0 | AB57: 777.63 | AG57: 0 | AH57: 0 | AI57: 0 | AK57: ExclusivaPremier100.085 | AL57: 11.53 | AO57: 15 | AP57: =AP58 -> 0.1125 | AQ57: 150.1125 | AR57: 10.46 | AV57: 37 | AW57: 845870.9626 | AX57: 1514.458541 | AY57: 7366.126299 | AZ57: 0 | BA57: 0 | BB57: 704.8924688 | BC57: =IFERROR(IF(OR($E$11=Resumen!$N$6,$E$8=Resumen!$N$6),Amortización!AY57*0.16,0),"") -> 0 | BD57: 9585.477309 | BE57: 844356.504 | BF57: 0 | BH57: 0.1045 | BJ57: 37 | BK57: 9488.250762
C58: 38 | D58: 1985985.895 | E58: 3122.087693 | F58: 19446.11188 | G58: =IF(D58="","",L57*Resumen!$L$86/1000) -> 873.8337936 | H58: 777.63 | I58: =IF($E$16=$V$1,0,IF(D58="","",Amortización!$AE$14*1.16)) -> 290 | J58: =IFERROR(IF(OR($E$11=Resumen!$N$6,$E$8=Resumen!$N$6),Amortización!F58*0.16,0),"") -> 0 | K58: 24509.66337 | L58: 1982863.807 | N58: 0 | Q58: =IF(OR(L57=0,L57=""),"",IF(E58>=D58,0,$E$17*10%)) -> 0 | R58: 0.1175 | T58: 38 | U58: 24362.40406 | V58: 24362.40406 | X58: 1.058089859 | Y58: 0 | AB58: 777.63 | AG58: 0 | AH58: 0 | AI58: 0 | AK58: ExclusivaPremier100.085 | AL58: 11.53 | AO58: 16 | AP58: 0.1125 | AQ58: 160.1125 | AR58: 10.17 | AV58: 38 | AW58: 844356.504 | AX58: 1527.646951 | AY58: 7352.937889 | AZ58: 0 | BA58: 0 | BB58: 703.63042 | BC58: =IFERROR(IF(OR($E$11=Resumen!$N$6,$E$8=Resumen!$N$6),Amortización!AY58*0.16,0),"") -> 0 | BD58: 9584.21526 | BE58: 842828.8571 | BF58: 0 | BH58: 0.1045 | BJ58: 38 | BK58: 9487.162789
C59: 39 | D59: 1982863.807 | E59: 3152.658135 | F59: 19415.54144 | G59: =IF(D59="","",L58*Resumen!$L$86/1000) -> 872.460075 | H59: 777.63 | I59: =IF($E$16=$V$1,0,IF(D59="","",Amortización!$AE$14*1.16)) -> 290 | J59: =IFERROR(IF(OR($E$11=Resumen!$N$6,$E$8=Resumen!$N$6),Amortización!F59*0.16,0),"") -> 0 | K59: 24508.28965 | L59: 1979711.149 | N59: 0 | R59: 0.1175 | T59: 39 | U59: 24361.03034 | V59: 24361.03034 | X59: 1.058089859 | Y59: 0 | AB59: 777.63 | AG59: 0 | AH59: 0 | AI59: 0 | AK59: ExclusivaPremier150.0875 | AL59: 9 | AO59: 17 | AP59: 0.1125 | AQ59: 170.1125 | AR59: 9.91 | AV59: 39 | AW59: 842828.8571 | AX59: 1540.95021 | AY59: 7339.63463 | AZ59: 0 | BA59: 0 | BB59: 702.3573809 | BC59: =IFERROR(IF(OR($E$11=Resumen!$N$6,$E$8=Resumen!$N$6),Amortización!AY59*0.16,0),"") -> 0 | BD59: 9582.942221 | BE59: 841287.9069 | BF59: 0 | BH59: 0.1045 | BJ59: 39 | BK59: 9486.065341
C60: 40 | D60: 1979711.149 | E60: 3183.527912 | F60: 19384.67167 | G60: =IF(D60="","",L59*Resumen!$L$86/1000) -> 871.0729055 | H60: 777.63 | I60: =IF($E$16=$V$1,0,IF(D60="","",Amortización!$AE$14*1.16)) -> 290 | J60: =IFERROR(IF(OR($E$11=Resumen!$N$6,$E$8=Resumen!$N$6),Amortización!F60*0.16,0),"") -> 0 | K60: 24506.90248 | L60: 1976527.621 | N60: 0 | Q60: =IF(OR(L59=0,L59=""),"",IF(E60>=D60,0,$E$17*10%)) -> 0 | R60: 0.1175 | T60: 40 | U60: 24359.64317 | V60: 24359.64317 | X60: 1.058089859 | Y60: 0 | AB60: 777.63 | AG60: 0 | AH60: 0 | AI60: 0 | AK60: ExclusivaPremier150.0875 | AL60: 9 | AO60: 18 | AP60: 0.1125 | AQ60: 180.1125 | AR60: 9.69 | AV60: 40 | AW60: 841287.9069 | AX60: 1554.369318 | AY60: 7326.215522 | AZ60: 0 | BA60: 0 | BB60: 701.0732557 | BC60: =IFERROR(IF(OR($E$11=Resumen!$N$6,$E$8=Resumen!$N$6),Amortización!AY60*0.16,0),"") -> 0 | BD60: 9581.658096 | BE60: 839733.5376 | BF60: 0 | BH60: 0.1045 | BJ60: 40 | BK60: 9484.958337
C61: 41 | D61: 1976527.621 | E61: 3214.699956 | F61: 19353.49962 | G61: =IF(D61="","",L60*Resumen!$L$86/1000) -> 869.6721532 | H61: 777.63 | I61: =IF($E$16=$V$1,0,IF(D61="","",Amortización!$AE$14*1.16)) -> 290 | J61: =IFERROR(IF(OR($E$11=Resumen!$N$6,$E$8=Resumen!$N$6),Amortización!F61*0.16,0),"") -> 0 | K61: 24505.50173 | L61: 1973312.921 | N61: 0 | R61: 0.1175 | T61: 41 | U61: 24358.24242 | V61: 24358.24242 | X61: 1.058089859 | Y61: 0 | AB61: 777.63 | AG61: 0 | AH61: 0 | AI61: 0 | AK61: ExclusivaPremier150.0875 | AL61: 9 | AO61: 19 | AP61: =AP62 -> 0.1125 | AQ61: 190.1125 | AR61: 9.49 | AV61: 41 | AW61: 839733.5376 | AX61: 1567.905284 | AY61: 7312.679556 | AZ61: 0 | BA61: 0 | BB61: 699.777948 | BC61: =IFERROR(IF(OR($E$11=Resumen!$N$6,$E$8=Resumen!$N$6),Amortización!AY61*0.16,0),"") -> 0 | BD61: 9580.362788 | BE61: 838165.6323 | BF61: 0 | BH61: 0.1045 | BJ61: 41 | BK61: 9483.841692
C62: 42 | D62: 1973312.921 | E62: 3246.177227 | F62: 19322.02235 | G62: =IF(D62="","",L61*Resumen!$L$86/1000) -> 868.2576852 | H62: 777.63 | I62: =IF($E$16=$V$1,0,IF(D62="","",Amortización!$AE$14*1.16)) -> 290 | J62: =IFERROR(IF(OR($E$11=Resumen!$N$6,$E$8=Resumen!$N$6),Amortización!F62*0.16,0),"") -> 0 | K62: 24504.08726 | L62: 1970066.744 | N62: 0 | Q62: =IF(OR(L61=0,L61=""),"",IF(E62>=D62,0,$E$17*10%)) -> 0 | R62: 0.1175 | T62: 42 | U62: 24356.82795 | V62: 24356.82795 | X62: 1.058089859 | Y62: 0 | AB62: 777.63 | AG62: 0 | AH62: 0 | AI62: 0 | AK62: ExclusivaPremier200.0875 | AL62: 7.75 | AO62: 20 | AP62: 0.1125 | AQ62: 200.1125 | AR62: 9.43 | AV62: 42 | AW62: 838165.6323 | AX62: 1581.559126 | AY62: 7299.025714 | AZ62: 0 | BA62: 0 | BB62: 698.4713602 | BC62: =IFERROR(IF(OR($E$11=Resumen!$N$6,$E$8=Resumen!$N$6),Amortización!AY62*0.16,0),"") -> 0 | BD62: 9579.056201 | BE62: 836584.0731 | BF62: 0 | BH62: 0.1045 | BJ62: 42 | BK62: 9482.715323
C63: 43 | D63: 1970066.744 | E63: 3277.962712 | F63: 19290.23687 | G63: =IF(D63="","",L62*Resumen!$L$86/1000) -> 866.8293672 | H63: 777.63 | I63: =IF($E$16=$V$1,0,IF(D63="","",Amortización!$AE$14*1.16)) -> 290 | J63: =IFERROR(IF(OR($E$11=Resumen!$N$6,$E$8=Resumen!$N$6),Amortización!F63*0.16,0),"") -> 0 | K63: 24502.65894 | L63: 1966788.781 | N63: 0 | R63: 0.1175 | T63: 43 | U63: 24355.39963 | V63: 24355.39963 | X63: 1.058089859 | Y63: 0 | AB63: 777.63 | AG63: 0 | AH63: 0 | AI63: 0 | AK63: ExclusivaPremier200.0875 | AL63: 7.75 | AO63: 25 | AP63: 0.111 | AQ63: 250.111 | AR63: 9.31 | AV63: 43 | AW63: 836584.0731 | AX63: 1595.33187 | AY63: 7285.25297 | AZ63: 0 | BA63: 0 | BB63: 697.1533943 | BC63: =IFERROR(IF(OR($E$11=Resumen!$N$6,$E$8=Resumen!$N$6),Amortización!AY63*0.16,0),"") -> 0 | BD63: 9577.738235 | BE63: 834988.7413 | BF63: 0 | BH63: 0.1045 | BJ63: 43 | BK63: 9481.579146
C64: 44 | D64: 1966788.781 | E64: 3310.05943 | F64: 19258.14015 | G64: =IF(D64="","",L63*Resumen!$L$86/1000) -> 865.3870636 | H64: 777.63 | I64: =IF($E$16=$V$1,0,IF(D64="","",Amortización!$AE$14*1.16)) -> 290 | J64: =IFERROR(IF(OR($E$11=Resumen!$N$6,$E$8=Resumen!$N$6),Amortización!F64*0.16,0),"") -> 0 | K64: 24501.21664 | L64: 1963478.722 | N64: 0 | Q64: =IF(OR(L63=0,L63=""),"",IF(E64>=D64,0,$E$17*10%)) -> 0 | R64: 0.1175 | T64: 44 | U64: 24353.95733 | V64: 24353.95733 | X64: 1.058089859 | Y64: 0 | AB64: 777.63 | AG64: 0 | AH64: 0 | AI64: 0 | AK64: ExclusivaPremier200.0875 | AL64: 7.75 | AO64: 20 | AP64: 0.111 | AQ64: 200.111 | AR64: 9.31 | AV64: 44 | AW64: 834988.7413 | AX64: 1609.224552 | AY64: 7271.360289 | AZ64: 0 | BA64: 0 | BB64: 695.8239511 | BC64: =IFERROR(IF(OR($E$11=Resumen!$N$6,$E$8=Resumen!$N$6),Amortización!AY64*0.16,0),"") -> 0 | BD64: 9576.408791 | BE64: 833379.5167 | BF64: 0 | BH64: 0.1045 | BJ64: 44 | BK64: 9480.433074
C65: 45 | D65: 1963478.722 | E65: 3342.470429 | F65: 19225.72915 | G65: =IF(D65="","",L64*Resumen!$L$86/1000) -> 863.9306375 | H65: 777.63 | I65: =IF($E$16=$V$1,0,IF(D65="","",Amortización!$AE$14*1.16)) -> 290 | J65: =IFERROR(IF(OR($E$11=Resumen!$N$6,$E$8=Resumen!$N$6),Amortización!F65*0.16,0),"") -> 0 | K65: 24499.76021 | L65: 1960136.251 | N65: 0 | R65: 0.1175 | T65: 45 | U65: 24352.5009 | V65: 24352.5009 | X65: 1.058089859 | Y65: 0 | AB65: 777.63 | AG65: 0 | AH65: 0 | AI65: 0 | AK65: Pago de HipotecaPremier50.0805 | AL65: 19.61 | AO65: 15 | AP65: =AP64 -> 0.111 | AQ65: 150.111 | AR65: 10.37 | AV65: 45 | AW65: 833379.5167 | AX65: 1623.238216 | AY65: 7257.346625 | AZ65: 0 | BA65: 0 | BB65: 694.4829306 | BC65: =IFERROR(IF(OR($E$11=Resumen!$N$6,$E$8=Resumen!$N$6),Amortización!AY65*0.16,0),"") -> 0 | BD65: 9575.067771 | BE65: 831756.2785 | BF65: 0 | BH65: 0.1045 | BJ65: 45 | BK65: 9479.277022
C66: 46 | D66: 1960136.251 | E66: 3375.198785 | F66: 19193.00079 | G66: =IF(D66="","",L65*Resumen!$L$86/1000) -> 862.4599505 | H66: 777.63 | I66: =IF($E$16=$V$1,0,IF(D66="","",Amortización!$AE$14*1.16)) -> 290 | J66: =IFERROR(IF(OR($E$11=Resumen!$N$6,$E$8=Resumen!$N$6),Amortización!F66*0.16,0),"") -> 0 | K66: 24498.28953 | L66: 1956761.052 | N66: 0 | Q66: =IF(OR(L65=0,L65=""),"",IF(E66>=D66,0,$E$17*10%)) -> 0 | R66: 0.1175 | T66: 46 | U66: 24351.03022 | V66: 24351.03022 | X66: 1.058089859 | Y66: 0 | AB66: 777.63 | AG66: 0 | AH66: 0 | AI66: 0 | AK66: Pago de HipotecaPremier100.083 | AL66: 11.43 | AO66: 10 | AP66: =AP65-0.25% -> 0.1085 | AQ66: 100.1085 | AR66: 12.77 | AV66: 46 | AW66: 831756.2785 | AX66: 1637.373915 | AY66: 7243.210925 | AZ66: 0 | BA66: 0 | BB66: 693.1302321 | BC66: =IFERROR(IF(OR($E$11=Resumen!$N$6,$E$8=Resumen!$N$6),Amortización!AY66*0.16,0),"") -> 0 | BD66: 9573.715072 | BE66: 830118.9046 | BF66: 0 | BH66: 0.1045 | BJ66: 46 | BK66: 9478.110903
C67: 47 | D67: 1956761.052 | E67: 3408.247607 | F67: 19159.95197 | G67: =IF(D67="","",L66*Resumen!$L$86/1000) -> 860.974863 | H67: 777.63 | I67: =IF($E$16=$V$1,0,IF(D67="","",Amortización!$AE$14*1.16)) -> 290 | J67: =IFERROR(IF(OR($E$11=Resumen!$N$6,$E$8=Resumen!$N$6),Amortización!F67*0.16,0),"") -> 0 | K67: 24496.80444 | L67: 1953352.805 | N67: 0 | R67: 0.1175 | T67: 47 | U67: 24349.54513 | V67: 24349.54513 | X67: 1.058089859 | Y67: 0 | AB67: 777.63 | AG67: 0 | AH67: 0 | AI67: 0 | AK67: Pago de HipotecaPremier150.0855 | AL67: 8.89 | AO67: 5 | AP67: =AP66-0.25% -> 0.106 | AQ67: 50.106 | AR67: 20.83 | AV67: 47 | AW67: 830118.9046 | AX67: 1651.632713 | AY67: 7228.952127 | AZ67: 0 | BA67: 0 | BB67: 691.7657538 | BC67: =IFERROR(IF(OR($E$11=Resumen!$N$6,$E$8=Resumen!$N$6),Amortización!AY67*0.16,0),"") -> 0 | BD67: 9572.350594 | BE67: 828467.2719 | BF67: 0 | BH67: 0.1045 | BJ67: 47 | BK67: 9476.934628
C68: 48 | D68: 1953352.805 | E68: 3441.620031 | F68: 19126.57955 | G68: =IF(D68="","",L67*Resumen!$L$86/1000) -> 859.4752341 | H68: 777.63 | I68: =IF($E$16=$V$1,0,IF(D68="","",Amortización!$AE$14*1.16)) -> 290 | J68: =IFERROR(IF(OR($E$11=Resumen!$N$6,$E$8=Resumen!$N$6),Amortización!F68*0.16,0),"") -> 0 | K68: 24495.30481 | L68: 1949911.185 | N68: 0 | Q68: =IF(OR(L67=0,L67=""),"",IF(E68>=D68,0,$E$17*10%)) -> 0 | R68: 0.1175 | T68: 48 | U68: 24348.0455 | V68: 24348.0455 | X68: 1.058089859 | Y68: 0 | AB68: 777.63 | AG68: 0 | AH68: 0 | AI68: 0 | AK68: Pago de HipotecaPremier200.0855 | AL68: 7.63 | AO68: 25 | AP68: 0.0975 | AQ68: 250.0975 | AR68: 8.18 | AV68: 48 | AW68: 828467.2719 | AX68: 1666.015681 | AY68: 7214.569159 | AZ68: 0 | BA68: 0 | BB68: 690.3893932 | BC68: =IFERROR(IF(OR($E$11=Resumen!$N$6,$E$8=Resumen!$N$6),Amortización!AY68*0.16,0),"") -> 0 | BD68: 9570.974234 | BE68: 826801.2562 | BF68: 0 | BH68: 0.1045 | BJ68: 48 | BK68: 9475.74811
C69: 49 | D69: 1949911.185 | E69: 3475.319227 | F69: 19092.88035 | G69: =IF(D69="","",L68*Resumen!$L$86/1000) -> 857.9609213 | H69: 777.63 | I69: =IF($E$16=$V$1,0,IF(D69="","",Amortización!$AE$14*1.16)) -> 290 | J69: =IFERROR(IF(OR($E$11=Resumen!$N$6,$E$8=Resumen!$N$6),Amortización!F69*0.16,0),"") -> 0 | K69: 24493.7905 | L69: 1946435.865 | N69: 0 | R69: 0.1175 | T69: 49 | U69: 24346.53119 | V69: 24346.53119 | X69: 1.078193566 | Y69: 0 | AB69: 777.63 | AG69: 0 | AH69: 0 | AI69: 0 | AK69: AdquisicionPremier50.0805 | AL69: 19.61 | AO69: 20 | AP69: 0.0975 | AQ69: =AO69&AP69 -> 200.0975 | AR69: 8.36 | AV69: 49 | AW69: 826801.2562 | AX69: 1680.523901 | AY69: 7200.060939 | AZ69: 0 | BA69: 0 | BB69: 689.0010468 | BC69: =IFERROR(IF(OR($E$11=Resumen!$N$6,$E$8=Resumen!$N$6),Amortización!AY69*0.16,0),"") -> 0 | BD69: 9569.585887 | BE69: 825120.7323 | BF69: 0 | BH69: 0.1045 | BJ69: 49 | BK69: 9474.55126
C70: 50 | D70: 1946435.865 | E70: 3509.348395 | F70: 19058.85118 | G70: =IF(D70="","",L69*Resumen!$L$86/1000) -> 856.4317808 | H70: 777.63 | I70: =IF($E$16=$V$1,0,IF(D70="","",Amortización!$AE$14*1.16)) -> 290 | J70: =IFERROR(IF(OR($E$11=Resumen!$N$6,$E$8=Resumen!$N$6),Amortización!F70*0.16,0),"") -> 0 | K70: 24492.26136 | L70: 1942926.517 | N70: 0 | Q70: =IF(OR(L69=0,L69=""),"",IF(E70>=D70,0,$E$17*10%)) -> 0 | R70: 0.1175 | T70: 50 | U70: 24345.00205 | V70: 24345.00205 | X70: 1.078193566 | Y70: 0 | AB70: 777.63 | AG70: 0 | AH70: 0 | AI70: 0 | AK70: AdquisicionPremier100.083 | AL70: 11.43 | AO70: 15 | AP70: =AP69 -> 0.0975 | AQ70: 150.0975 | AR70: 9.57 | AV70: 50 | AW70: 825120.7323 | AX70: 1695.158463 | AY70: 7185.426377 | AZ70: 0 | BA70: 0 | BB70: 687.6006102 | BC70: =IFERROR(IF(OR($E$11=Resumen!$N$6,$E$8=Resumen!$N$6),Amortización!AY70*0.16,0),"") -> 0 | BD70: 9568.185451 | BE70: 823425.5738 | BF70: 0 | BH70: 0.1045 | BJ70: 50 | BK70: 9473.343987
C71: 51 | D71: 1942926.517 | E71: 3543.710764 | F71: 19024.48881 | G71: =IF(D71="","",L70*Resumen!$L$86/1000) -> 854.8876675 | H71: 777.63 | I71: =IF($E$16=$V$1,0,IF(D71="","",Amortización!$AE$14*1.16)) -> 290 | J71: =IFERROR(IF(OR($E$11=Resumen!$N$6,$E$8=Resumen!$N$6),Amortización!F71*0.16,0),"") -> 0 | K71: 24490.71724 | L71: 1939382.806 | N71: 0 | R71: 0.1175 | T71: 51 | U71: 24343.45793 | V71: 24343.45793 | X71: 1.078193566 | Y71: 0 | AB71: 777.63 | AG71: 0 | AH71: 0 | AI71: 0 | AK71: AdquisicionPremier150.0855 | AL71: 8.89 | AO71: 10 | AP71: =AP70-0.25% -> 0.095 | AQ71: 100.095 | AR71: 12.05 | AV71: 51 | AW71: 823425.5738 | AX71: 1709.920468 | AY71: 7170.664372 | AZ71: 0 | BA71: 0 | BB71: 686.1879782 | BC71: =IFERROR(IF(OR($E$11=Resumen!$N$6,$E$8=Resumen!$N$6),Amortización!AY71*0.16,0),"") -> 0 | BD71: 9566.772819 | BE71: 821715.6534 | BF71: 0 | BH71: 0.1045 | BJ71: 51 | BK71: 9472.126201
C72: 52 | D72: 1939382.806 | E72: 3578.409599 | F72: 18989.78998 | G72: =IF(D72="","",L71*Resumen!$L$86/1000) -> 853.3284348 | H72: 777.63 | I72: =IF($E$16=$V$1,0,IF(D72="","",Amortización!$AE$14*1.16)) -> 290 | J72: =IFERROR(IF(OR($E$11=Resumen!$N$6,$E$8=Resumen!$N$6),Amortización!F72*0.16,0),"") -> 0 | K72: 24489.15801 | L72: 1935804.397 | N72: 0 | Q72: =IF(OR(L71=0,L71=""),"",IF(E72>=D72,0,$E$17*10%)) -> 0 | R72: 0.1175 | T72: 52 | U72: 24341.8987 | V72: 24341.8987 | X72: 1.078193566 | Y72: 0 | AB72: 777.63 | AG72: 0 | AH72: 0 | AI72: 0 | AK72: AdquisicionPremier200.0855 | AL72: 7.63 | AO72: 5 | AP72: =AP71-0.25% -> 0.0925 | AQ72: 50.0925 | AR72: 20.18 | AV72: 52 | AW72: 821715.6534 | AX72: 1724.811026 | AY72: 7155.773815 | AZ72: 0 | BA72: 0 | BB72: 684.7630445 | BC72: =IFERROR(IF(OR($E$11=Resumen!$N$6,$E$8=Resumen!$N$6),Amortización!AY72*0.16,0),"") -> 0 | BD72: 9565.347885 | BE72: 819990.8423 | BF72: 0 | BH72: 0.1045 | BJ72: 52 | BK72: 9470.89781
C73: 53 | D73: 1935804.397 | E73: 3613.448193 | F73: 18954.75138 | G73: =IF(D73="","",L72*Resumen!$L$86/1000) -> 851.7539346 | H73: 777.63 | I73: =IF($E$16=$V$1,0,IF(D73="","",Amortización!$AE$14*1.16)) -> 290 | J73: =IFERROR(IF(OR($E$11=Resumen!$N$6,$E$8=Resumen!$N$6),Amortización!F73*0.16,0),"") -> 0 | K73: 24487.58351 | L73: 1932190.949 | N73: 0 | R73: 0.1175 | T73: 53 | U73: 24340.3242 | V73: 24340.3242 | X73: 1.078193566 | Y73: 0 | AB73: 777.63 | AG73: 0 | AH73: 0 | AI73: 0 | AK73: AdquisicionPremier50.0745 | AL73: 19.33 | AV73: 53 | AW73: 819990.8423 | AX73: 1739.831255 | AY73: 7140.753585 | AZ73: 0 | BA73: 0 | BB73: 683.3257019 | BC73: =IFERROR(IF(OR($E$11=Resumen!$N$6,$E$8=Resumen!$N$6),Amortización!AY73*0.16,0),"") -> 0 | BD73: 9563.910542 | BE73: 818251.0111 | BF73: 0 | BH73: 0.1045 | BJ73: 53 | BK73: 9469.658721
C74: 54 | D74: 1932190.949 | E74: 3648.829873 | F74: 18919.3697 | G74: =IF(D74="","",L73*Resumen!$L$86/1000) -> 850.1640173 | H74: 777.63 | I74: =IF($E$16=$V$1,0,IF(D74="","",Amortización!$AE$14*1.16)) -> 290 | J74: =IFERROR(IF(OR($E$11=Resumen!$N$6,$E$8=Resumen!$N$6),Amortización!F74*0.16,0),"") -> 0 | K74: 24485.99359 | L74: 1928542.119 | N74: 0 | Q74: =IF(OR(L73=0,L73=""),"",IF(E74>=D74,0,$E$17*10%)) -> 0 | R74: 0.1175 | T74: 54 | U74: 24338.73428 | V74: 24338.73428 | X74: 1.078193566 | Y74: 0 | AB74: 777.63 | AG74: 0 | AH74: 0 | AI74: 0 | AK74: AdquisicionPremier100.077 | AL74: 11.12 | AV74: 54 | AW74: 818251.0111 | AX74: 1754.982286 | AY74: 7125.602555 | AZ74: 0 | BA74: 0 | BB74: 681.8758426 | BC74: =IFERROR(IF(OR($E$11=Resumen!$N$6,$E$8=Resumen!$N$6),Amortización!AY74*0.16,0),"") -> 0 | BD74: 9562.460683 | BE74: 816496.0288 | BF74: 0 | BH74: 0.1045 | BJ74: 54 | BK74: 9468.408843
C75: 55 | D75: 1928542.119 | E75: 3684.557999 | F75: 18883.64158 | G75: =IF(D75="","",L74*Resumen!$L$86/1000) -> 848.5585322 | H75: 777.63 | I75: =IF($E$16=$V$1,0,IF(D75="","",Amortización!$AE$14*1.16)) -> 290 | J75: =IFERROR(IF(OR($E$11=Resumen!$N$6,$E$8=Resumen!$N$6),Amortización!F75*0.16,0),"") -> 0 | K75: 24484.38811 | L75: 1924857.561 | N75: 0 | R75: 0.1175 | T75: 55 | U75: 24337.1288 | V75: 24337.1288 | X75: 1.078193566 | Y75: 0 | AB75: 777.63 | AG75: 0 | AH75: 0 | AI75: 0 | AK75: AdquisicionPremier150.0795 | AL75: 8.56 | AV75: 55 | AW75: 816496.0288 | AX75: 1770.265256 | AY75: 7110.319584 | AZ75: 0 | BA75: 0 | BB75: 680.4133573 | BC75: =IFERROR(IF(OR($E$11=Resumen!$N$6,$E$8=Resumen!$N$6),Amortización!AY75*0.16,0),"") -> 0 | BD75: 9560.998198 | BE75: 814725.7635 | BF75: 0 | BH75: 0.1045 | BJ75: 55 | BK75: 9467.148079
C76: 56 | D76: 1924857.561 | E76: 3720.635963 | F76: 18847.56361 | G76: =IF(D76="","",L75*Resumen!$L$86/1000) -> 846.9373267 | H76: 777.63 | I76: =IF($E$16=$V$1,0,IF(D76="","",Amortización!$AE$14*1.16)) -> 290 | J76: =IFERROR(IF(OR($E$11=Resumen!$N$6,$E$8=Resumen!$N$6),Amortización!F76*0.16,0),"") -> 0 | K76: 24482.7669 | L76: 1921136.925 | N76: 0 | Q76: =IF(OR(L75=0,L75=""),"",IF(E76>=D76,0,$E$17*10%)) -> 0 | R76: 0.1175 | T76: 56 | U76: 24335.50759 | V76: 24335.50759 | X76: 1.078193566 | Y76: 0 | AB76: 777.63 | AG76: 0 | AH76: 0 | AI76: 0 | AK76: AdquisicionPremier200.0795 | AL76: 7.28 | AV76: 56 | AW76: 814725.7635 | AX76: 1785.681316 | AY76: 7094.903524 | AZ76: 0 | BA76: 0 | BB76: 678.9381363 | BC76: =IFERROR(IF(OR($E$11=Resumen!$N$6,$E$8=Resumen!$N$6),Amortización!AY76*0.16,0),"") -> 0 | BD76: 9559.522977 | BE76: 812940.0822 | BF76: 0 | BH76: 0.1045 | BJ76: 56 | BK76: 9465.876337
C77: 57 | D77: 1921136.925 | E77: 3757.06719 | F77: 18811.13239 | G77: =IF(D77="","",L76*Resumen!$L$86/1000) -> 845.3002469 | H77: 777.63 | I77: =IF($E$16=$V$1,0,IF(D77="","",Amortización!$AE$14*1.16)) -> 290 | J77: =IFERROR(IF(OR($E$11=Resumen!$N$6,$E$8=Resumen!$N$6),Amortización!F77*0.16,0),"") -> 0 | K77: 24481.12982 | L77: 1917379.857 | N77: 0 | R77: 0.1175 | T77: 57 | U77: 24333.87051 | V77: 24333.87051 | X77: 1.078193566 | Y77: 0 | AB77: 777.63 | AG77: 0 | AH77: 0 | AI77: 0 | AK77: Pago de HipotecaPremier50.0745 | AL77: 19.33 | AV77: 57 | AW77: 812940.0822 | AX77: 1801.231624 | AY77: 7079.353216 | AZ77: 0 | BA77: 0 | BB77: 677.4500685 | BC77: =IFERROR(IF(OR($E$11=Resumen!$N$6,$E$8=Resumen!$N$6),Amortización!AY77*0.16,0),"") -> 0 | BD77: 9558.034909 | BE77: 811138.8506 | BF77: 0 | BH77: 0.1045 | BJ77: 57 | BK77: 9464.59352
C78: 58 | D78: 1917379.857 | E78: 3793.855139 | F78: 18774.34444 | G78: =IF(D78="","",L77*Resumen!$L$86/1000) -> 843.6471373 | H78: 777.63 | I78: =IF($E$16=$V$1,0,IF(D78="","",Amortización!$AE$14*1.16)) -> 290 | J78: =IFERROR(IF(OR($E$11=Resumen!$N$6,$E$8=Resumen!$N$6),Amortización!F78*0.16,0),"") -> 0 | K78: 24479.47671 | L78: 1913586.002 | N78: 0 | Q78: =IF(OR(L77=0,L77=""),"",IF(E78>=D78,0,$E$17*10%)) -> 0 | R78: 0.1175 | T78: 58 | U78: 24332.2174 | V78: 24332.2174 | X78: 1.078193566 | Y78: 0 | AB78: 777.63 | AG78: 0 | AH78: 0 | AI78: 0 | AK78: Pago de HipotecaPremier100.077 | AL78: 11.12 | AV78: 58 | AW78: 811138.8506 | AX78: 1816.91735 | AY78: 7063.667491 | AZ78: 0 | BA78: 0 | BB78: 675.9490422 | BC78: =IFERROR(IF(OR($E$11=Resumen!$N$6,$E$8=Resumen!$N$6),Amortización!AY78*0.16,0),"") -> 0 | BD78: 9556.533883 | BE78: 809321.9333 | BF78: 0 | BH78: 0.1045 | BJ78: 58 | BK78: 9463.299532
C79: 59 | D79: 1913586.002 | E79: 3831.003304 | F79: 18737.19627 | G79: =IF(D79="","",L78*Resumen!$L$86/1000) -> 841.977841 | H79: 777.63 | I79: =IF($E$16=$V$1,0,IF(D79="","",Amortización!$AE$14*1.16)) -> 290 | J79: =IFERROR(IF(OR($E$11=Resumen!$N$6,$E$8=Resumen!$N$6),Amortización!F79*0.16,0),"") -> 0 | K79: 24477.80742 | L79: 1909754.999 | N79: 0 | R79: 0.1175 | T79: 59 | U79: 24330.54811 | V79: 24330.54811 | X79: 1.078193566 | Y79: 0 | AB79: 777.63 | AG79: 0 | AH79: 0 | AI79: 0 | AK79: Pago de HipotecaPremier150.0795 | AL79: 8.56 | AV79: 59 | AW79: 809321.9333 | AX79: 1832.739672 | AY79: 7047.845169 | AZ79: 0 | BA79: 0 | BB79: 674.4349444 | BC79: =IFERROR(IF(OR($E$11=Resumen!$N$6,$E$8=Resumen!$N$6),Amortización!AY79*0.16,0),"") -> 0 | BD79: 9555.019785 | BE79: 807489.1936 | BF79: 0 | BH79: 0.1045 | BJ79: 59 | BK79: 9461.994275
C80: 60 | D80: 1909754.999 | E80: 3868.515212 | F80: 18699.68437 | G80: =IF(D80="","",L79*Resumen!$L$86/1000) -> 840.2921996 | H80: 777.63 | I80: =IF($E$16=$V$1,0,IF(D80="","",Amortización!$AE$14*1.16)) -> 290 | J80: =IFERROR(IF(OR($E$11=Resumen!$N$6,$E$8=Resumen!$N$6),Amortización!F80*0.16,0),"") -> 0 | K80: 24476.12178 | L80: 1905886.484 | N80: 0 | Q80: =IF(OR(L79=0,L79=""),"",IF(E80>=D80,0,$E$17*10%)) -> 0 | R80: 0.1175 | T80: 60 | U80: 24328.86247 | V80: 24328.86247 | X80: 1.078193566 | Y80: 0 | AB80: 777.63 | AG80: 0 | AH80: 0 | AI80: 0 | AK80: Pago de HipotecaPremier200.0795 | AL80: 7.28 | AV80: 60 | AW80: 807489.1936 | AX80: 1848.69978 | AY80: 7031.885061 | AZ80: 0 | BA80: 0 | BB80: 672.9076613 | BC80: =IFERROR(IF(OR($E$11=Resumen!$N$6,$E$8=Resumen!$N$6),Amortización!AY80*0.16,0),"") -> 0 | BD80: 9553.492502 | BE80: 805640.4938 | BF80: 0 | BH80: 0.1045 | BJ80: 60 | BK80: 9460.677652
C81: 61 | D81: 1905886.484 | E81: 3906.394423 | F81: 18661.80515 | G81: =IF(D81="","",L80*Resumen!$L$86/1000) -> 838.5900529 | H81: 777.63 | I81: =IF($E$16=$V$1,0,IF(D81="","",Amortización!$AE$14*1.16)) -> 290 | J81: =IFERROR(IF(OR($E$11=Resumen!$N$6,$E$8=Resumen!$N$6),Amortización!F81*0.16,0),"") -> 0 | K81: 24474.41963 | L81: 1901980.089 | N81: 0 | R81: 0.1175 | T81: 61 | U81: 24327.16032 | V81: 24327.16032 | X81: 1.098679244 | Y81: 0 | AB81: 777.63 | AG81: 0 | AH81: 0 | AI81: 0 | AV81: 61 | AW81: 805640.4938 | AX81: 1864.798874 | AY81: 7015.785967 | AZ81: 0 | BA81: 0 | BB81: 671.3670782 | BC81: =IFERROR(IF(OR($E$11=Resumen!$N$6,$E$8=Resumen!$N$6),Amortización!AY81*0.16,0),"") -> 0 | BD81: 9551.951919 | BE81: 803775.6949 | BF81: 0 | BH81: 0.1045 | BJ81: 61 | BK81: 9459.349563
C82: 62 | D82: 1901980.089 | E82: 3944.644535 | F82: 18623.55504 | G82: =IF(D82="","",L81*Resumen!$L$86/1000) -> 836.8712393 | H82: 777.63 | I82: =IF($E$16=$V$1,0,IF(D82="","",Amortización!$AE$14*1.16)) -> 290 | J82: =IFERROR(IF(OR($E$11=Resumen!$N$6,$E$8=Resumen!$N$6),Amortización!F82*0.16,0),"") -> 0 | K82: 24472.70082 | L82: 1898035.445 | N82: 0 | Q82: =IF(OR(L81=0,L81=""),"",IF(E82>=D82,0,$E$17*10%)) -> 0 | R82: 0.1175 | T82: 62 | U82: 24325.44151 | V82: 24325.44151 | X82: 1.098679244 | Y82: 0 | AB82: 777.63 | AG82: 0 | AH82: 0 | AI82: 0 | AV82: 62 | AW82: 803775.6949 | AX82: 1881.038164 | AY82: 6999.546677 | AZ82: 0 | BA82: 0 | BB82: 669.8130791 | BC82: =IFERROR(IF(OR($E$11=Resumen!$N$6,$E$8=Resumen!$N$6),Amortización!AY82*0.16,0),"") -> 0 | BD82: 9550.397919 | BE82: 801894.6568 | BF82: 0 | BH82: 0.1045 | BJ82: 62 | BK82: 9458.009909
C83: 63 | D83: 1898035.445 | E83: 3983.26918 | F83: 18584.9304 | G83: =IF(D83="","",L82*Resumen!$L$86/1000) -> 835.1355957 | H83: 777.63 | I83: =IF($E$16=$V$1,0,IF(D83="","",Amortización!$AE$14*1.16)) -> 290 | J83: =IFERROR(IF(OR($E$11=Resumen!$N$6,$E$8=Resumen!$N$6),Amortización!F83*0.16,0),"") -> 0 | K83: 24470.96517 | L83: 1894052.176 | N83: 0 | R83: 0.1175 | T83: 63 | U83: 24323.70586 | V83: 24323.70586 | X83: 1.098679244 | Y83: 0 | AB83: 777.63 | AG83: 0 | AH83: 0 | AI83: 0 | AV83: 63 | AW83: 801894.6568 | AX83: 1897.418871 | AY83: 6983.165969 | AZ83: 0 | BA83: 0 | BB83: 668.2455473 | BC83: =IFERROR(IF(OR($E$11=Resumen!$N$6,$E$8=Resumen!$N$6),Amortización!AY83*0.16,0),"") -> 0 | BD83: 9548.830388 | BE83: 799997.2379 | BF83: 0 | BH83: 0.1045 | BJ83: 63 | BK83: 9456.658588
C84: 64 | D84: 1894052.176 | E84: 4022.272024 | F84: 18545.92755 | G84: =IF(D84="","",L83*Resumen!$L$86/1000) -> 833.3829573 | H84: 777.63 | I84: =IF($E$16=$V$1,0,IF(D84="","",Amortización!$AE$14*1.16)) -> 290 | J84: =IFERROR(IF(OR($E$11=Resumen!$N$6,$E$8=Resumen!$N$6),Amortización!F84*0.16,0),"") -> 0 | K84: 24469.21253 | L84: 1890029.904 | N84: 0 | Q84: =IF(OR(L83=0,L83=""),"",IF(E84>=D84,0,$E$17*10%)) -> 0 | R84: 0.1175 | T84: 64 | U84: 24321.95322 | V84: 24321.95322 | X84: 1.098679244 | Y84: 0 | AB84: 777.63 | AG84: 0 | AH84: 0 | AI84: 0 | AV84: 64 | AW84: 799997.2379 | AX84: 1913.942227 | AY84: 6966.642613 | AZ84: 0 | BA84: 0 | BB84: 666.6643649 | BC84: =IFERROR(IF(OR($E$11=Resumen!$N$6,$E$8=Resumen!$N$6),Amortización!AY84*0.16,0),"") -> 0 | BD84: 9547.249205 | BE84: 798083.2957 | BF84: 0 | BH84: 0.1045 | BJ84: 64 | BK84: 9455.2955
C85: 65 | D85: 1890029.904 | E85: 4061.656771 | F85: 18506.54281 | G85: =IF(D85="","",L84*Resumen!$L$86/1000) -> 831.6131576 | H85: 777.63 | I85: =IF($E$16=$V$1,0,IF(D85="","",Amortización!$AE$14*1.16)) -> 290 | J85: =IFERROR(IF(OR($E$11=Resumen!$N$6,$E$8=Resumen!$N$6),Amortización!F85*0.16,0),"") -> 0 | K85: 24467.44274 | L85: 1885968.247 | N85: 0 | R85: 0.1175 | T85: 65 | U85: 24320.18342 | V85: 24320.18342 | X85: 1.098679244 | Y85: 0 | AB85: 777.63 | AG85: 0 | AH85: 0 | AI85: 0 | AV85: 65 | AW85: 798083.2957 | AX85: 1930.609474 | AY85: 6949.975366 | AZ85: 0 | BA85: 0 | BB85: 665.0694131 | BC85: =IFERROR(IF(OR($E$11=Resumen!$N$6,$E$8=Resumen!$N$6),Amortización!AY85*0.16,0),"") -> 0 | BD85: 9545.654253 | BE85: =IFERROR(IF(AW85="","",IF((AW85-AX85-BY85)<1,0,AW85-AX85-BY85)),0) -> 796152.6862 | BF85: =IF(OR(BE84=0,BE84=""),"",0) -> 0 | BH85: 0.1045 | BJ85: 65 | BK85: 9453.920541
C86: 66 | D86: 1885968.247 | E86: 4101.42716 | F86: 18466.77242 | G86: =IF(D86="","",L85*Resumen!$L$86/1000) -> 829.8260286 | H86: =IF($E$16=$V$1,0,IF(D86="","",IF($E$11="Liquidez","0",AB86))) -> 777.63 | I86: =IF($E$16=$V$1,0,IF(D86="","",Amortización!$AE$14*1.16)) -> 290 | J86: =IFERROR(IF(OR($E$11=Resumen!$N$6,$E$8=Resumen!$N$6),Amortización!F86*0.16,0),"") -> 0 | K86: =IFERROR(IF(D86="","",E86+F86+G86+H86+I86+Y86+J86),0) -> 24465.65561 | L86: =IFERROR(IF(D86="","",IF((D86-E86-AI86-Q86)<1,0,D86-E86-AI86-Q86)),0) -> 1881866.82 | N86: =IF(OR(O86="",O86=0),M86,M86-O86-P86) -> 0 | P86: =IF(O86="","",IF(O86=0,0,O86*0.16)) ->  | Q86: =IF(OR(L85=0,L85=""),"",IF(E86>=D86,0,$E$17*10%)) -> 0 | R86: 0.1175 | T86: 66 | U86: 24318.3963 | V86: =IF($E$16=$V$1,AI86,IF(ISNUMBER(T86),IF($E$14="Pago Fijo",PMT(R86/12,$K$11,-$K$9),X86*$K$15*$K$9/1000)+G86+AI86+Q86+H86/1.16+$AE$14,0)) -> 24318.3963 | X86: 1.098679244 | Y86: 0 | AB86: =IF((($K$8*0.7)*($AE$13))>L85*($AE$13),($K$8*0.7)*($AE$13),($AE$13)*L85) -> 777.63 | AG86: =IF($AH$20=0,0,IF(N86>AH85,MAX(0,N86-AH85),N86)) -> 0 | AH86: =IFERROR(MAX(0,AH85-N86),0) -> 0 | AI86: =IF($E$16="no",N86,IF(AH86>0,0,AG86)) -> 0 | AV86: =IF(OR(BE85="",BE85=0),"",IF(AV85+1>$K$11+$X$2,"",AV85+1)) -> 66 | AW86: =IF(IF(AW85="","",AW85-AX85-BM85-BY85)<0.01,"",IF(AW85="","",BE85)) -> 796152.6862 | AX86: =IF($E$16=$V$1,0,IF(AW86="","",PMT($AY$10/12,$AY$11,-$AW$21)-AY86)) -> 1947.421865 | AY86: 6933.162976 | AZ86: =IF($E$16=$V$1,0,IF(AW86="","",BE85*0/1000)) -> 0 | BA86: =IF($E$16=$V$1,0,IF(AW86="","",IF($E$11="Liquidez","0",0))) -> 0 | BB86: =IF($E$16=$V$1,0,IF(AW86="","",AW86*$AY$13/12)) -> 663.4605718 | BC86: =IFERROR(IF(OR($E$11=Resumen!$N$6,$E$8=Resumen!$N$6),Amortización!AY86*0.16,0),"") -> 0 | BD86: =IFERROR(IF(AW86="","",AX86+AY86+AZ86+BA86+BB86+BC86),0) -> 9544.045412 | BE86: 794205.2643 | BF86: 0 | BH86: 0.1045 | BJ86: =AV86 -> 66 | BK86: =IF(AW86="","",AX86+AY86+AZ86+BA86/1.16+BB86/1.16) -> 9452.533609
C87: =IF(OR(L86="",L86=0),"",IF(C86+1>$K$11+$X$2,"",C86+1)) -> 67 | D87: =IF(IF(D86="","",D86-E86-Q86-AI86)<0.01,"",IF(D86="","",L86)) -> 1881866.82 | E87: 4141.586967 | F87: 18426.61261 | G87: =IF(D87="","",L86*Resumen!$L$86/1000) -> 828.0214007 | H87: 777.63 | I87: =IF($E$16=$V$1,0,IF(D87="","",Amortización!$AE$14*1.16)) -> 290 | J87: =IFERROR(IF(OR($E$11=Resumen!$N$6,$E$8=Resumen!$N$6),Amortización!F87*0.16,0),"") -> 0 | K87: 24463.85098 | L87: 1877725.233 | N87: 0 | R87: =IF(D87="","",R86) -> 0.1175 | T87: =C87 -> 67 | U87: 24316.59167 | V87: 24316.59167 | X87: 1.098679244 | Y87: 0 | AB87: 777.63 | AG87: 0 | AH87: 0 | AI87: 0 | AV87: 67 | AW87: 794205.2643 | AX87: 1964.380664 | AY87: 6916.204177 | AZ87: 0 | BA87: 0 | BB87: 661.8377203 | BC87: =IFERROR(IF(OR($E$11=Resumen!$N$6,$E$8=Resumen!$N$6),Amortización!AY87*0.16,0),"") -> 0 | BD87: 9542.422561 | BE87: 792240.8837 | BF87: 0 | BH87: 0.1045 | BJ87: 67 | BK87: 9451.134599
C88: 68 | D88: 1877725.233 | E88: 4182.140006 | F88: 18386.05957 | G88: =IF(D88="","",L87*Resumen!$L$86/1000) -> 826.1991024 | H88: 777.63 | I88: =IF($E$16=$V$1,0,IF(D88="","",Amortización!$AE$14*1.16)) -> 290 | J88: =IFERROR(IF(OR($E$11=Resumen!$N$6,$E$8=Resumen!$N$6),Amortización!F88*0.16,0),"") -> 0 | K88: 24462.02868 | L88: 1873543.093 | N88: 0 | O88: =IF(M88="","",IF(AND($H$12="C. Penalización Pago Anticipado",C88<=60),M88-(M88/(1+$K$12)),0)) ->  | Q88: =IF(OR(L87=0,L87=""),"",IF(E88>=D88,0,$E$17*10%)) -> 0 | R88: 0.1175 | T88: 68 | U88: =IF(D88="","",E88+F88+G88+H88/1.16+(I88/1.16)+Q88) -> 24314.76937 | V88: 24314.76937 | X88: 1.098679244 | Y88: 0 | AB88: 777.63 | AG88: 0 | AH88: 0 | AI88: 0 | AV88: 68 | AW88: 792240.8837 | AX88: 1981.487145 | AY88: =IF(AW88="","",AW88*(BH88/12)) -> 6899.097695 | AZ88: 0 | BA88: 0 | BB88: 660.2007364 | BC88: =IFERROR(IF(OR($E$11=Resumen!$N$6,$E$8=Resumen!$N$6),Amortización!AY88*0.16,0),"") -> 0 | BD88: 9540.785577 | BE88: 790259.3965 | BF88: 0 | BH88: 0.1045 | BJ88: 68 | BK88: 9449.723406
C89: 69 | D89: 1873543.093 | E89: =IFERROR(IF($E$14&$E$16=$X$4,PMT(R89/12,$K$11,-$K$9)-F89,IF(D89="","",IF($E$14="Pago Fijo",MIN(IF($E$15="Mensualidad",-PMT(R89/12,$K$11-C88,D89)-F89,-PMT(R89/12,$K$11,$K$9)-F89),D89),MIN(X89*$K$9*$K$15/1000-F89,D89)))),0) -> 4223.090127 | F89: 18345.10945 | G89: =IF(D89="","",L88*Resumen!$L$86/1000) -> 824.3589608 | H89: 777.63 | I89: =IF($E$16=$V$1,0,IF(D89="","",Amortización!$AE$14*1.16)) -> 290 | J89: =IFERROR(IF(OR($E$11=Resumen!$N$6,$E$8=Resumen!$N$6),Amortización!F89*0.16,0),"") -> 0 | K89: 24460.18854 | L89: 1869320.003 | N89: 0 | R89: 0.1175 | T89: 69 | U89: 24312.92923 | V89: 24312.92923 | X89: 1.098679244 | Y89: 0 | AB89: 777.63 | AG89: 0 | AH89: 0 | AI89: 0 | AV89: 69 | AW89: 790259.3965 | AX89: 1998.742596 | AY89: 6881.842245 | AZ89: 0 | BA89: 0 | BB89: 658.5494971 | BC89: =IFERROR(IF(OR($E$11=Resumen!$N$6,$E$8=Resumen!$N$6),Amortización!AY89*0.16,0),"") -> 0 | BD89: 9539.134337 | BE89: 788260.6539 | BF89: 0 | BH89: 0.1045 | BJ89: 69 | BK89: 9448.299924
C90: 70 | D90: 1869320.003 | E90: 4264.441218 | F90: =IF(D90="","",D90*(R90/12)) -> 18303.75836 | G90: =IF(D90="","",L89*Resumen!$L$86/1000) -> 822.5008012 | H90: 777.63 | I90: =IF($E$16=$V$1,0,IF(D90="","",Amortización!$AE$14*1.16)) -> 290 | J90: =IFERROR(IF(OR($E$11=Resumen!$N$6,$E$8=Resumen!$N$6),Amortización!F90*0.16,0),"") -> 0 | K90: 24458.33038 | L90: 1865055.561 | N90: 0 | Q90: =IF(OR(L89=0,L89=""),"",IF(E90>=D90,0,$E$17*10%)) -> 0 | R90: 0.1175 | T90: 70 | U90: 24311.07107 | V90: 24311.07107 | X90: 1.098679244 | Y90: 0 | AB90: 777.63 | AG90: 0 | AH90: 0 | AI90: 0 | AV90: 70 | AW90: 788260.6539 | AX90: 2016.148312 | AY90: 6864.436528 | AZ90: 0 | BA90: 0 | BB90: 656.8838783 | BC90: =IFERROR(IF(OR($E$11=Resumen!$N$6,$E$8=Resumen!$N$6),Amortización!AY90*0.16,0),"") -> 0 | BD90: 9537.468719 | BE90: 786244.5056 | BF90: 0 | BH90: 0.1045 | BJ90: 70 | BK90: 9446.864046
C91: 71 | D91: 1865055.561 | E91: 4306.197205 | F91: 18262.00237 | G91: =IF(D91="","",L90*Resumen!$L$86/1000) -> 820.624447 | H91: 777.63 | I91: =IF($E$16=$V$1,0,IF(D91="","",Amortización!$AE$14*1.16)) -> 290 | J91: =IFERROR(IF(OR($E$11=Resumen!$N$6,$E$8=Resumen!$N$6),Amortización!F91*0.16,0),"") -> 0 | K91: 24456.45402 | L91: 1860749.364 | N91: 0 | R91: 0.1175 | T91: 71 | U91: 24309.19471 | V91: 24309.19471 | X91: 1.098679244 | Y91: 0 | AB91: 777.63 | AG91: 0 | AH91: 0 | AI91: 0 | AV91: 71 | AW91: 786244.5056 | AX91: 2033.705604 | AY91: 6846.879236 | AZ91: 0 | BA91: 0 | BB91: 655.2037547 | BC91: =IFERROR(IF(OR($E$11=Resumen!$N$6,$E$8=Resumen!$N$6),Amortización!AY91*0.16,0),"") -> 0 | BD91: 9535.788595 | BE91: 784210.8 | BF91: 0 | BH91: 0.1045 | BJ91: 71 | BK91: 9445.415663
C92: 72 | D92: 1860749.364 | E92: 4348.362053 | F92: 18219.83752 | G92: =IF(D92="","",L91*Resumen!$L$86/1000) -> 818.7297203 | H92: 777.63 | I92: =IF($E$16=$V$1,0,IF(D92="","",Amortización!$AE$14*1.16)) -> 290 | J92: =IFERROR(IF(OR($E$11=Resumen!$N$6,$E$8=Resumen!$N$6),Amortización!F92*0.16,0),"") -> 0 | K92: 24454.5593 | L92: 1856401.002 | N92: 0 | Q92: =IF(OR(L91=0,L91=""),"",IF(E92>=D92,0,$E$17*10%)) -> 0 | R92: 0.1175 | T92: 72 | U92: 24307.29999 | V92: 24307.29999 | X92: 1.098679244 | Y92: 0 | AB92: 777.63 | AG92: 0 | AH92: 0 | AI92: 0 | AV92: 72 | AW92: 784210.8 | AX92: 2051.41579 | AY92: 6829.16905 | AZ92: 0 | BA92: 0 | BB92: 653.509 | BC92: =IFERROR(IF(OR($E$11=Resumen!$N$6,$E$8=Resumen!$N$6),Amortización!AY92*0.16,0),"") -> 0 | BD92: 9534.09384 | BE92: 782159.3842 | BF92: 0 | BH92: 0.1045 | BJ92: 72 | BK92: 9443.954668
C93: 73 | D93: 1856401.002 | E93: 4390.939765 | F93: 18177.25981 | G93: =IF(D93="","",L92*Resumen!$L$86/1000) -> 816.816441 | H93: 777.63 | I93: =IF($E$16=$V$1,0,IF(D93="","",Amortización!$AE$14*1.16)) -> 290 | J93: =IFERROR(IF(OR($E$11=Resumen!$N$6,$E$8=Resumen!$N$6),Amortización!F93*0.16,0),"") -> 0 | K93: 24452.64602 | L93: 1852010.062 | N93: 0 | R93: 0.1175 | T93: 73 | U93: 24305.38671 | V93: 24305.38671 | X93: 1.11955415 | Y93: 0 | AB93: 777.63 | AG93: 0 | AH93: 0 | AI93: 0 | AV93: 73 | AW93: 782159.3842 | AX93: 2069.280203 | AY93: 6811.304638 | AZ93: 0 | BA93: 0 | BB93: 651.7994868 | BC93: =IFERROR(IF(OR($E$11=Resumen!$N$6,$E$8=Resumen!$N$6),Amortización!AY93*0.16,0),"") -> 0 | BD93: 9532.384327 | BE93: 780090.104 | BF93: 0 | BH93: 0.1045 | BJ93: 73 | BK93: 9442.48095
C94: 74 | D94: 1852010.062 | E94: 4433.934383 | F94: 18134.26519 | G94: =IF(D94="","",L93*Resumen!$L$86/1000) -> 814.8844275 | H94: 777.63 | I94: =IF($E$16=$V$1,0,IF(D94="","",Amortización!$AE$14*1.16)) -> 290 | J94: =IFERROR(IF(OR($E$11=Resumen!$N$6,$E$8=Resumen!$N$6),Amortización!F94*0.16,0),"") -> 0 | K94: 24450.714 | L94: 1847576.128 | N94: 0 | Q94: =IF(OR(L93=0,L93=""),"",IF(E94>=D94,0,$E$17*10%)) -> 0 | R94: 0.1175 | T94: 74 | U94: 24303.45469 | V94: 24303.45469 | X94: 1.11955415 | Y94: 0 | AB94: 777.63 | AG94: 0 | AH94: 0 | AI94: 0 | AV94: 74 | AW94: 780090.104 | AX94: 2087.300185 | AY94: 6793.284656 | AZ94: 0 | BA94: 0 | BB94: 650.0750867 | BC94: =IFERROR(IF(OR($E$11=Resumen!$N$6,$E$8=Resumen!$N$6),Amortización!AY94*0.16,0),"") -> 0 | BD94: 9530.659927 | BE94: 778002.8038 | BF94: 0 | BH94: 0.1045 | BJ94: 74 | BK94: 9440.994398
C95: 75 | D95: 1847576.128 | E95: 4477.349991 | F95: 18090.84959 | G95: =IF(D95="","",L94*Resumen!$L$86/1000) -> 812.9334963 | H95: 777.63 | I95: =IF($E$16=$V$1,0,IF(D95="","",Amortización!$AE$14*1.16)) -> 290 | J95: =IFERROR(IF(OR($E$11=Resumen!$N$6,$E$8=Resumen!$N$6),Amortización!F95*0.16,0),"") -> 0 | K95: 24448.76307 | L95: 1843098.778 | N95: 0 | R95: 0.1175 | T95: 75 | U95: 24301.50376 | V95: 24301.50376 | X95: 1.11955415 | Y95: 0 | AB95: 777.63 | AG95: 0 | AH95: 0 | AI95: 0 | AV95: 75 | AW95: 778002.8038 | AX95: 2105.47709 | AY95: 6775.10775 | AZ95: 0 | BA95: 0 | BB95: 648.3356699 | BC95: =IFERROR(IF(OR($E$11=Resumen!$N$6,$E$8=Resumen!$N$6),Amortización!AY95*0.16,0),"") -> 0 | BD95: 9528.92051 | BE95: 775897.3267 | BF95: 0 | BH95: 0.1045 | BJ95: 75 | BK95: 9439.494901
C96: 76 | D96: 1843098.778 | E96: 4521.190709 | F96: 18047.00887 | G96: =IF(D96="","",L95*Resumen!$L$86/1000) -> 810.9634623 | H96: 777.63 | I96: =IF($E$16=$V$1,0,IF(D96="","",Amortización!$AE$14*1.16)) -> 290 | J96: =IFERROR(IF(OR($E$11=Resumen!$N$6,$E$8=Resumen!$N$6),Amortización!F96*0.16,0),"") -> 0 | K96: 24446.79304 | L96: 1838577.587 | N96: 0 | Q96: =IF(OR(L95=0,L95=""),"",IF(E96>=D96,0,$E$17*10%)) -> 0 | R96: 0.1175 | T96: 76 | U96: 24299.53373 | V96: 24299.53373 | X96: 1.11955415 | Y96: 0 | AB96: 777.63 | AG96: 0 | AH96: 0 | AI96: 0 | AV96: 76 | AW96: 775897.3267 | AX96: 2123.812287 | AY96: 6756.772554 | AZ96: 0 | BA96: 0 | BB96: 646.5811056 | BC96: =IFERROR(IF(OR($E$11=Resumen!$N$6,$E$8=Resumen!$N$6),Amortización!AY96*0.16,0),"") -> 0 | BD96: 9527.165946 | BE96: 773773.5144 | BF96: 0 | BH96: 0.1045 | BJ96: 76 | BK96: 9437.982345
C97: 77 | D97: 1838577.587 | E97: 4565.460702 | F97: 18002.73888 | G97: =IF(D97="","",L96*Resumen!$L$86/1000) -> 808.9741384 | H97: 777.63 | I97: =IF($E$16=$V$1,0,IF(D97="","",Amortización!$AE$14*1.16)) -> 290 | J97: =IFERROR(IF(OR($E$11=Resumen!$N$6,$E$8=Resumen!$N$6),Amortización!F97*0.16,0),"") -> 0 | K97: 24444.80372 | L97: 1834012.127 | N97: 0 | R97: 0.1175 | T97: 77 | U97: 24297.54441 | V97: 24297.54441 | X97: 1.11955415 | Y97: 0 | AB97: 777.63 | AG97: 0 | AH97: 0 | AI97: 0 | AV97: 77 | AW97: 773773.5144 | AX97: 2142.307152 | AY97: 6738.277688 | AZ97: 0 | BA97: 0 | BB97: 644.811262 | BC97: =IFERROR(IF(OR($E$11=Resumen!$N$6,$E$8=Resumen!$N$6),Amortización!AY97*0.16,0),"") -> 0 | BD97: 9525.396102 | BE97: 771631.2073 | BF97: 0 | BH97: 0.1045 | BJ97: 77 | BK97: 9436.456618
C98: 78 | D98: 1834012.127 | E98: 4610.164171 | F98: 17958.03541 | G98: =IF(D98="","",L97*Resumen!$L$86/1000) -> 806.9653357 | H98: 777.63 | I98: =IF($E$16=$V$1,0,IF(D98="","",Amortización!$AE$14*1.16)) -> 290 | J98: =IFERROR(IF(OR($E$11=Resumen!$N$6,$E$8=Resumen!$N$6),Amortización!F98*0.16,0),"") -> 0 | K98: 24442.79491 | L98: 1829401.962 | N98: 0 | Q98: =IF(OR(L97=0,L97=""),"",IF(E98>=D98,0,$E$17*10%)) -> 0 | R98: 0.1175 | T98: 78 | U98: 24295.5356 | V98: 24295.5356 | X98: 1.11955415 | Y98: 0 | AB98: 777.63 | AG98: 0 | AH98: 0 | AI98: 0 | AV98: 78 | AW98: 771631.2073 | AX98: 2160.963077 | AY98: 6719.621764 | AZ98: 0 | BA98: 0 | BB98: 643.0260061 | BC98: =IFERROR(IF(OR($E$11=Resumen!$N$6,$E$8=Resumen!$N$6),Amortización!AY98*0.16,0),"") -> 0 | BD98: 9523.610846 | BE98: 769470.2442 | BF98: 0 | BH98: 0.1045 | BJ98: 78 | BK98: 9434.917604
C99: 79 | D99: 1829401.962 | E99: 4655.305362 | F99: 17912.89422 | G99: =IF(D99="","",L98*Resumen!$L$86/1000) -> 804.9368635 | H99: 777.63 | I99: =IF($E$16=$V$1,0,IF(D99="","",Amortización!$AE$14*1.16)) -> 290 | J99: =IFERROR(IF(OR($E$11=Resumen!$N$6,$E$8=Resumen!$N$6),Amortización!F99*0.16,0),"") -> 0 | K99: 24440.76644 | L99: 1824746.657 | N99: 0 | R99: 0.1175 | T99: 79 | U99: 24293.50713 | V99: 24293.50713 | X99: 1.11955415 | Y99: 0 | AB99: 777.63 | AG99: 0 | AH99: 0 | AI99: 0 | AV99: 79 | AW99: 769470.2442 | AX99: 2179.781464 | AY99: 6700.803377 | AZ99: 0 | BA99: 0 | BB99: 641.2252035 | BC99: =IFERROR(IF(OR($E$11=Resumen!$N$6,$E$8=Resumen!$N$6),Amortización!AY99*0.16,0),"") -> 0 | BD99: 9521.810044 | BE99: 767290.4628 | BF99: 0 | BH99: 0.1045 | BJ99: 79 | BK99: 9433.365188
C100: 80 | D100: 1824746.657 | E100: 4700.88856 | F100: 17867.31102 | G100: =IF(D100="","",L99*Resumen!$L$86/1000) -> 802.8885291 | H100: 777.63 | I100: =IF($E$16=$V$1,0,IF(D100="","",Amortización!$AE$14*1.16)) -> 290 | J100: =IFERROR(IF(OR($E$11=Resumen!$N$6,$E$8=Resumen!$N$6),Amortización!F100*0.16,0),"") -> 0 | K100: 24438.71811 | L100: 1820045.769 | N100: 0 | Q100: =IF(OR(L99=0,L99=""),"",IF(E100>=D100,0,$E$17*10%)) -> 0 | R100: 0.1175 | T100: 80 | U100: 24291.4588 | V100: 24291.4588 | X100: 1.11955415 | Y100: 0 | AB100: 777.63 | AG100: 0 | AH100: 0 | AI100: 0 | AV100: 80 | AW100: 767290.4628 | AX100: 2198.763727 | AY100: 6681.821113 | AZ100: 0 | BA100: 0 | BB100: 639.408719 | BC100: =IFERROR(IF(OR($E$11=Resumen!$N$6,$E$8=Resumen!$N$6),Amortización!AY100*0.16,0),"") -> 0 | BD100: 9519.993559 | BE100: 765091.699 | BF100: 0 | BH100: 0.1045 | BJ100: 80 | BK100: 9431.799253
C101: 81 | D101: 1820045.769 | E101: 4746.918094 | F101: 17821.28148 | G101: =IF(D101="","",L100*Resumen!$L$86/1000) -> 800.8201382 | H101: 777.63 | I101: =IF($E$16=$V$1,0,IF(D101="","",Amortización!$AE$14*1.16)) -> 290 | J101: =IFERROR(IF(OR($E$11=Resumen!$N$6,$E$8=Resumen!$N$6),Amortización!F101*0.16,0),"") -> 0 | K101: 24436.64972 | L101: 1815298.85 | N101: 0 | R101: 0.1175 | T101: 81 | U101: 24289.39041 | V101: 24289.39041 | X101: =IF(OR(AND($E$8="Adquisicion",$E$9="Premier"),AND($E$8="Exclusiva",$E$9="Premier"),AND($E$8="Nomina Especial",$E$9="Premier")),X89*1.019,IF(OR(AND($E$8="Adquisicion",$E$9="No Premier"),AND($E$8="Exclusiva",$E$9="No Premier"),AND($E$8="Nomina Especial",$E$9="No Premier")),X89*1.019,IF($E$8="Pago de Hipoteca",X89*1.019))) -> 1.11955415 | Y101: 0 | AB101: 777.63 | AG101: 0 | AH101: 0 | AI101: 0 | AV101: 81 | AW101: 765091.699 | AX101: 2217.911295 | AY101: 6662.673546 | AZ101: 0 | BA101: 0 | BB101: 637.5764159 | BC101: =IFERROR(IF(OR($E$11=Resumen!$N$6,$E$8=Resumen!$N$6),Amortización!AY101*0.16,0),"") -> 0 | BD101: 9518.161256 | BE101: 762873.7877 | BF101: 0 | BH101: 0.1045 | BJ101: 81 | BK101: 9430.219682
C102: 82 | D102: 1815298.85 | E102: 4793.398334 | F102: 17774.80124 | G102: =IF(D102="","",L101*Resumen!$L$86/1000) -> 798.7314942 | H102: 777.63 | I102: =IF($E$16=$V$1,0,IF(D102="","",Amortización!$AE$14*1.16)) -> 290 | J102: =IFERROR(IF(OR($E$11=Resumen!$N$6,$E$8=Resumen!$N$6),Amortización!F102*0.16,0),"") -> 0 | K102: 24434.56107 | L102: 1810505.452 | N102: 0 | Q102: =IF(OR(L101=0,L101=""),"",IF(E102>=D102,0,$E$17*10%)) -> 0 | R102: 0.1175 | T102: 82 | U102: 24287.30176 | V102: 24287.30176 | X102: 1.11955415 | Y102: 0 | AB102: 777.63 | AG102: 0 | AH102: 0 | AI102: 0 | AV102: 82 | AW102: 762873.7877 | AX102: 2237.225605 | AY102: 6643.359235 | AZ102: 0 | BA102: 0 | BB102: 635.7281564 | BC102: =IFERROR(IF(OR($E$11=Resumen!$N$6,$E$8=Resumen!$N$6),Amortización!AY102*0.16,0),"") -> 0 | BD102: 9516.312997 | BE102: 760636.5621 | BF102: 0 | BH102: 0.1045 | BJ102: 82 | BK102: 9428.626355
C103: 83 | D103: 1810505.452 | E103: 4840.333692 | F103: 17727.86589 | G103: =IF(D103="","",L102*Resumen!$L$86/1000) -> 796.6223989 | H103: 777.63 | I103: =IF($E$16=$V$1,0,IF(D103="","",Amortización!$AE$14*1.16)) -> 290 | J103: =IFERROR(IF(OR($E$11=Resumen!$N$6,$E$8=Resumen!$N$6),Amortización!F103*0.16,0),"") -> 0 | K103: 24432.45198 | L103: 1805665.118 | N103: 0 | R103: 0.1175 | T103: 83 | U103: 24285.19267 | V103: 24285.19267 | X103: 1.11955415 | Y103: 0 | AB103: 777.63 | AG103: 0 | AH103: 0 | AI103: 0 | AV103: 83 | AW103: 760636.5621 | AX103: 2256.708112 | AY103: 6623.876729 | AZ103: 0 | BA103: 0 | BB103: 633.8638018 | BC103: =IFERROR(IF(OR($E$11=Resumen!$N$6,$E$8=Resumen!$N$6),Amortización!AY103*0.16,0),"") -> 0 | BD103: 9514.448642 | BE103: 758379.854 | BF103: 0 | BH103: 0.1045 | BJ103: 83 | BK103: 9427.019152
C104: 84 | D104: 1805665.118 | E104: 4887.728626 | F104: 17680.47095 | G104: =IF(D104="","",L103*Resumen!$L$86/1000) -> 794.4926521 | H104: 777.63 | I104: =IF($E$16=$V$1,0,IF(D104="","",Amortización!$AE$14*1.16)) -> 290 | J104: =IFERROR(IF(OR($E$11=Resumen!$N$6,$E$8=Resumen!$N$6),Amortización!F104*0.16,0),"") -> 0 | K104: 24430.32223 | L104: 1800777.39 | N104: 0 | Q104: =IF(OR(L103=0,L103=""),"",IF(E104>=D104,0,$E$17*10%)) -> 0 | R104: 0.1175 | T104: 84 | U104: 24283.06292 | V104: 24283.06292 | X104: 1.11955415 | Y104: 0 | AB104: 777.63 | AG104: 0 | AH104: 0 | AI104: 0 | AV104: 84 | AW104: 758379.854 | AX104: 2276.360278 | AY104: 6604.224562 | AZ104: 0 | BA104: 0 | BB104: 631.9832117 | BC104: =IFERROR(IF(OR($E$11=Resumen!$N$6,$E$8=Resumen!$N$6),Amortización!AY104*0.16,0),"") -> 0 | BD104: 9512.568052 | BE104: 756103.4937 | BF104: 0 | BH104: 0.1045 | BJ104: 84 | BK104: 9425.397954
C105: 85 | D105: 1800777.39 | E105: 4935.587636 | F105: 17632.61194 | G105: =IF(D105="","",L104*Resumen!$L$86/1000) -> 792.3420515 | H105: 777.63 | I105: =IF($E$16=$V$1,0,IF(D105="","",Amortización!$AE$14*1.16)) -> 290 | J105: =IFERROR(IF(OR($E$11=Resumen!$N$6,$E$8=Resumen!$N$6),Amortización!F105*0.16,0),"") -> 0 | K105: 24428.17163 | L105: 1795841.802 | N105: 0 | R105: 0.1175 | T105: 85 | U105: 24280.91232 | V105: 24280.91232 | X105: 1.140825679 | Y105: 0 | AB105: 777.63 | AG105: 0 | AH105: 0 | AI105: 0 | AV105: 85 | AW105: 756103.4937 | AX105: 2296.183582 | AY105: 6584.401258 | AZ105: 0 | BA105: 0 | BB105: 630.0862448 | BC105: =IFERROR(IF(OR($E$11=Resumen!$N$6,$E$8=Resumen!$N$6),Amortización!AY105*0.16,0),"") -> 0 | BD105: 9510.671085 | BE105: 753807.3102 | BF105: 0 | BH105: 0.1045 | BJ105: 85 | BK105: 9423.762638
C106: 86 | D106: 1795841.802 | E106: 4983.915265 | F106: 17584.28431 | G106: =IF(D106="","",L105*Resumen!$L$86/1000) -> 790.1703929 | H106: 777.63 | I106: =IF($E$16=$V$1,0,IF(D106="","",Amortización!$AE$14*1.16)) -> 290 | J106: =IFERROR(IF(OR($E$11=Resumen!$N$6,$E$8=Resumen!$N$6),Amortización!F106*0.16,0),"") -> 0 | K106: 24425.99997 | L106: 1790857.887 | N106: 0 | Q106: =IF(OR(L105=0,L105=""),"",IF(E106>=D106,0,$E$17*10%)) -> 0 | R106: 0.1175 | T106: 86 | U106: 24278.74066 | V106: 24278.74066 | X106: 1.140825679 | Y106: 0 | AB106: 777.63 | AG106: 0 | AH106: 0 | AI106: 0 | AV106: 86 | AW106: 753807.3102 | AX106: 2316.179514 | AY106: 6564.405326 | AZ106: 0 | BA106: 0 | BB106: 628.1727585 | BC106: =IFERROR(IF(OR($E$11=Resumen!$N$6,$E$8=Resumen!$N$6),Amortización!AY106*0.16,0),"") -> 0 | BD106: 9508.757599 | BE106: 751491.1306 | BF106: 0 | BH106: 0.1045 | BJ106: 86 | BK106: 9422.11308
C107: 87 | D107: 1790857.887 | E107: 5032.716102 | F107: 17535.48348 | G107: =IF(D107="","",L106*Resumen!$L$86/1000) -> 787.9774702 | H107: 777.63 | I107: =IF($E$16=$V$1,0,IF(D107="","",Amortización!$AE$14*1.16)) -> 290 | J107: =IFERROR(IF(OR($E$11=Resumen!$N$6,$E$8=Resumen!$N$6),Amortización!F107*0.16,0),"") -> 0 | K107: 24423.80705 | L107: 1785825.171 | N107: 0 | R107: 0.1175 | T107: 87 | U107: 24276.54774 | V107: 24276.54774 | X107: 1.140825679 | Y107: 0 | AB107: 777.63 | AG107: 0 | AH107: 0 | AI107: 0 | AV107: 87 | AW107: 751491.1306 | AX107: 2336.349578 | AY107: 6544.235263 | AZ107: 0 | BA107: 0 | BB107: 626.2426089 | BC107: =IFERROR(IF(OR($E$11=Resumen!$N$6,$E$8=Resumen!$N$6),Amortización!AY107*0.16,0),"") -> 0 | BD107: 9506.827449 | BE107: 749154.7811 | BF107: 0 | BH107: 0.1045 | BJ107: 87 | BK107: 9420.449158
C108: 88 | D108: 1785825.171 | E108: 5081.99478 | F108: 17486.2048 | G108: =IF(D108="","",L107*Resumen!$L$86/1000) -> 785.7630751 | H108: 777.63 | I108: =IF($E$16=$V$1,0,IF(D108="","",Amortización!$AE$14*1.16)) -> 290 | J108: =IFERROR(IF(OR($E$11=Resumen!$N$6,$E$8=Resumen!$N$6),Amortización!F108*0.16,0),"") -> 0 | K108: 24421.59265 | L108: 1780743.176 | N108: 0 | Q108: =IF(OR(L107=0,L107=""),"",IF(E108>=D108,0,$E$17*10%)) -> 0 | R108: 0.1175 | T108: 88 | U108: 24274.33334 | V108: 24274.33334 | X108: 1.140825679 | Y108: 0 | AB108: 777.63 | AG108: 0 | AH108: 0 | AI108: 0 | AV108: 88 | AW108: 749154.7811 | AX108: 2356.695289 | AY108: 6523.889552 | AZ108: 0 | BA108: 0 | BB108: 624.2956509 | BC108: =IFERROR(IF(OR($E$11=Resumen!$N$6,$E$8=Resumen!$N$6),Amortización!AY108*0.16,0),"") -> 0 | BD108: 9504.880491 | BE108: 746798.0858 | BF108: 0 | BH108: 0.1045 | BJ108: 88 | BK108: 9418.770746
C109: 89 | D109: 1780743.176 | E109: 5131.755979 | F109: 17436.4436 | G109: =IF(D109="","",L108*Resumen!$L$86/1000) -> 783.5269974 | H109: 777.63 | I109: =IF($E$16=$V$1,0,IF(D109="","",Amortización!$AE$14*1.16)) -> 290 | J109: =IFERROR(IF(OR($E$11=Resumen!$N$6,$E$8=Resumen!$N$6),Amortización!F109*0.16,0),"") -> 0 | K109: 24419.35657 | L109: 1775611.42 | N109: 0 | R109: 0.1175 | T109: 89 | U109: 24272.09726 | V109: 24272.09726 | X109: 1.140825679 | Y109: 0 | AB109: 777.63 | AG109: 0 | AH109: 0 | AI109: 0 | AV109: 89 | AW109: 746798.0858 | AX109: 2377.218177 | AY109: 6503.366664 | AZ109: 0 | BA109: 0 | BB109: 622.3317381 | BC109: =IFERROR(IF(OR($E$11=Resumen!$N$6,$E$8=Resumen!$N$6),Amortización!AY109*0.16,0),"") -> 0 | BD109: 9502.916579 | BE109: 744420.8676 | BF109: 0 | BH109: 0.1045 | BJ109: 89 | BK109: 9417.077718
C110: 90 | D110: 1775611.42 | E110: 5182.004423 | F110: 17386.19515 | G110: =IF(D110="","",L109*Resumen!$L$86/1000) -> 781.2690248 | H110: 777.63 | I110: =IF($E$16=$V$1,0,IF(D110="","",Amortización!$AE$14*1.16)) -> 290 | J110: =IFERROR(IF(OR($E$11=Resumen!$N$6,$E$8=Resumen!$N$6),Amortización!F110*0.16,0),"") -> 0 | K110: 24417.0986 | L110: 1770429.416 | N110: 0 | Q110: =IF(OR(L109=0,L109=""),"",IF(E110>=D110,0,$E$17*10%)) -> 0 | R110: 0.1175 | T110: 90 | U110: 24269.83929 | V110: 24269.83929 | X110: 1.140825679 | Y110: 0 | AB110: 777.63 | AG110: 0 | AH110: 0 | AI110: 0 | AV110: 90 | AW110: 744420.8676 | AX110: 2397.919785 | AY110: 6482.665055 | AZ110: 0 | BA110: 0 | BB110: 620.350723 | BC110: =IFERROR(IF(OR($E$11=Resumen!$N$6,$E$8=Resumen!$N$6),Amortización!AY110*0.16,0),"") -> 0 | BD110: 9500.935563 | BE110: 742022.9478 | BF110: 0 | BH110: =IF(AW110="","",BH109) -> 0.1045 | BJ110: 90 | BK110: 9415.369946
C111: 91 | D111: 1770429.416 | E111: 5232.744883 | F111: 17335.45469 | G111: =IF(D111="","",L110*Resumen!$L$86/1000) -> 778.9889429 | H111: 777.63 | I111: =IF($E$16=$V$1,0,IF(D111="","",Amortización!$AE$14*1.16)) -> 290 | J111: =IFERROR(IF(OR($E$11=Resumen!$N$6,$E$8=Resumen!$N$6),Amortización!F111*0.16,0),"") -> 0 | K111: 24414.81852 | L111: 1765196.671 | N111: 0 | R111: 0.1175 | T111: 91 | U111: 24267.55921 | V111: 24267.55921 | X111: 1.140825679 | Y111: 0 | AB111: 777.63 | AG111: 0 | AH111: 0 | AI111: 0 | AV111: 91 | AW111: 742022.9478 | AX111: 2418.80167 | AY111: 6461.783171 | AZ111: 0 | BA111: 0 | BB111: 618.3524565 | BC111: =IFERROR(IF(OR($E$11=Resumen!$N$6,$E$8=Resumen!$N$6),Amortización!AY111*0.16,0),"") -> 0 | BD111: 9498.937297 | BE111: 739604.1461 | BF111: 0 | BH111: 0.1045 | BJ111: 91 | BK111: 9413.647303
C112: 92 | D112: 1765196.671 | E112: 5283.982177 | F112: 17284.2174 | G112: =IF(D112="","",L111*Resumen!$L$86/1000) -> 776.6865351 | H112: 777.63 | I112: =IF($E$16=$V$1,0,IF(D112="","",Amortización!$AE$14*1.16)) -> 290 | J112: =IFERROR(IF(OR($E$11=Resumen!$N$6,$E$8=Resumen!$N$6),Amortización!F112*0.16,0),"") -> 0 | K112: 24412.51611 | L112: 1759912.689 | N112: 0 | Q112: =IF(OR(L111=0,L111=""),"",IF(E112>=D112,0,$E$17*10%)) -> 0 | R112: 0.1175 | T112: 92 | U112: 24265.2568 | V112: 24265.2568 | X112: 1.140825679 | Y112: 0 | AB112: 777.63 | AG112: 0 | AH112: 0 | AI112: 0 | AV112: 92 | AW112: 739604.1461 | AX112: 2439.865401 | AY112: 6440.719439 | AZ112: 0 | BA112: 0 | BB112: 616.3367885 | BC112: =IFERROR(IF(OR($E$11=Resumen!$N$6,$E$8=Resumen!$N$6),Amortización!AY112*0.16,0),"") -> 0 | BD112: 9496.921629 | BE112: 737164.2807 | BF112: 0 | BH112: 0.1045 | BJ112: 92 | BK112: 9411.909658
C113: 93 | D113: 1759912.689 | E113: 5335.721169 | F113: 17232.47841 | G113: =IF(D113="","",L112*Resumen!$L$86/1000) -> 774.361583 | H113: 777.63 | I113: =IF($E$16=$V$1,0,IF(D113="","",Amortización!$AE$14*1.16)) -> 290 | J113: =IFERROR(IF(OR($E$11=Resumen!$N$6,$E$8=Resumen!$N$6),Amortización!F113*0.16,0),"") -> 0 | K113: 24410.19116 | L113: 1754576.967 | N113: 0 | R113: 0.1175 | T113: 93 | U113: 24262.93185 | V113: 24262.93185 | X113: 1.140825679 | Y113: 0 | AB113: 777.63 | AG113: 0 | AH113: 0 | AI113: 0 | AV113: 93 | AW113: 737164.2807 | AX113: 2461.112562 | AY113: 6419.472278 | AZ113: 0 | BA113: 0 | BB113: 614.3035673 | BC113: =IFERROR(IF(OR($E$11=Resumen!$N$6,$E$8=Resumen!$N$6),Amortización!AY113*0.16,0),"") -> 0 | BD113: 9494.888408 | BE113: 734703.1682 | BF113: 0 | BH113: 0.1045 | BJ113: 93 | BK113: 9410.156881
C114: 94 | D114: 1754576.967 | E114: 5387.966772 | F114: 17180.23281 | G114: =IF(D114="","",L113*Resumen!$L$86/1000) -> 772.0138656 | H114: 777.63 | I114: =IF($E$16=$V$1,0,IF(D114="","",Amortización!$AE$14*1.16)) -> 290 | J114: =IFERROR(IF(OR($E$11=Resumen!$N$6,$E$8=Resumen!$N$6),Amortización!F114*0.16,0),"") -> 0 | K114: 24407.84344 | L114: 1749189.001 | N114: 0 | Q114: =IF(OR(L113=0,L113=""),"",IF(E114>=D114,0,$E$17*10%)) -> 0 | R114: 0.1175 | T114: 94 | U114: 24260.58413 | V114: 24260.58413 | X114: 1.140825679 | Y114: 0 | AB114: 777.63 | AG114: 0 | AH114: 0 | AI114: 0 | AV114: 94 | AW114: 734703.1682 | AX114: 2482.544751 | AY114: 6398.04009 | AZ114: 0 | BA114: 0 | BB114: 612.2526402 | BC114: =IFERROR(IF(OR($E$11=Resumen!$N$6,$E$8=Resumen!$N$6),Amortización!AY114*0.16,0),"") -> 0 | BD114: 9492.837481 | BE114: 732220.6234 | BF114: 0 | BH114: 0.1045 | BJ114: 94 | BK114: 9408.38884
C115: 95 | D115: 1749189.001 | E115: 5440.723947 | F115: 17127.47563 | G115: =IF(D115="","",L114*Resumen!$L$86/1000) -> 769.6431603 | H115: 777.63 | I115: =IF($E$16=$V$1,0,IF(D115="","",Amortización!$AE$14*1.16)) -> 290 | J115: =IFERROR(IF(OR($E$11=Resumen!$N$6,$E$8=Resumen!$N$6),Amortización!F115*0.16,0),"") -> 0 | K115: 24405.47274 | L115: 1743748.277 | N115: 0 | R115: 0.1175 | T115: 95 | U115: 24258.21343 | V115: 24258.21343 | X115: 1.140825679 | Y115: 0 | AB115: 777.63 | AG115: 0 | AH115: 0 | AI115: 0 | AV115: 95 | AW115: 732220.6234 | AX115: 2504.163578 | AY115: 6376.421262 | AZ115: 0 | BA115: 0 | BB115: 610.1838529 | BC115: =IFERROR(IF(OR($E$11=Resumen!$N$6,$E$8=Resumen!$N$6),Amortización!AY115*0.16,0),"") -> 0 | BD115: 9490.768693 | BE115: 729716.4599 | BF115: 0 | BH115: 0.1045 | BJ115: 95 | BK115: 9406.605403
C116: 96 | D116: 1743748.277 | E116: 5493.997702 | F116: 17074.20188 | G116: =IF(D116="","",L115*Resumen!$L$86/1000) -> 767.2492417 | H116: 777.63 | I116: =IF($E$16=$V$1,0,IF(D116="","",Amortización!$AE$14*1.16)) -> 290 | J116: =IFERROR(IF(OR($E$11=Resumen!$N$6,$E$8=Resumen!$N$6),Amortización!F116*0.16,0),"") -> 0 | K116: 24403.07882 | L116: 1738254.279 | N116: 0 | Q116: =IF(OR(L115=0,L115=""),"",IF(E116>=D116,0,$E$17*10%)) -> 0 | R116: 0.1175 | T116: 96 | U116: 24255.81951 | V116: 24255.81951 | X116: 1.140825679 | Y116: 0 | AB116: 777.63 | AG116: 0 | AH116: 0 | AI116: 0 | AV116: 96 | AW116: 729716.4599 | AX116: 2525.970669 | AY116: 6354.614171 | AZ116: 0 | BA116: 0 | BB116: 608.0970499 | BC116: =IFERROR(IF(OR($E$11=Resumen!$N$6,$E$8=Resumen!$N$6),Amortización!AY116*0.16,0),"") -> 0 | BD116: 9488.68189 | BE116: 727190.4892 | BF116: 0 | BH116: 0.1045 | BJ116: 96 | BK116: 9404.806435
C117: 97 | D117: 1738254.279 | E117: 5547.793096 | F117: 17020.40648 | G117: =IF(D117="","",L116*Resumen!$L$86/1000) -> 764.8318827 | H117: 777.63 | I117: =IF($E$16=$V$1,0,IF(D117="","",Amortización!$AE$14*1.16)) -> 290 | J117: =IFERROR(IF(OR($E$11=Resumen!$N$6,$E$8=Resumen!$N$6),Amortización!F117*0.16,0),"") -> 0 | K117: 24400.66146 | L117: 1732706.486 | N117: 0 | R117: 0.1175 | T117: 97 | U117: 24253.40215 | V117: 24253.40215 | X117: 1.162501366 | Y117: 0 | AB117: 777.63 | AG117: 0 | AH117: 0 | AI117: 0 | AV117: 97 | AW117: 727190.4892 | AX117: 2547.967664 | AY117: 6332.617177 | AZ117: 0 | BA117: 0 | BB117: 605.9920743 | BC117: =IFERROR(IF(OR($E$11=Resumen!$N$6,$E$8=Resumen!$N$6),Amortización!AY117*0.16,0),"") -> 0 | BD117: 9486.576915 | BE117: 724642.5215 | BF117: 0 | BH117: 0.1045 | BJ117: 97 | BK117: 9402.991801
C118: 98 | D118: 1732706.486 | E118: 5602.115237 | F118: 16966.08434 | G118: =IF(D118="","",L117*Resumen!$L$86/1000) -> 762.3908538 | H118: 777.63 | I118: =IF($E$16=$V$1,0,IF(D118="","",Amortización!$AE$14*1.16)) -> 290 | J118: =IFERROR(IF(OR($E$11=Resumen!$N$6,$E$8=Resumen!$N$6),Amortización!F118*0.16,0),"") -> 0 | K118: 24398.22043 | L118: 1727104.371 | N118: 0 | Q118: =IF(OR(L117=0,L117=""),"",IF(E118>=D118,0,$E$17*10%)) -> 0 | R118: 0.1175 | T118: 98 | U118: 24250.96112 | V118: 24250.96112 | X118: 1.162501366 | Y118: 0 | AB118: 777.63 | AG118: 0 | AH118: 0 | AI118: 0 | AV118: 98 | AW118: 724642.5215 | AX118: 2570.156215 | AY118: 6310.428625 | AZ118: 0 | BA118: 0 | BB118: 603.8687679 | BC118: =IFERROR(IF(OR($E$11=Resumen!$N$6,$E$8=Resumen!$N$6),Amortización!AY118*0.16,0),"") -> 0 | BD118: 9484.453608 | BE118: 722072.3653 | BF118: 0 | BH118: 0.1045 | BJ118: 98 | BK118: 9401.161364
C119: 99 | D119: 1727104.371 | E119: 5656.969282 | F119: 16911.2303 | G119: =IF(D119="","",L118*Resumen!$L$86/1000) -> 759.9259231 | H119: 777.63 | I119: =IF($E$16=$V$1,0,IF(D119="","",Amortización!$AE$14*1.16)) -> 290 | J119: =IFERROR(IF(OR($E$11=Resumen!$N$6,$E$8=Resumen!$N$6),Amortización!F119*0.16,0),"") -> 0 | K119: 24395.7555 | L119: 1721447.401 | N119: 0 | R119: 0.1175 | T119: 99 | U119: 24248.49619 | V119: 24248.49619 | X119: 1.162501366 | Y119: 0 | AB119: 777.63 | AG119: 0 | AH119: 0 | AI119: 0 | AV119: 99 | AW119: 722072.3653 | AX119: 2592.537992 | AY119: 6288.046848 | AZ119: 0 | BA119: 0 | BB119: 601.7269711 | BC119: =IFERROR(IF(OR($E$11=Resumen!$N$6,$E$8=Resumen!$N$6),Amortización!AY119*0.16,0),"") -> 0 | BD119: 9482.311811 | BE119: 719479.8273 | BF119: 0 | BH119: 0.1045 | BJ119: 99 | BK119: 9399.314988
C120: 100 | D120: 1721447.401 | E120: 5712.360439 | F120: 16855.83914 | G120: =IF(D120="","",L119*Resumen!$L$86/1000) -> 757.4368566 | H120: 777.63 | I120: =IF($E$16=$V$1,0,IF(D120="","",Amortización!$AE$14*1.16)) -> 290 | J120: =IFERROR(IF(OR($E$11=Resumen!$N$6,$E$8=Resumen!$N$6),Amortización!F120*0.16,0),"") -> 0 | K120: 24393.26643 | L120: 1715735.041 | N120: 0 | Q120: =IF(OR(L119=0,L119=""),"",IF(E120>=D120,0,$E$17*10%)) -> 0 | R120: 0.1175 | T120: 100 | U120: 24246.00712 | V120: 24246.00712 | X120: 1.162501366 | Y120: 0 | AB120: 777.63 | AG120: 0 | AH120: 0 | AI120: 0 | AV120: 100 | AW120: 719479.8273 | AX120: 2615.114678 | AY120: 6265.470163 | AZ120: 0 | BA120: 0 | BB120: 599.5665228 | BC120: =IFERROR(IF(OR($E$11=Resumen!$N$6,$E$8=Resumen!$N$6),Amortización!AY120*0.16,0),"") -> 0 | BD120: 9480.151363 | BE120: 716864.7126 | BF120: 0 | BH120: 0.1045 | BJ120: 100 | BK120: 9397.452532
C121: 101 | D121: 1715735.041 | E121: 5768.293969 | F121: 16799.90561 | G121: =IF(D121="","",L120*Resumen!$L$86/1000) -> 754.923418 | H121: 777.63 | I121: =IF($E$16=$V$1,0,IF(D121="","",Amortización!$AE$14*1.16)) -> 290 | J121: =IFERROR(IF(OR($E$11=Resumen!$N$6,$E$8=Resumen!$N$6),Amortización!F121*0.16,0),"") -> 0 | K121: 24390.753 | L121: 1709966.747 | N121: 0 | R121: 0.1175 | T121: 101 | U121: 24243.49369 | V121: 24243.49369 | X121: 1.162501366 | Y121: 0 | AB121: 777.63 | AG121: 0 | AH121: 0 | AI121: 0 | AV121: 101 | AW121: 716864.7126 | AX121: 2637.887968 | AY121: 6242.696873 | AZ121: 0 | BA121: 0 | BB121: 597.3872605 | BC121: =IFERROR(IF(OR($E$11=Resumen!$N$6,$E$8=Resumen!$N$6),Amortización!AY121*0.16,0),"") -> 0 | BD121: 9477.972101 | BE121: 714226.8247 | BF121: 0 | BH121: 0.1045 | BJ121: 101 | BK121: 9395.573858
C122: 102 | D122: 1709966.747 | E122: 5824.77518 | F122: 16743.4244 | G122: =IF(D122="","",L121*Resumen!$L$86/1000) -> 752.3853686 | H122: 777.63 | I122: =IF($E$16=$V$1,0,IF(D122="","",Amortización!$AE$14*1.16)) -> 290 | J122: =IFERROR(IF(OR($E$11=Resumen!$N$6,$E$8=Resumen!$N$6),Amortización!F122*0.16,0),"") -> 0 | K122: 24388.21495 | L122: 1704141.972 | N122: 0 | Q122: =IF(OR(L121=0,L121=""),"",IF(E122>=D122,0,$E$17*10%)) -> 0 | R122: 0.1175 | T122: 102 | U122: 24240.95564 | V122: 24240.95564 | X122: 1.162501366 | Y122: 0 | AB122: 777.63 | AG122: 0 | AH122: 0 | AI122: 0 | AV122: 102 | AW122: 714226.8247 | AX122: 2660.859576 | AY122: 6219.725265 | AZ122: 0 | BA122: 0 | BB122: 595.1890206 | BC122: =IFERROR(IF(OR($E$11=Resumen!$N$6,$E$8=Resumen!$N$6),Amortización!AY122*0.16,0),"") -> 0 | BD122: 9475.773861 | BE122: 711565.9651 | BF122: 0 | BH122: 0.1045 | BJ122: 102 | BK122: 9393.678824
C123: 103 | D123: 1704141.972 | E123: 5881.809437 | F123: 16686.39014 | G123: =IF(D123="","",L122*Resumen!$L$86/1000) -> 749.8224676 | H123: 777.63 | I123: =IF($E$16=$V$1,0,IF(D123="","",Amortización!$AE$14*1.16)) -> 290 | J123: =IFERROR(IF(OR($E$11=Resumen!$N$6,$E$8=Resumen!$N$6),Amortización!F123*0.16,0),"") -> 0 | K123: 24385.65205 | L123: 1698260.162 | N123: 0 | R123: 0.1175 | T123: 103 | U123: 24238.39273 | V123: 24238.39273 | X123: 1.162501366 | Y123: 0 | AB123: 777.63 | AG123: 0 | AH123: 0 | AI123: 0 | AV123: 103 | AW123: 711565.9651 | AX123: 2684.031228 | AY123: 6196.553613 | AZ123: 0 | BA123: 0 | BB123: 592.9716376 | BC123: =IFERROR(IF(OR($E$11=Resumen!$N$6,$E$8=Resumen!$N$6),Amortización!AY123*0.16,0),"") -> 0 | BD123: 9473.556478 | BE123: 708881.9339 | BF123: 0 | BH123: 0.1045 | BJ123: 103 | BK123: 9391.767287
C124: 104 | D124: 1698260.162 | E124: 5939.402155 | F124: 16628.79742 | G124: =IF(D124="","",L123*Resumen!$L$86/1000) -> 747.2344714 | H124: 777.63 | I124: =IF($E$16=$V$1,0,IF(D124="","",Amortización!$AE$14*1.16)) -> 290 | J124: =IFERROR(IF(OR($E$11=Resumen!$N$6,$E$8=Resumen!$N$6),Amortización!F124*0.16,0),"") -> 0 | K124: 24383.06405 | L124: 1692320.76 | N124: 0 | Q124: =IF(OR(L123=0,L123=""),"",IF(E124>=D124,0,$E$17*10%)) -> 0 | R124: 0.1175 | T124: 104 | U124: 24235.80474 | V124: 24235.80474 | X124: 1.162501366 | Y124: 0 | AB124: 777.63 | AG124: 0 | AH124: 0 | AI124: 0 | AV124: 104 | AW124: 708881.9339 | AX124: 2707.404666 | AY124: 6173.180174 | AZ124: 0 | BA124: 0 | BB124: 590.7349449 | BC124: =IFERROR(IF(OR($E$11=Resumen!$N$6,$E$8=Resumen!$N$6),Amortización!AY124*0.16,0),"") -> 0 | BD124: 9471.319785 | BE124: 706174.5292 | BF124: 0 | BH124: 0.1045 | BJ124: 104 | BK124: 9389.839103
C125: 105 | D125: 1692320.76 | E125: 5997.558801 | F125: 16570.64078 | G125: =IF(D125="","",L124*Resumen!$L$86/1000) -> 744.6211345 | H125: 777.63 | I125: =IF($E$16=$V$1,0,IF(D125="","",Amortización!$AE$14*1.16)) -> 290 | J125: =IFERROR(IF(OR($E$11=Resumen!$N$6,$E$8=Resumen!$N$6),Amortización!F125*0.16,0),"") -> 0 | K125: 24380.45071 | L125: 1686323.201 | N125: 0 | R125: 0.1175 | T125: 105 | U125: 24233.1914 | V125: 24233.1914 | X125: 1.162501366 | Y125: 0 | AB125: 777.63 | AG125: 0 | AH125: 0 | AI125: 0 | AV125: 105 | AW125: 706174.5292 | AX125: 2730.981649 | AY125: 6149.603192 | AZ125: 0 | BA125: 0 | BB125: 588.4787743 | BC125: =IFERROR(IF(OR($E$11=Resumen!$N$6,$E$8=Resumen!$N$6),Amortización!AY125*0.16,0),"") -> 0 | BD125: 9469.063615 | BE125: 703443.5475 | BF125: 0 | BH125: 0.1045 | BJ125: 105 | BK125: 9387.894129
C126: 106 | D126: 1686323.201 | E126: 6056.284898 | F126: 16511.91468 | G126: =IF(D126="","",L125*Resumen!$L$86/1000) -> 741.9822086 | H126: 777.63 | I126: =IF($E$16=$V$1,0,IF(D126="","",Amortización!$AE$14*1.16)) -> 290 | J126: =IFERROR(IF(OR($E$11=Resumen!$N$6,$E$8=Resumen!$N$6),Amortización!F126*0.16,0),"") -> 0 | K126: 24377.81179 | L126: 1680266.916 | N126: 0 | Q126: =IF(OR(L125=0,L125=""),"",IF(E126>=D126,0,$E$17*10%)) -> 0 | R126: 0.1175 | T126: 106 | U126: 24230.55248 | V126: 24230.55248 | X126: 1.162501366 | Y126: 0 | AB126: 777.63 | AG126: 0 | AH126: 0 | AI126: 0 | AV126: 106 | AW126: 703443.5475 | AX126: 2754.763947 | AY126: 6125.820893 | AZ126: 0 | BA126: 0 | BB126: 586.2029563 | BC126: =IFERROR(IF(OR($E$11=Resumen!$N$6,$E$8=Resumen!$N$6),Amortización!AY126*0.16,0),"") -> 0 | BD126: 9466.787797 | BE126: 700688.7836 | BF126: 0 | BH126: 0.1045 | BJ126: 106 | BK126: 9385.932216
C127: 107 | D127: 1680266.916 | E127: 6115.58602 | F127: 16452.61356 | G127: =IF(D127="","",L126*Resumen!$L$86/1000) -> 739.3174432 | H127: 777.63 | I127: =IF($E$16=$V$1,0,IF(D127="","",Amortización!$AE$14*1.16)) -> 290 | J127: =IFERROR(IF(OR($E$11=Resumen!$N$6,$E$8=Resumen!$N$6),Amortización!F127*0.16,0),"") -> 0 | K127: 24375.14702 | L127: 1674151.33 | N127: 0 | R127: 0.1175 | T127: 107 | U127: 24227.88771 | V127: 24227.88771 | X127: 1.162501366 | Y127: 0 | AB127: 777.63 | AG127: 0 | AH127: 0 | AI127: 0 | AV127: 107 | AW127: 700688.7836 | AX127: 2778.75335 | AY127: 6101.831491 | AZ127: 0 | BA127: 0 | BB127: 583.9073197 | BC127: =IFERROR(IF(OR($E$11=Resumen!$N$6,$E$8=Resumen!$N$6),Amortización!AY127*0.16,0),"") -> 0 | BD127: 9464.49216 | BE127: 697910.0303 | BF127: 0 | BH127: 0.1045 | BJ127: 107 | BK127: 9383.953219
C128: 108 | D128: 1674151.33 | E128: 6175.4678 | F128: 16392.73178 | G128: =IF(D128="","",L127*Resumen!$L$86/1000) -> 736.6265854 | H128: 777.63 | I128: =IF($E$16=$V$1,0,IF(D128="","",Amortización!$AE$14*1.16)) -> 290 | J128: =IFERROR(IF(OR($E$11=Resumen!$N$6,$E$8=Resumen!$N$6),Amortización!F128*0.16,0),"") -> 0 | K128: 24372.45616 | L128: 1667975.863 | N128: 0 | Q128: =IF(OR(L127=0,L127=""),"",IF(E128>=D128,0,$E$17*10%)) -> 0 | R128: 0.1175 | T128: 108 | U128: 24225.19685 | V128: 24225.19685 | X128: 1.162501366 | Y128: 0 | AB128: 777.63 | AG128: 0 | AH128: 0 | AI128: 0 | AV128: 108 | AW128: 697910.0303 | AX128: 2802.95166 | AY128: 6077.63318 | AZ128: 0 | BA128: 0 | BB128: 581.5916919 | BC128: =IFERROR(IF(OR($E$11=Resumen!$N$6,$E$8=Resumen!$N$6),Amortización!AY128*0.16,0),"") -> 0 | BD128: 9462.176532 | BE128: 695107.0786 | BF128: 0 | BH128: 0.1045 | BJ128: 108 | BK128: 9381.956989
C129: 109 | D129: 1667975.863 | E129: 6235.935922 | F129: 16332.26365 | G129: =IF(D129="","",L128*Resumen!$L$86/1000) -> 733.9093796 | H129: 777.63 | I129: =IF($E$16=$V$1,0,IF(D129="","",Amortización!$AE$14*1.16)) -> 290 | J129: =IFERROR(IF(OR($E$11=Resumen!$N$6,$E$8=Resumen!$N$6),Amortización!F129*0.16,0),"") -> 0 | K129: 24369.73896 | L129: 1661739.927 | N129: 0 | R129: 0.1175 | T129: 109 | U129: 24222.47965 | V129: 24222.47965 | X129: 1.184588892 | Y129: 0 | AB129: 777.63 | AG129: 0 | AH129: 0 | AI129: 0 | AV129: 109 | AW129: 695107.0786 | AX129: 2827.360698 | AY129: 6053.224143 | AZ129: 0 | BA129: 0 | BB129: 579.2558988 | BC129: =IFERROR(IF(OR($E$11=Resumen!$N$6,$E$8=Resumen!$N$6),Amortización!AY129*0.16,0),"") -> 0 | BD129: 9459.840739 | BE129: 692279.7179 | BF129: 0 | BH129: 0.1045 | BJ129: 109 | BK129: 9379.943374
C130: 110 | D130: 1661739.927 | E130: 6296.996128 | F130: 16271.20345 | G130: =IF(D130="","",L129*Resumen!$L$86/1000) -> 731.1655678 | H130: 777.63 | I130: =IF($E$16=$V$1,0,IF(D130="","",Amortización!$AE$14*1.16)) -> 290 | J130: =IFERROR(IF(OR($E$11=Resumen!$N$6,$E$8=Resumen!$N$6),Amortización!F130*0.16,0),"") -> 0 | K130: 24366.99515 | L130: 1655442.931 | N130: 0 | Q130: =IF(OR(L129=0,L129=""),"",IF(E130>=D130,0,$E$17*10%)) -> 0 | R130: 0.1175 | T130: 110 | U130: 24219.73583 | V130: 24219.73583 | X130: 1.184588892 | Y130: 0 | AB130: 777.63 | AG130: 0 | AH130: 0 | AI130: 0 | AV130: 110 | AW130: 692279.7179 | AX130: 2851.982297 | AY130: 6028.602543 | AZ130: 0 | BA130: 0 | BB130: 576.8997649 | BC130: =IFERROR(IF(OR($E$11=Resumen!$N$6,$E$8=Resumen!$N$6),Amortización!AY130*0.16,0),"") -> 0 | BD130: 9457.484605 | BE130: 689427.7356 | BF130: 0 | BH130: 0.1045 | BJ130: 110 | BK130: 9377.912224
C131: 111 | D131: 1655442.931 | E131: 6358.654215 | F131: 16209.54536 | G131: =IF(D131="","",L130*Resumen!$L$86/1000) -> 728.3948895 | H131: 777.63 | I131: =IF($E$16=$V$1,0,IF(D131="","",Amortización!$AE$14*1.16)) -> 290 | J131: =IFERROR(IF(OR($E$11=Resumen!$N$6,$E$8=Resumen!$N$6),Amortización!F131*0.16,0),"") -> 0 | K131: 24364.22447 | L131: 1649084.276 | N131: 0 | R131: 0.1175 | T131: 111 | U131: 24216.96516 | V131: 24216.96516 | X131: 1.184588892 | Y131: 0 | AB131: 777.63 | AG131: 0 | AH131: 0 | AI131: 0 | AV131: 111 | AW131: 689427.7356 | AX131: 2876.81831 | AY131: 6003.766531 | AZ131: 0 | BA131: 0 | BB131: 574.523113 | BC131: =IFERROR(IF(OR($E$11=Resumen!$N$6,$E$8=Resumen!$N$6),Amortización!AY131*0.16,0),"") -> 0 | BD131: 9455.107953 | BE131: 686550.9173 | BF131: 0 | BH131: 0.1045 | BJ131: 111 | BK131: 9375.863386
C132: 112 | D132: 1649084.276 | E132: 6420.916038 | F132: 16147.28354 | G132: =IF(D132="","",L131*Resumen!$L$86/1000) -> 725.5970816 | H132: 777.63 | I132: =IF($E$16=$V$1,0,IF(D132="","",Amortización!$AE$14*1.16)) -> 290 | J132: =IFERROR(IF(OR($E$11=Resumen!$N$6,$E$8=Resumen!$N$6),Amortización!F132*0.16,0),"") -> 0 | K132: 24361.42666 | L132: 1642663.36 | N132: 0 | Q132: =IF(OR(L131=0,L131=""),"",IF(E132>=D132,0,$E$17*10%)) -> 0 | R132: 0.1175 | T132: 112 | U132: 24214.16735 | V132: 24214.16735 | X132: 1.184588892 | Y132: 0 | AB132: 777.63 | AG132: 0 | AH132: 0 | AI132: 0 | AV132: 112 | AW132: 686550.9173 | AX132: 2901.870602 | AY132: 5978.714238 | AZ132: 0 | BA132: 0 | BB132: 572.1257644 | BC132: =IFERROR(IF(OR($E$11=Resumen!$N$6,$E$8=Resumen!$N$6),Amortización!AY132*0.16,0),"") -> 0 | BD132: 9452.710605 | BE132: 683649.0467 | BF132: 0 | BH132: 0.1045 | BJ132: 112 | BK132: 9373.796706
C133: 113 | D133: 1642663.36 | E133: 6483.787508 | F133: 16084.41207 | G133: =IF(D133="","",L132*Resumen!$L$86/1000) -> 722.7718785 | H133: 777.63 | I133: =IF($E$16=$V$1,0,IF(D133="","",Amortización!$AE$14*1.16)) -> 290 | J133: =IFERROR(IF(OR($E$11=Resumen!$N$6,$E$8=Resumen!$N$6),Amortización!F133*0.16,0),"") -> 0 | K133: 24358.60146 | L133: 1636179.573 | N133: 0 | R133: 0.1175 | T133: 113 | U133: 24211.34215 | V133: 24211.34215 | X133: 1.184588892 | Y133: 0 | AB133: 777.63 | AG133: 0 | AH133: 0 | AI133: 0 | AV133: 113 | AW133: 683649.0467 | AX133: 2927.141059 | AY133: 5953.443782 | AZ133: 0 | BA133: 0 | BB133: 569.7075389 | BC133: =IFERROR(IF(OR($E$11=Resumen!$N$6,$E$8=Resumen!$N$6),Amortización!AY133*0.16,0),"") -> 0 | BD133: 9450.292379 | BE133: 680721.9056 | BF133: 0 | BH133: 0.1045 | BJ133: 113 | BK133: 9371.712029
C134: 114 | D134: 1636179.573 | E134: 6547.274594 | F134: 16020.92498 | G134: =IF(D134="","",L133*Resumen!$L$86/1000) -> 719.919012 | H134: 777.63 | I134: =IF($E$16=$V$1,0,IF(D134="","",Amortización!$AE$14*1.16)) -> 290 | J134: =IFERROR(IF(OR($E$11=Resumen!$N$6,$E$8=Resumen!$N$6),Amortización!F134*0.16,0),"") -> 0 | K134: 24355.74859 | L134: 1629632.298 | N134: 0 | Q134: =IF(OR(L133=0,L133=""),"",IF(E134>=D134,0,$E$17*10%)) -> 0 | R134: 0.1175 | T134: 114 | U134: 24208.48928 | V134: 24208.48928 | X134: 1.184588892 | Y134: 0 | AB134: 777.63 | AG134: 0 | AH134: 0 | AI134: 0 | AV134: 114 | AW134: 680721.9056 | AX134: 2952.631579 | AY134: 5927.953261 | AZ134: 0 | BA134: 0 | BB134: 567.2682547 | BC134: =IFERROR(IF(OR($E$11=Resumen!$N$6,$E$8=Resumen!$N$6),Amortización!AY134*0.16,0),"") -> 0 | BD134: 9447.853095 | BE134: 677769.274 | BF134: 0 | BH134: 0.1045 | BJ134: 114 | BK134: 9369.609198
C135: 115 | D135: 1629632.298 | E135: 6611.383324 | F135: 15956.81625 | G135: =IF(D135="","",L134*Resumen!$L$86/1000) -> 717.0382112 | H135: 777.63 | I135: =IF($E$16=$V$1,0,IF(D135="","",Amortización!$AE$14*1.16)) -> 290 | J135: =IFERROR(IF(OR($E$11=Resumen!$N$6,$E$8=Resumen!$N$6),Amortización!F135*0.16,0),"") -> 0 | K135: 24352.86779 | L135: 1623020.915 | N135: 0 | R135: 0.1175 | T135: 115 | U135: 24205.60848 | V135: 24205.60848 | X135: 1.184588892 | Y135: 0 | AB135: 777.63 | AG135: 0 | AH135: 0 | AI135: 0 | AV135: 115 | AW135: 677769.274 | AX135: 2978.344079 | AY135: 5902.240761 | AZ135: 0 | BA135: 0 | BB135: 564.8077284 | BC135: =IFERROR(IF(OR($E$11=Resumen!$N$6,$E$8=Resumen!$N$6),Amortización!AY135*0.16,0),"") -> 0 | BD135: 9445.392569 | BE135: 674790.93 | BF135: 0 | BH135: 0.1045 | BJ135: 115 | BK135: 9367.488054
C136: 116 | D136: 1623020.915 | E136: 6676.119786 | F136: 15892.07979 | G136: =IF(D136="","",L135*Resumen!$L$86/1000) -> 714.1292026 | H136: 777.63 | I136: =IF($E$16=$V$1,0,IF(D136="","",Amortización!$AE$14*1.16)) -> 290 | J136: =IFERROR(IF(OR($E$11=Resumen!$N$6,$E$8=Resumen!$N$6),Amortización!F136*0.16,0),"") -> 0 | K136: 24349.95878 | L136: 1616344.795 | N136: 0 | Q136: =IF(OR(L135=0,L135=""),"",IF(E136>=D136,0,$E$17*10%)) -> 0 | R136: 0.1175 | T136: 116 | U136: 24202.69947 | V136: 24202.69947 | X136: 1.184588892 | Y136: 0 | AB136: 777.63 | AG136: 0 | AH136: 0 | AI136: 0 | AV136: 116 | AW136: 674790.93 | AX136: 3004.280492 | AY136: 5876.304348 | AZ136: 0 | BA136: 0 | BB136: 562.325775 | BC136: =IFERROR(IF(OR($E$11=Resumen!$N$6,$E$8=Resumen!$N$6),Amortización!AY136*0.16,0),"") -> 0 | BD136: 9442.910615 | BE136: 671786.6495 | BF136: 0 | BH136: 0.1045 | BJ136: 116 | BK136: 9365.348439
C137: 117 | D137: 1616344.795 | E137: 6741.490125 | F137: 15826.70945 | G137: =IF(D137="","",L136*Resumen!$L$86/1000) -> 711.1917099 | H137: 777.63 | I137: =IF($E$16=$V$1,0,IF(D137="","",Amortización!$AE$14*1.16)) -> 290 | J137: =IFERROR(IF(OR($E$11=Resumen!$N$6,$E$8=Resumen!$N$6),Amortización!F137*0.16,0),"") -> 0 | K137: 24347.02129 | L137: 1609603.305 | N137: 0 | R137: 0.1175 | T137: 117 | U137: 24199.76198 | V137: 24199.76198 | X137: 1.184588892 | Y137: 0 | AB137: 777.63 | AG137: 0 | AH137: 0 | AI137: 0 | AV137: 117 | AW137: 671786.6495 | AX137: 3030.442768 | AY137: 5850.142073 | AZ137: 0 | BA137: 0 | BB137: 559.8222079 | BC137: =IFERROR(IF(OR($E$11=Resumen!$N$6,$E$8=Resumen!$N$6),Amortización!AY137*0.16,0),"") -> 0 | BD137: 9440.407048 | BE137: 668756.2067 | BF137: 0 | BH137: 0.1045 | BJ137: 117 | BK137: 9363.190192
C138: 118 | D138: 1609603.305 | E138: 6807.500549 | F138: 15760.69903 | G138: =IF(D138="","",L137*Resumen!$L$86/1000) -> 708.2254542 | H138: 777.63 | I138: =IF($E$16=$V$1,0,IF(D138="","",Amortización!$AE$14*1.16)) -> 290 | J138: =IFERROR(IF(OR($E$11=Resumen!$N$6,$E$8=Resumen!$N$6),Amortización!F138*0.16,0),"") -> 0 | K138: 24344.05503 | L138: 1602795.804 | N138: 0 | Q138: =IF(OR(L137=0,L137=""),"",IF(E138>=D138,0,$E$17*10%)) -> 0 | R138: 0.1175 | T138: 118 | U138: 24196.79572 | V138: 24196.79572 | X138: 1.184588892 | Y138: 0 | AB138: 777.63 | AG138: 0 | AH138: 0 | AI138: 0 | AV138: 118 | AW138: 668756.2067 | AX138: 3056.832874 | AY138: 5823.751967 | AZ138: 0 | BA138: 0 | BB138: 557.2968389 | BC138: =IFERROR(IF(OR($E$11=Resumen!$N$6,$E$8=Resumen!$N$6),Amortización!AY138*0.16,0),"") -> 0 | BD138: 9437.881679 | BE138: 665699.3738 | BF138: 0 | BH138: 0.1045 | BJ138: 118 | BK138: 9361.01315
C139: 119 | D139: 1602795.804 | E139: 6874.157326 | F139: 15694.04225 | G139: =IF(D139="","",L138*Resumen!$L$86/1000) -> 705.230154 | H139: 777.63 | I139: =IF($E$16=$V$1,0,IF(D139="","",Amortización!$AE$14*1.16)) -> 290 | J139: =IFERROR(IF(OR($E$11=Resumen!$N$6,$E$8=Resumen!$N$6),Amortización!F139*0.16,0),"") -> 0 | K139: 24341.05973 | L139: 1595921.647 | N139: 0 | R139: 0.1175 | T139: 119 | U139: 24193.80042 | V139: 24193.80042 | X139: 1.184588892 | Y139: 0 | AB139: 777.63 | AG139: 0 | AH139: 0 | AI139: 0 | AV139: 119 | AW139: 665699.3738 | AX139: 3083.452793 | AY139: 5797.132047 | AZ139: 0 | BA139: 0 | BB139: 554.7494782 | BC139: =IFERROR(IF(OR($E$11=Resumen!$N$6,$E$8=Resumen!$N$6),Amortización!AY139*0.16,0),"") -> 0 | BD139: 9435.334319 | BE139: 662615.921 | BF139: 0 | BH139: 0.1045 | BJ139: 119 | BK139: 9358.817149
C140: 120 | D140: 1595921.647 | E140: 6941.466783 | F140: 15626.73279 | G140: =IF(D140="","",L139*Resumen!$L$86/1000) -> 702.2055247 | H140: 777.63 | I140: =IF($E$16=$V$1,0,IF(D140="","",Amortización!$AE$14*1.16)) -> 290 | J140: =IFERROR(IF(OR($E$11=Resumen!$N$6,$E$8=Resumen!$N$6),Amortización!F140*0.16,0),"") -> 0 | K140: 24338.0351 | L140: 1588980.18 | N140: 0 | Q140: =IF(OR(L139=0,L139=""),"",IF(E140>=D140,0,$E$17*10%)) -> 0 | R140: 0.1175 | T140: 120 | U140: 24190.77579 | V140: 24190.77579 | X140: 1.184588892 | Y140: 0 | AB140: 777.63 | AG140: 0 | AH140: 0 | AI140: 0 | AV140: 120 | AW140: 662615.921 | AX140: 3110.304528 | AY140: 5770.280312 | AZ140: 0 | BA140: 0 | BB140: 552.1799342 | BC140: =IFERROR(IF(OR($E$11=Resumen!$N$6,$E$8=Resumen!$N$6),Amortización!AY140*0.16,0),"") -> 0 | BD140: 9432.764775 | BE140: 659505.6165 | BF140: 0 | BH140: 0.1045 | BJ140: 120 | BK140: 9356.602025
C141: 121 | D141: 1588980.18 | E141: 7009.435312 | F141: 15558.76427 | G141: =IF(D141="","",L140*Resumen!$L$86/1000) -> 699.1512793 | H141: 777.63 | I141: =IF($E$16=$V$1,0,IF(D141="","",Amortización!$AE$14*1.16)) -> 290 | J141: =IFERROR(IF(OR($E$11=Resumen!$N$6,$E$8=Resumen!$N$6),Amortización!F141*0.16,0),"") -> 0 | K141: 24334.98086 | L141: 1581970.745 | N141: 0 | R141: 0.1175 | T141: 121 | U141: 24187.72155 | V141: 24187.72155 | X141: 1.207096081 | Y141: 0 | AB141: 777.63 | AG141: 0 | AH141: 0 | AI141: 0 | AV141: 121 | AW141: 659505.6165 | AX141: 3137.390097 | AY141: 5743.194744 | AZ141: 0 | BA141: 0 | BB141: 549.5880138 | BC141: =IFERROR(IF(OR($E$11=Resumen!$N$6,$E$8=Resumen!$N$6),Amortización!AY141*0.16,0),"") -> 0 | BD141: 9430.172854 | BE141: 656368.2264 | BF141: 0 | BH141: 0.1045 | BJ141: 121 | BK141: 9354.367611
C142: 122 | D142: 1581970.745 | E142: 7078.069366 | F142: 15490.13021 | G142: =IF(D142="","",L141*Resumen!$L$86/1000) -> 696.0671278 | H142: 777.63 | I142: =IF($E$16=$V$1,0,IF(D142="","",Amortización!$AE$14*1.16)) -> 290 | J142: =IFERROR(IF(OR($E$11=Resumen!$N$6,$E$8=Resumen!$N$6),Amortización!F142*0.16,0),"") -> 0 | K142: 24331.89671 | L142: 1574892.676 | N142: 0 | Q142: =IF(OR(L141=0,L141=""),"",IF(E142>=D142,0,$E$17*10%)) -> 0 | R142: 0.1175 | T142: 122 | U142: 24184.63739 | V142: 24184.63739 | X142: 1.207096081 | Y142: 0 | AB142: 777.63 | AG142: 0 | AH142: 0 | AI142: 0 | AV142: 122 | AW142: 656368.2264 | AX142: 3164.711535 | AY142: 5715.873305 | AZ142: 0 | BA142: 0 | BB142: 546.973522 | BC142: =IFERROR(IF(OR($E$11=Resumen!$N$6,$E$8=Resumen!$N$6),Amortización!AY142*0.16,0),"") -> 0 | BD142: 9427.558362 | BE142: 653203.5149 | BF142: 0 | BH142: 0.1045 | BJ142: 122 | BK142: 9352.113739
C143: 123 | D143: 1574892.676 | E143: 7147.375462 | F143: 15420.82412 | G143: =IF(D143="","",L142*Resumen!$L$86/1000) -> 692.9527773 | H143: 777.63 | I143: =IF($E$16=$V$1,0,IF(D143="","",Amortización!$AE$14*1.16)) -> 290 | J143: =IFERROR(IF(OR($E$11=Resumen!$N$6,$E$8=Resumen!$N$6),Amortización!F143*0.16,0),"") -> 0 | K143: 24328.78235 | L143: 1567745.3 | N143: 0 | R143: 0.1175 | T143: 123 | U143: 24181.52304 | V143: 24181.52304 | X143: 1.207096081 | Y143: 0 | AB143: 777.63 | AG143: 0 | AH143: 0 | AI143: 0 | AV143: 123 | AW143: 653203.5149 | AX143: 3192.270898 | AY143: 5688.313942 | AZ143: 0 | BA143: 0 | BB143: 544.3362624 | BC143: =IFERROR(IF(OR($E$11=Resumen!$N$6,$E$8=Resumen!$N$6),Amortización!AY143*0.16,0),"") -> 0 | BD143: 9424.921103 | BE143: 650011.244 | BF143: 0 | BH143: 0.1045 | BJ143: 123 | BK143: 9349.840239
C144: 124 | D144: 1567745.3 | E144: 7217.36018 | F144: 15350.8394 | G144: =IF(D144="","",L143*Resumen!$L$86/1000) -> 689.8079321 | H144: 777.63 | I144: =IF($E$16=$V$1,0,IF(D144="","",Amortización!$AE$14*1.16)) -> 290 | J144: =IFERROR(IF(OR($E$11=Resumen!$N$6,$E$8=Resumen!$N$6),Amortización!F144*0.16,0),"") -> 0 | K144: 24325.63751 | L144: 1560527.94 | N144: 0 | Q144: =IF(OR(L143=0,L143=""),"",IF(E144>=D144,0,$E$17*10%)) -> 0 | R144: 0.1175 | T144: 124 | U144: 24178.3782 | V144: 24178.3782 | X144: 1.207096081 | Y144: 0 | AB144: 777.63 | AG144: 0 | AH144: 0 | AI144: 0 | AV144: 124 | AW144: 650011.244 | AX144: 3220.070257 | AY144: 5660.514583 | AZ144: 0 | BA144: 0 | BB144: 541.6760367 | BC144: =IFERROR(IF(OR($E$11=Resumen!$N$6,$E$8=Resumen!$N$6),Amortización!AY144*0.16,0),"") -> 0 | BD144: 9422.260877 | BE144: 646791.1737 | BF144: 0 | BH144: 0.1045 | BJ144: 124 | BK144: 9347.546941
C145: 125 | D145: 1560527.94 | E145: 7288.030165 | F145: 15280.16941 | G145: =IF(D145="","",L144*Resumen!$L$86/1000) -> 686.6322936 | H145: 777.63 | I145: =IF($E$16=$V$1,0,IF(D145="","",Amortización!$AE$14*1.16)) -> 290 | J145: =IFERROR(IF(OR($E$11=Resumen!$N$6,$E$8=Resumen!$N$6),Amortización!F145*0.16,0),"") -> 0 | K145: 24322.46187 | L145: 1553239.91 | N145: 0 | R145: 0.1175 | T145: 125 | U145: 24175.20256 | V145: 24175.20256 | X145: 1.207096081 | Y145: 0 | AB145: 777.63 | AG145: 0 | AH145: 0 | AI145: 0 | AV145: 125 | AW145: 646791.1737 | AX145: 3248.111702 | AY145: 5632.473138 | AZ145: 0 | BA145: 0 | BB145: 538.9926448 | BC145: =IFERROR(IF(OR($E$11=Resumen!$N$6,$E$8=Resumen!$N$6),Amortización!AY145*0.16,0),"") -> 0 | BD145: 9419.577485 | BE145: 643543.062 | BF145: 0 | BH145: 0.1045 | BJ145: 125 | BK145: 9345.233672
C146: 126 | D146: 1553239.91 | E146: 7359.392127 | F146: 15208.80745 | G146: =IF(D146="","",L145*Resumen!$L$86/1000) -> 683.4255603 | H146: 777.63 | I146: =IF($E$16=$V$1,0,IF(D146="","",Amortización!$AE$14*1.16)) -> 290 | J146: =IFERROR(IF(OR($E$11=Resumen!$N$6,$E$8=Resumen!$N$6),Amortización!F146*0.16,0),"") -> 0 | K146: 24319.25514 | L146: 1545880.518 | N146: 0 | Q146: =IF(OR(L145=0,L145=""),"",IF(E146>=D146,0,$E$17*10%)) -> 0 | R146: 0.1175 | T146: 126 | U146: 24171.99583 | V146: 24171.99583 | X146: 1.207096081 | Y146: 0 | AB146: 777.63 | AG146: 0 | AH146: 0 | AI146: 0 | AV146: 126 | AW146: 643543.062 | AX146: 3276.397342 | AY146: 5604.187498 | AZ146: 0 | BA146: 0 | BB146: 536.285885 | BC146: =IFERROR(IF(OR($E$11=Resumen!$N$6,$E$8=Resumen!$N$6),Amortización!AY146*0.16,0),"") -> 0 | BD146: 9416.870725 | BE146: 640266.6647 | BF146: 0 | BH146: 0.1045 | BJ146: 126 | BK146: 9342.900258
C147: 127 | D147: 1545880.518 | E147: 7431.452841 | F147: 15136.74674 | G147: =IF(D147="","",L146*Resumen!$L$86/1000) -> 680.1874278 | H147: 777.63 | I147: =IF($E$16=$V$1,0,IF(D147="","",Amortización!$AE$14*1.16)) -> 290 | J147: =IFERROR(IF(OR($E$11=Resumen!$N$6,$E$8=Resumen!$N$6),Amortización!F147*0.16,0),"") -> 0 | K147: 24316.01701 | L147: 1538449.065 | N147: 0 | R147: 0.1175 | T147: 127 | U147: 24168.75769 | V147: 24168.75769 | X147: 1.207096081 | Y147: 0 | AB147: 777.63 | AG147: 0 | AH147: 0 | AI147: 0 | AV147: 127 | AW147: 640266.6647 | AX147: 3304.929302 | AY147: 5575.655538 | AZ147: 0 | BA147: 0 | BB147: 533.5555539 | BC147: =IFERROR(IF(OR($E$11=Resumen!$N$6,$E$8=Resumen!$N$6),Amortización!AY147*0.16,0),"") -> 0 | BD147: 9414.140394 | BE147: 636961.7354 | BF147: 0 | BH147: 0.1045 | BJ147: 127 | BK147: 9340.546525
C148: 128 | D148: 1538449.065 | E148: 7504.21915 | F148: 15063.98043 | G148: =IF(D148="","",L147*Resumen!$L$86/1000) -> 676.9175885 | H148: 777.63 | I148: =IF($E$16=$V$1,0,IF(D148="","",Amortización!$AE$14*1.16)) -> 290 | J148: =IFERROR(IF(OR($E$11=Resumen!$N$6,$E$8=Resumen!$N$6),Amortización!F148*0.16,0),"") -> 0 | K148: 24312.74717 | L148: 1530944.846 | N148: 0 | Q148: =IF(OR(L147=0,L147=""),"",IF(E148>=D148,0,$E$17*10%)) -> 0 | R148: 0.1175 | T148: 128 | U148: 24165.48786 | V148: 24165.48786 | X148: 1.207096081 | Y148: 0 | AB148: 777.63 | AG148: 0 | AH148: 0 | AI148: 0 | AV148: 128 | AW148: 636961.7354 | AX148: 3333.709728 | AY148: 5546.875112 | AZ148: 0 | BA148: 0 | BB148: 530.8014462 | BC148: =IFERROR(IF(OR($E$11=Resumen!$N$6,$E$8=Resumen!$N$6),Amortización!AY148*0.16,0),"") -> 0 | BD148: 9411.386287 | BE148: 633628.0257 | BF148: 0 | BH148: 0.1045 | BJ148: 128 | BK148: 9338.172294
C149: 129 | D149: 1530944.846 | E149: 7577.697963 | F149: 14990.50161 | G149: =IF(D149="","",L148*Resumen!$L$86/1000) -> 673.6157321 | H149: 777.63 | I149: =IF($E$16=$V$1,0,IF(D149="","",Amortización!$AE$14*1.16)) -> 290 | J149: =IFERROR(IF(OR($E$11=Resumen!$N$6,$E$8=Resumen!$N$6),Amortización!F149*0.16,0),"") -> 0 | K149: 24309.44531 | L149: 1523367.148 | N149: 0 | R149: 0.1175 | T149: 129 | U149: 24162.186 | V149: 24162.186 | X149: 1.207096081 | Y149: 0 | AB149: 777.63 | AG149: 0 | AH149: 0 | AI149: 0 | AV149: 129 | AW149: 633628.0257 | AX149: 3362.740784 | AY149: 5517.844057 | AZ149: 0 | BA149: 0 | BB149: 528.0233547 | BC149: =IFERROR(IF(OR($E$11=Resumen!$N$6,$E$8=Resumen!$N$6),Amortización!AY149*0.16,0),"") -> 0 | BD149: 9408.608195 | BE149: =IFERROR(IF(AW149="","",IF((AW149-AX149-BY149)<1,0,AW149-AX149-BY149)),0) -> 630265.2849 | BF149: =IF(OR(BE148=0,BE148=""),"",0) -> 0 | BH149: 0.1045 | BJ149: 129 | BK149: 9335.777388
C150: 130 | D150: 1523367.148 | E150: 7651.896256 | F150: 14916.30332 | G150: =IF(D150="","",L149*Resumen!$L$86/1000) -> 670.281545 | H150: =IF($E$16=$V$1,0,IF(D150="","",IF($E$11="Liquidez","0",AB150))) -> 777.63 | I150: =IF($E$16=$V$1,0,IF(D150="","",Amortización!$AE$14*1.16)) -> 290 | J150: =IFERROR(IF(OR($E$11=Resumen!$N$6,$E$8=Resumen!$N$6),Amortización!F150*0.16,0),"") -> 0 | K150: =IFERROR(IF(D150="","",E150+F150+G150+H150+I150+Y150+J150),0) -> 24306.11112 | L150: =IFERROR(IF(D150="","",IF((D150-E150-AI150-Q150)<1,0,D150-E150-AI150-Q150)),0) -> 1515715.252 | N150: =IF(OR(O150="",O150=0),M150,M150-O150-P150) -> 0 | P150: =IF(O150="","",IF(O150=0,0,O150*0.16)) ->  | Q150: =IF(OR(L149=0,L149=""),"",IF(E150>=D150,0,$E$17*10%)) -> 0 | R150: 0.1175 | T150: 130 | U150: 24158.85181 | V150: =IF($E$16=$V$1,AI150,IF(ISNUMBER(T150),IF($E$14="Pago Fijo",PMT(R150/12,$K$11,-$K$9),X150*$K$15*$K$9/1000)+G150+AI150+Q150+H150/1.16+$AE$14,0)) -> 24158.85181 | X150: 1.207096081 | Y150: 0 | AB150: =IF((($K$8*0.7)*($AE$13))>L149*($AE$13),($K$8*0.7)*($AE$13),($AE$13)*L149) -> 777.63 | AG150: =IF($AH$20=0,0,IF(N150>AH149,MAX(0,N150-AH149),N150)) -> 0 | AH150: =IFERROR(MAX(0,AH149-N150),0) -> 0 | AI150: =IF($E$16="no",N150,IF(AH150>0,0,AG150)) -> 0 | AV150: =IF(OR(BE149="",BE149=0),"",IF(AV149+1>$K$11+$X$2,"",AV149+1)) -> 130 | AW150: =IF(IF(AW149="","",AW149-AX149-BM149-BY149)<0.01,"",IF(AW149="","",BE149)) -> 630265.2849 | AX150: =IF($E$16=$V$1,0,IF(AW150="","",PMT($AY$10/12,$AY$11,-$AW$21)-AY150)) -> 3392.024651 | AY150: 5488.560189 | AZ150: =IF($E$16=$V$1,0,IF(AW150="","",BE149*0/1000)) -> 0 | BA150: =IF($E$16=$V$1,0,IF(AW150="","",IF($E$11="Liquidez","0",0))) -> 0 | BB150: =IF($E$16=$V$1,0,IF(AW150="","",AW150*$AY$13/12)) -> 525.2210707 | BC150: =IFERROR(IF(OR($E$11=Resumen!$N$6,$E$8=Resumen!$N$6),Amortización!AY150*0.16,0),"") -> 0 | BD150: =IFERROR(IF(AW150="","",AX150+AY150+AZ150+BA150+BB150+BC150),0) -> 9405.805911 | BE150: 626873.2602 | BF150: 0 | BH150: 0.1045 | BJ150: =AV150 -> 130 | BK150: =IF(AW150="","",AX150+AY150+AZ150+BA150/1.16+BB150/1.16) -> 9333.361625
C151: =IF(OR(L150="",L150=0),"",IF(C150+1>$K$11+$X$2,"",C150+1)) -> 131 | D151: =IF(IF(D150="","",D150-E150-Q150-AI150)<0.01,"",IF(D150="","",L150)) -> 1515715.252 | E151: 7726.821073 | F151: 14841.3785 | G151: =IF(D151="","",L150*Resumen!$L$86/1000) -> 666.9147107 | H151: 777.63 | I151: =IF($E$16=$V$1,0,IF(D151="","",Amortización!$AE$14*1.16)) -> 290 | J151: =IFERROR(IF(OR($E$11=Resumen!$N$6,$E$8=Resumen!$N$6),Amortización!F151*0.16,0),"") -> 0 | K151: 24302.74429 | L151: 1507988.43 | N151: 0 | R151: =IF(D151="","",R150) -> 0.1175 | T151: =C151 -> 131 | U151: 24155.48498 | V151: 24155.48498 | X151: 1.207096081 | Y151: 0 | AB151: 777.63 | AG151: 0 | AH151: 0 | AI151: 0 | AV151: 131 | AW151: 626873.2602 | AX151: 3421.563533 | AY151: 5459.021308 | AZ151: 0 | BA151: 0 | BB151: 522.3943835 | BC151: =IFERROR(IF(OR($E$11=Resumen!$N$6,$E$8=Resumen!$N$6),Amortización!AY151*0.16,0),"") -> 0 | BD151: 9402.979224 | BE151: 623451.6967 | BF151: 0 | BH151: 0.1045 | BJ151: 131 | BK151: 9330.924826
C152: 132 | D152: 1507988.43 | E152: 7802.479529 | F152: 14765.72005 | G152: =IF(D152="","",L151*Resumen!$L$86/1000) -> 663.5149094 | H152: 777.63 | I152: =IF($E$16=$V$1,0,IF(D152="","",Amortización!$AE$14*1.16)) -> 290 | J152: =IFERROR(IF(OR($E$11=Resumen!$N$6,$E$8=Resumen!$N$6),Amortización!F152*0.16,0),"") -> 0 | K152: 24299.34449 | L152: 1500185.951 | N152: 0 | O152: =IF(M152="","",IF(AND($H$12="C. Penalización Pago Anticipado",C152<=60),M152-(M152/(1+$K$12)),0)) ->  | Q152: =IF(OR(L151=0,L151=""),"",IF(E152>=D152,0,$E$17*10%)) -> 0 | R152: 0.1175 | T152: 132 | U152: =IF(D152="","",E152+F152+G152+H152/1.16+(I152/1.16)+Q152) -> 24152.08518 | V152: 24152.08518 | X152: 1.207096081 | Y152: 0 | AB152: 777.63 | AG152: 0 | AH152: 0 | AI152: 0 | AV152: 132 | AW152: 623451.6967 | AX152: 3451.359648 | AY152: =IF(AW152="","",AW152*(BH152/12)) -> 5429.225192 | AZ152: 0 | BA152: 0 | BB152: 519.5430806 | BC152: =IFERROR(IF(OR($E$11=Resumen!$N$6,$E$8=Resumen!$N$6),Amortización!AY152*0.16,0),"") -> 0 | BD152: 9400.127921 | BE152: 620000.337 | BF152: 0 | BH152: 0.1045 | BJ152: 132 | BK152: 9328.466806
C153: 133 | D153: 1500185.951 | E153: =IFERROR(IF($E$14&$E$16=$X$4,PMT(R153/12,$K$11,-$K$9)-F153,IF(D153="","",IF($E$14="Pago Fijo",MIN(IF($E$15="Mensualidad",-PMT(R153/12,$K$11-C152,D153)-F153,-PMT(R153/12,$K$11,$K$9)-F153),D153),MIN(X153*$K$9*$K$15/1000-F153,D153)))),0) -> 7878.878808 | F153: 14689.32077 | G153: =IF(D153="","",L152*Resumen!$L$86/1000) -> 660.0818184 | H153: 777.63 | I153: =IF($E$16=$V$1,0,IF(D153="","",Amortización!$AE$14*1.16)) -> 290 | J153: =IFERROR(IF(OR($E$11=Resumen!$N$6,$E$8=Resumen!$N$6),Amortización!F153*0.16,0),"") -> 0 | K153: 24295.9114 | L153: 1492307.072 | N153: 0 | R153: 0.1175 | T153: 133 | U153: 24148.65209 | V153: 24148.65209 | X153: 1.230030907 | Y153: 0 | AB153: 777.63 | AG153: 0 | AH153: 0 | AI153: 0 | AV153: 133 | AW153: 620000.337 | AX153: 3481.415239 | AY153: 5399.169602 | AZ153: 0 | BA153: 0 | BB153: 516.6669475 | BC153: =IFERROR(IF(OR($E$11=Resumen!$N$6,$E$8=Resumen!$N$6),Amortización!AY153*0.16,0),"") -> 0 | BD153: 9397.251788 | BE153: 616518.9218 | BF153: 0 | BH153: 0.1045 | BJ153: 133 | BK153: 9325.987381
C154: 134 | D154: 1492307.072 | E154: 7956.026163 | F154: =IF(D154="","",D154*(R154/12)) -> 14612.17341 | G154: =IF(D154="","",L153*Resumen!$L$86/1000) -> 656.6151117 | H154: 777.63 | I154: =IF($E$16=$V$1,0,IF(D154="","",Amortización!$AE$14*1.16)) -> 290 | J154: =IFERROR(IF(OR($E$11=Resumen!$N$6,$E$8=Resumen!$N$6),Amortización!F154*0.16,0),"") -> 0 | K154: 24292.44469 | L154: 1484351.046 | N154: 0 | Q154: =IF(OR(L153=0,L153=""),"",IF(E154>=D154,0,$E$17*10%)) -> 0 | R154: 0.1175 | T154: 134 | U154: 24145.18538 | V154: 24145.18538 | X154: 1.230030907 | Y154: 0 | AB154: 777.63 | AG154: 0 | AH154: 0 | AI154: 0 | AV154: 134 | AW154: 616518.9218 | AX154: 3511.732563 | AY154: 5368.852277 | AZ154: 0 | BA154: 0 | BB154: 513.7657682 | BC154: =IFERROR(IF(OR($E$11=Resumen!$N$6,$E$8=Resumen!$N$6),Amortización!AY154*0.16,0),"") -> 0 | BD154: 9394.350609 | BE154: 613007.1892 | BF154: 0 | BH154: 0.1045 | BJ154: 134 | BK154: 9323.486365
C155: 135 | D155: 1484351.046 | E155: 8033.928919 | F155: 14534.27066 | G155: =IF(D155="","",L154*Resumen!$L$86/1000) -> 653.1144602 | H155: 777.63 | I155: =IF($E$16=$V$1,0,IF(D155="","",Amortización!$AE$14*1.16)) -> 290 | J155: =IFERROR(IF(OR($E$11=Resumen!$N$6,$E$8=Resumen!$N$6),Amortización!F155*0.16,0),"") -> 0 | K155: 24288.94404 | L155: 1476317.117 | N155: 0 | R155: 0.1175 | T155: 135 | U155: 24141.68473 | V155: 24141.68473 | X155: 1.230030907 | Y155: 0 | AB155: 777.63 | AG155: 0 | AH155: 0 | AI155: 0 | AV155: 135 | AW155: 613007.1892 | AX155: 3542.313901 | AY155: 5338.27094 | AZ155: 0 | BA155: 0 | BB155: 510.8393244 | BC155: =IFERROR(IF(OR($E$11=Resumen!$N$6,$E$8=Resumen!$N$6),Amortización!AY155*0.16,0),"") -> 0 | BD155: 9391.424165 | BE155: 609464.8753 | BF155: 0 | BH155: 0.1045 | BJ155: 135 | BK155: 9320.963568
C156: 136 | D156: 1476317.117 | E156: 8112.594473 | F156: 14455.6051 | G156: =IF(D156="","",L155*Resumen!$L$86/1000) -> 649.5795315 | H156: 777.63 | I156: =IF($E$16=$V$1,0,IF(D156="","",Amortización!$AE$14*1.16)) -> 290 | J156: =IFERROR(IF(OR($E$11=Resumen!$N$6,$E$8=Resumen!$N$6),Amortización!F156*0.16,0),"") -> 0 | K156: 24285.40911 | L156: 1468204.523 | N156: 0 | Q156: =IF(OR(L155=0,L155=""),"",IF(E156>=D156,0,$E$17*10%)) -> 0 | R156: 0.1175 | T156: 136 | U156: 24138.1498 | V156: 24138.1498 | X156: 1.230030907 | Y156: 0 | AB156: 777.63 | AG156: 0 | AH156: 0 | AI156: 0 | AV156: 136 | AW156: 609464.8753 | AX156: 3573.161551 | AY156: 5307.423289 | AZ156: 0 | BA156: 0 | BB156: 507.8873961 | BC156: =IFERROR(IF(OR($E$11=Resumen!$N$6,$E$8=Resumen!$N$6),Amortización!AY156*0.16,0),"") -> 0 | BD156: 9388.472236 | BE156: 605891.7138 | BF156: 0 | BH156: 0.1045 | BJ156: 136 | BK156: 9318.418803
C157: 137 | D157: 1468204.523 | E157: 8192.030294 | F157: 14376.16928 | G157: =IF(D157="","",L156*Resumen!$L$86/1000) -> 646.0099899 | H157: 777.63 | I157: =IF($E$16=$V$1,0,IF(D157="","",Amortización!$AE$14*1.16)) -> 290 | J157: =IFERROR(IF(OR($E$11=Resumen!$N$6,$E$8=Resumen!$N$6),Amortización!F157*0.16,0),"") -> 0 | K157: 24281.83957 | L157: 1460012.492 | N157: 0 | R157: 0.1175 | T157: 137 | U157: 24134.58026 | V157: 24134.58026 | X157: 1.230030907 | Y157: 0 | AB157: 777.63 | AG157: 0 | AH157: 0 | AI157: 0 | AV157: 137 | AW157: 605891.7138 | AX157: 3604.277833 | AY157: 5276.307008 | AZ157: 0 | BA157: 0 | BB157: 504.9097615 | BC157: =IFERROR(IF(OR($E$11=Resumen!$N$6,$E$8=Resumen!$N$6),Amortización!AY157*0.16,0),"") -> 0 | BD157: 9385.494602 | BE157: 602287.436 | BF157: 0 | BH157: 0.1045 | BJ157: 137 | BK157: 9315.851876
C158: 138 | D158: 1460012.492 | E158: 8272.243924 | F158: 14295.95565 | G158: =IF(D158="","",L157*Resumen!$L$86/1000) -> 642.4054966 | H158: 777.63 | I158: =IF($E$16=$V$1,0,IF(D158="","",Amortización!$AE$14*1.16)) -> 290 | J158: =IFERROR(IF(OR($E$11=Resumen!$N$6,$E$8=Resumen!$N$6),Amortización!F158*0.16,0),"") -> 0 | K158: 24278.23507 | L158: 1451740.248 | N158: 0 | Q158: =IF(OR(L157=0,L157=""),"",IF(E158>=D158,0,$E$17*10%)) -> 0 | R158: 0.1175 | T158: 138 | U158: 24130.97576 | V158: 24130.97576 | X158: 1.230030907 | Y158: 0 | AB158: 777.63 | AG158: 0 | AH158: 0 | AI158: 0 | AV158: 138 | AW158: 602287.436 | AX158: 3635.665086 | AY158: 5244.919755 | AZ158: 0 | BA158: 0 | BB158: 501.9061966 | BC158: =IFERROR(IF(OR($E$11=Resumen!$N$6,$E$8=Resumen!$N$6),Amortización!AY158*0.16,0),"") -> 0 | BD158: 9382.491037 | BE158: 598651.7709 | BF158: 0 | BH158: 0.1045 | BJ158: 138 | BK158: 9313.262596
C159: 139 | D159: 1451740.248 | E159: 8353.242979 | F159: 14214.9566 | G159: =IF(D159="","",L158*Resumen!$L$86/1000) -> 638.7657093 | H159: 777.63 | I159: =IF($E$16=$V$1,0,IF(D159="","",Amortización!$AE$14*1.16)) -> 290 | J159: =IFERROR(IF(OR($E$11=Resumen!$N$6,$E$8=Resumen!$N$6),Amortización!F159*0.16,0),"") -> 0 | K159: 24274.59529 | L159: 1443387.005 | N159: 0 | R159: 0.1175 | T159: 139 | U159: 24127.33598 | V159: 24127.33598 | X159: 1.230030907 | Y159: 0 | AB159: 777.63 | AG159: 0 | AH159: 0 | AI159: 0 | AV159: 139 | AW159: 598651.7709 | AX159: 3667.325669 | AY159: 5213.259171 | AZ159: 0 | BA159: 0 | BB159: 498.8764757 | BC159: =IFERROR(IF(OR($E$11=Resumen!$N$6,$E$8=Resumen!$N$6),Amortización!AY159*0.16,0),"") -> 0 | BD159: 9379.461316 | BE159: 594984.4452 | BF159: 0 | BH159: 0.1045 | BJ159: 139 | BK159: 9310.650768
C160: 140 | D160: 1443387.005 | E160: 8435.03515 | F160: 14133.16443 | G160: =IF(D160="","",L159*Resumen!$L$86/1000) -> 635.0902824 | H160: 777.63 | I160: =IF($E$16=$V$1,0,IF(D160="","",Amortización!$AE$14*1.16)) -> 290 | J160: =IFERROR(IF(OR($E$11=Resumen!$N$6,$E$8=Resumen!$N$6),Amortización!F160*0.16,0),"") -> 0 | K160: 24270.91986 | L160: 1434951.97 | N160: 0 | Q160: =IF(OR(L159=0,L159=""),"",IF(E160>=D160,0,$E$17*10%)) -> 0 | R160: 0.1175 | T160: 140 | U160: 24123.66055 | V160: 24123.66055 | X160: 1.230030907 | Y160: 0 | AB160: 777.63 | AG160: 0 | AH160: 0 | AI160: 0 | AV160: 140 | AW160: 594984.4452 | AX160: 3699.261963 | AY160: 5181.322877 | AZ160: 0 | BA160: 0 | BB160: 495.820371 | BC160: =IFERROR(IF(OR($E$11=Resumen!$N$6,$E$8=Resumen!$N$6),Amortización!AY160*0.16,0),"") -> 0 | BD160: 9376.405211 | BE160: 591285.1832 | BF160: 0 | BH160: 0.1045 | BJ160: 140 | BK160: 9308.016195
C161: 141 | D161: 1434951.97 | E161: 8517.628203 | F161: 14050.57137 | G161: =IF(D161="","",L160*Resumen!$L$86/1000) -> 631.3788669 | H161: 777.63 | I161: =IF($E$16=$V$1,0,IF(D161="","",Amortización!$AE$14*1.16)) -> 290 | J161: =IFERROR(IF(OR($E$11=Resumen!$N$6,$E$8=Resumen!$N$6),Amortización!F161*0.16,0),"") -> 0 | K161: 24267.20844 | L161: 1426434.342 | N161: 0 | R161: 0.1175 | T161: 141 | U161: 24119.94913 | V161: 24119.94913 | X161: 1.230030907 | Y161: 0 | AB161: 777.63 | AG161: 0 | AH161: 0 | AI161: 0 | AV161: 141 | AW161: 591285.1832 | AX161: 3731.47637 | AY161: 5149.108471 | AZ161: 0 | BA161: 0 | BB161: 492.7376527 | BC161: =IFERROR(IF(OR($E$11=Resumen!$N$6,$E$8=Resumen!$N$6),Amortización!AY161*0.16,0),"") -> 0 | BD161: 9373.322493 | BE161: 587553.7069 | BF161: 0 | BH161: 0.1045 | BJ161: 141 | BK161: 9305.358679
C162: 142 | D162: 1426434.342 | E162: 8601.029979 | F162: 13967.1696 | G162: =IF(D162="","",L161*Resumen!$L$86/1000) -> 627.6311105 | H162: 777.63 | I162: =IF($E$16=$V$1,0,IF(D162="","",Amortización!$AE$14*1.16)) -> 290 | J162: =IFERROR(IF(OR($E$11=Resumen!$N$6,$E$8=Resumen!$N$6),Amortización!F162*0.16,0),"") -> 0 | K162: 24263.46069 | L162: 1417833.312 | N162: 0 | Q162: =IF(OR(L161=0,L161=""),"",IF(E162>=D162,0,$E$17*10%)) -> 0 | R162: 0.1175 | T162: 142 | U162: 24116.20138 | V162: 24116.20138 | X162: 1.230030907 | Y162: 0 | AB162: 777.63 | AG162: 0 | AH162: 0 | AI162: 0 | AV162: 142 | AW162: 587553.7069 | AX162: 3763.97131 | AY162: 5116.613531 | AZ162: 0 | BA162: 0 | BB162: 489.6280891 | BC162: =IFERROR(IF(OR($E$11=Resumen!$N$6,$E$8=Resumen!$N$6),Amortización!AY162*0.16,0),"") -> 0 | BD162: 9370.212929 | BE162: 583789.7356 | BF162: 0 | BH162: 0.1045 | BJ162: 142 | BK162: 9302.678021
C163: 143 | D163: 1417833.312 | E163: 8685.248397 | F163: 13882.95118 | G163: =IF(D163="","",L162*Resumen!$L$86/1000) -> 623.8466573 | H163: 777.63 | I163: =IF($E$16=$V$1,0,IF(D163="","",Amortización!$AE$14*1.16)) -> 290 | J163: =IFERROR(IF(OR($E$11=Resumen!$N$6,$E$8=Resumen!$N$6),Amortización!F163*0.16,0),"") -> 0 | K163: 24259.67623 | L163: 1409148.064 | N163: 0 | R163: 0.1175 | T163: 143 | U163: 24112.41692 | V163: 24112.41692 | X163: 1.230030907 | Y163: 0 | AB163: 777.63 | AG163: 0 | AH163: 0 | AI163: 0 | AV163: 143 | AW163: 583789.7356 | AX163: 3796.749227 | AY163: 5083.835614 | AZ163: 0 | BA163: 0 | BB163: 486.4914463 | BC163: =IFERROR(IF(OR($E$11=Resumen!$N$6,$E$8=Resumen!$N$6),Amortización!AY163*0.16,0),"") -> 0 | BD163: 9367.076287 | BE163: 579992.9863 | BF163: 0 | BH163: 0.1045 | BJ163: 143 | BK163: 9299.974018
C164: 144 | D164: 1409148.064 | E164: 8770.291454 | F164: 13797.90812 | G164: =IF(D164="","",L163*Resumen!$L$86/1000) -> 620.025148 | H164: 777.63 | I164: =IF($E$16=$V$1,0,IF(D164="","",Amortización!$AE$14*1.16)) -> 290 | J164: =IFERROR(IF(OR($E$11=Resumen!$N$6,$E$8=Resumen!$N$6),Amortización!F164*0.16,0),"") -> 0 | K164: 24255.85473 | L164: 1400377.772 | N164: 0 | Q164: =IF(OR(L163=0,L163=""),"",IF(E164>=D164,0,$E$17*10%)) -> 0 | R164: 0.1175 | T164: 144 | U164: 24108.59542 | V164: 24108.59542 | X164: 1.230030907 | Y164: 0 | AB164: 777.63 | AG164: 0 | AH164: 0 | AI164: 0 | AV164: 144 | AW164: 579992.9863 | AX164: 3829.812584 | AY164: 5050.772256 | AZ164: 0 | BA164: 0 | BB164: 483.3274886 | BC164: =IFERROR(IF(OR($E$11=Resumen!$N$6,$E$8=Resumen!$N$6),Amortización!AY164*0.16,0),"") -> 0 | BD164: 9363.912329 | BE164: 576163.1737 | BF164: 0 | BH164: 0.1045 | BJ164: 144 | BK164: 9297.246468
C165: 145 | D165: 1400377.772 | E165: 8856.167225 | F165: 13712.03235 | G165: =IF(D165="","",L164*Resumen!$L$86/1000) -> 616.1662198 | H165: 777.63 | I165: =IF($E$16=$V$1,0,IF(D165="","",Amortización!$AE$14*1.16)) -> 290 | J165: =IFERROR(IF(OR($E$11=Resumen!$N$6,$E$8=Resumen!$N$6),Amortización!F165*0.16,0),"") -> 0 | K165: 24251.9958 | L165: 1391521.605 | N165: 0 | R165: 0.1175 | T165: 145 | U165: 24104.73649 | V165: 24104.73649 | X165: =IF(OR(AND($E$8="Adquisicion",$E$9="Premier"),AND($E$8="Exclusiva",$E$9="Premier"),AND($E$8="Nomina Especial",$E$9="Premier")),X153*1.019,IF(OR(AND($E$8="Adquisicion",$E$9="No Premier"),AND($E$8="Exclusiva",$E$9="No Premier"),AND($E$8="Nomina Especial",$E$9="No Premier")),X153*1.019,IF($E$8="Pago de Hipoteca",X153*1.019))) -> 1.253401494 | Y165: 0 | AB165: 777.63 | AG165: 0 | AH165: 0 | AI165: 0 | AV165: 145 | AW165: 576163.1737 | AX165: 3863.163869 | AY165: 5017.420971 | AZ165: 0 | BA165: 0 | BB165: 480.1359781 | BC165: =IFERROR(IF(OR($E$11=Resumen!$N$6,$E$8=Resumen!$N$6),Amortización!AY165*0.16,0),"") -> 0 | BD165: 9360.720818 | BE165: 572300.0099 | BF165: 0 | BH165: 0.1045 | BJ165: 145 | BK165: 9294.495166
C166: 146 | D166: 1391521.605 | E166: 8942.883862 | F166: 13625.31572 | G166: =IF(D166="","",L165*Resumen!$L$86/1000) -> 612.2695062 | H166: 777.63 | I166: =IF($E$16=$V$1,0,IF(D166="","",Amortización!$AE$14*1.16)) -> 290 | J166: =IFERROR(IF(OR($E$11=Resumen!$N$6,$E$8=Resumen!$N$6),Amortización!F166*0.16,0),"") -> 0 | K166: 24248.09908 | L166: 1382578.721 | N166: 0 | Q166: =IF(OR(L165=0,L165=""),"",IF(E166>=D166,0,$E$17*10%)) -> 0 | R166: 0.1175 | T166: 146 | U166: 24100.83977 | V166: 24100.83977 | X166: 1.253401494 | Y166: 0 | AB166: 777.63 | AG166: 0 | AH166: 0 | AI166: 0 | AV166: 146 | AW166: 572300.0099 | AX166: 3896.805588 | AY166: 4983.779253 | AZ166: 0 | BA166: 0 | BB166: 476.9166749 | BC166: =IFERROR(IF(OR($E$11=Resumen!$N$6,$E$8=Resumen!$N$6),Amortización!AY166*0.16,0),"") -> 0 | BD166: 9357.501515 | BE166: 568403.2043 | BF166: 0 | BH166: 0.1045 | BJ166: 146 | BK166: 9291.719905
C167: 147 | D167: 1382578.721 | E167: 9030.4496 | F167: 13537.74998 | G167: =IF(D167="","",L166*Resumen!$L$86/1000) -> 608.3346373 | H167: 777.63 | I167: =IF($E$16=$V$1,0,IF(D167="","",Amortización!$AE$14*1.16)) -> 290 | J167: =IFERROR(IF(OR($E$11=Resumen!$N$6,$E$8=Resumen!$N$6),Amortización!F167*0.16,0),"") -> 0 | K167: 24244.16421 | L167: 1373548.271 | N167: 0 | R167: 0.1175 | T167: 147 | U167: 24096.9049 | V167: 24096.9049 | X167: 1.253401494 | Y167: 0 | AB167: 777.63 | AG167: 0 | AH167: 0 | AI167: 0 | AV167: 147 | AW167: 568403.2043 | AX167: 3930.74027 | AY167: 4949.844571 | AZ167: 0 | BA167: 0 | BB167: 473.6693369 | BC167: =IFERROR(IF(OR($E$11=Resumen!$N$6,$E$8=Resumen!$N$6),Amortización!AY167*0.16,0),"") -> 0 | BD167: 9354.254177 | BE167: 564472.464 | BF167: 0 | BH167: 0.1045 | BJ167: 147 | BK167: 9288.920476
C168: 148 | D168: 1373548.271 | E168: 9118.872753 | F168: 13449.32682 | G168: =IF(D168="","",L167*Resumen!$L$86/1000) -> 604.3612395 | H168: 777.63 | I168: =IF($E$16=$V$1,0,IF(D168="","",Amortización!$AE$14*1.16)) -> 290 | J168: =IFERROR(IF(OR($E$11=Resumen!$N$6,$E$8=Resumen!$N$6),Amortización!F168*0.16,0),"") -> 0 | K168: 24240.19082 | L168: 1364429.399 | N168: 0 | Q168: =IF(OR(L167=0,L167=""),"",IF(E168>=D168,0,$E$17*10%)) -> 0 | R168: 0.1175 | T168: 148 | U168: 24092.93151 | V168: 24092.93151 | X168: 1.253401494 | Y168: 0 | AB168: 777.63 | AG168: 0 | AH168: 0 | AI168: 0 | AV168: 148 | AW168: 564472.464 | AX168: 3964.970466 | AY168: 4915.614374 | AZ168: 0 | BA168: 0 | BB168: 470.39372 | BC168: =IFERROR(IF(OR($E$11=Resumen!$N$6,$E$8=Resumen!$N$6),Amortización!AY168*0.16,0),"") -> 0 | BD168: 9350.97856 | BE168: 560507.4935 | BF168: 0 | BH168: 0.1045 | BJ168: 148 | BK168: 9286.096668
C169: 149 | D169: 1364429.399 | E169: 9208.161715 | F169: 13360.03786 | G169: =IF(D169="","",L168*Resumen!$L$86/1000) -> 600.3489354 | H169: 777.63 | I169: =IF($E$16=$V$1,0,IF(D169="","",Amortización!$AE$14*1.16)) -> 290 | J169: =IFERROR(IF(OR($E$11=Resumen!$N$6,$E$8=Resumen!$N$6),Amortización!F169*0.16,0),"") -> 0 | K169: 24236.17851 | L169: 1355221.237 | N169: 0 | R169: 0.1175 | T169: 149 | U169: 24088.9192 | V169: 24088.9192 | X169: 1.253401494 | Y169: 0 | AB169: 777.63 | AG169: 0 | AH169: 0 | AI169: 0 | AV169: 149 | AW169: 560507.4935 | AX169: 3999.498751 | AY169: 4881.08609 | AZ169: 0 | BA169: 0 | BB169: 467.089578 | BC169: =IFERROR(IF(OR($E$11=Resumen!$N$6,$E$8=Resumen!$N$6),Amortización!AY169*0.16,0),"") -> 0 | BD169: 9347.674418 | BE169: 556507.9948 | BF169: 0 | BH169: 0.1045 | BJ169: 149 | BK169: 9283.24827
C170: 150 | D170: 1355221.237 | E170: 9298.324965 | F170: 13269.87461 | G170: =IF(D170="","",L169*Resumen!$L$86/1000) -> 596.2973443 | H170: 777.63 | I170: =IF($E$16=$V$1,0,IF(D170="","",Amortización!$AE$14*1.16)) -> 290 | J170: =IFERROR(IF(OR($E$11=Resumen!$N$6,$E$8=Resumen!$N$6),Amortización!F170*0.16,0),"") -> 0 | K170: 24232.12692 | L170: 1345922.912 | N170: 0 | Q170: =IF(OR(L169=0,L169=""),"",IF(E170>=D170,0,$E$17*10%)) -> 0 | R170: 0.1175 | T170: 150 | U170: 24084.86761 | V170: 24084.86761 | X170: 1.253401494 | Y170: 0 | AB170: 777.63 | AG170: 0 | AH170: 0 | AI170: 0 | AV170: 150 | AW170: 556507.9948 | AX170: 4034.327719 | AY170: 4846.257121 | AZ170: 0 | BA170: 0 | BB170: 463.7566623 | BC170: =IFERROR(IF(OR($E$11=Resumen!$N$6,$E$8=Resumen!$N$6),Amortización!AY170*0.16,0),"") -> 0 | BD170: 9344.341503 | BE170: 552473.6671 | BF170: 0 | BH170: 0.1045 | BJ170: 150 | BK170: 9280.375067
C171: 151 | D171: 1345922.912 | E171: 9389.371064 | F171: 13178.82851 | G171: =IF(D171="","",L170*Resumen!$L$86/1000) -> 592.2060813 | H171: 777.63 | I171: =IF($E$16=$V$1,0,IF(D171="","",Amortización!$AE$14*1.16)) -> 290 | J171: =IFERROR(IF(OR($E$11=Resumen!$N$6,$E$8=Resumen!$N$6),Amortización!F171*0.16,0),"") -> 0 | K171: 24228.03566 | L171: 1336533.541 | N171: 0 | R171: 0.1175 | T171: 151 | U171: 24080.77635 | V171: 24080.77635 | X171: 1.253401494 | Y171: 0 | AB171: 777.63 | AG171: 0 | AH171: 0 | AI171: 0 | AV171: 151 | AW171: 552473.6671 | AX171: 4069.45999 | AY171: 4811.124851 | AZ171: 0 | BA171: 0 | BB171: 460.3947226 | BC171: =IFERROR(IF(OR($E$11=Resumen!$N$6,$E$8=Resumen!$N$6),Amortización!AY171*0.16,0),"") -> 0 | BD171: 9340.979563 | BE171: 548404.2071 | BF171: 0 | BH171: 0.1045 | BJ171: 151 | BK171: 9277.476843
C172: 152 | D172: 1336533.541 | E172: 9481.308655 | F172: 13086.89092 | G172: =IF(D172="","",L171*Resumen!$L$86/1000) -> 588.074758 | H172: 777.63 | I172: =IF($E$16=$V$1,0,IF(D172="","",Amortización!$AE$14*1.16)) -> 290 | J172: =IFERROR(IF(OR($E$11=Resumen!$N$6,$E$8=Resumen!$N$6),Amortización!F172*0.16,0),"") -> 0 | K172: 24223.90434 | L172: 1327052.232 | N172: 0 | Q172: =IF(OR(L171=0,L171=""),"",IF(E172>=D172,0,$E$17*10%)) -> 0 | R172: 0.1175 | T172: 152 | U172: 24076.64503 | V172: 24076.64503 | X172: 1.253401494 | Y172: 0 | AB172: 777.63 | AG172: 0 | AH172: 0 | AI172: 0 | AV172: 152 | AW172: 548404.2071 | AX172: 4104.898204 | AY172: 4775.686637 | AZ172: 0 | BA172: 0 | BB172: 457.0035059 | BC172: =IFERROR(IF(OR($E$11=Resumen!$N$6,$E$8=Resumen!$N$6),Amortización!AY172*0.16,0),"") -> 0 | BD172: 9337.588346 | BE172: 544299.3089 | BF172: 0 | BH172: 0.1045 | BJ172: 152 | BK172: 9274.55338
C173: 153 | D173: 1327052.232 | E173: 9574.146469 | F173: 12994.05311 | G173: =IF(D173="","",L172*Resumen!$L$86/1000) -> 583.9029822 | H173: 777.63 | I173: =IF($E$16=$V$1,0,IF(D173="","",Amortización!$AE$14*1.16)) -> 290 | J173: =IFERROR(IF(OR($E$11=Resumen!$N$6,$E$8=Resumen!$N$6),Amortización!F173*0.16,0),"") -> 0 | K173: 24219.73256 | L173: 1317478.086 | N173: 0 | R173: 0.1175 | T173: 153 | U173: 24072.47325 | V173: 24072.47325 | X173: 1.253401494 | Y173: 0 | AB173: 777.63 | AG173: 0 | AH173: 0 | AI173: 0 | AV173: 153 | AW173: 544299.3089 | AX173: 4140.645025 | AY173: 4739.939815 | AZ173: 0 | BA173: 0 | BB173: 453.5827574 | BC173: =IFERROR(IF(OR($E$11=Resumen!$N$6,$E$8=Resumen!$N$6),Amortización!AY173*0.16,0),"") -> 0 | BD173: 9334.167598 | BE173: 540158.6639 | BF173: 0 | BH173: 0.1045 | BJ173: 153 | BK173: 9271.604459
C174: 154 | D174: 1317478.086 | E174: 9667.89332 | F174: 12900.30626 | G174: =IF(D174="","",L173*Resumen!$L$86/1000) -> 579.6903578 | H174: 777.63 | I174: =IF($E$16=$V$1,0,IF(D174="","",Amortización!$AE$14*1.16)) -> 290 | J174: =IFERROR(IF(OR($E$11=Resumen!$N$6,$E$8=Resumen!$N$6),Amortización!F174*0.16,0),"") -> 0 | K174: 24215.51994 | L174: 1307810.193 | N174: 0 | Q174: =IF(OR(L173=0,L173=""),"",IF(E174>=D174,0,$E$17*10%)) -> 0 | R174: 0.1175 | T174: 154 | U174: 24068.26062 | V174: 24068.26062 | X174: 1.253401494 | Y174: 0 | AB174: 777.63 | AG174: 0 | AH174: 0 | AI174: 0 | AV174: 154 | AW174: 540158.6639 | AX174: 4176.703143 | AY174: 4703.881698 | AZ174: 0 | BA174: 0 | BB174: 450.1322199 | BC174: =IFERROR(IF(OR($E$11=Resumen!$N$6,$E$8=Resumen!$N$6),Amortización!AY174*0.16,0),"") -> 0 | BD174: 9330.71706 | BE174: 535981.9607 | BF174: 0 | BH174: =IF(AW174="","",BH173) -> 0.1045 | BJ174: 154 | BK174: 9268.629858
C175: 155 | D175: 1307810.193 | E175: 9762.558109 | F175: 12805.64147 | G175: =IF(D175="","",L174*Resumen!$L$86/1000) -> 575.4364847 | H175: 777.63 | I175: =IF($E$16=$V$1,0,IF(D175="","",Amortización!$AE$14*1.16)) -> 290 | J175: =IFERROR(IF(OR($E$11=Resumen!$N$6,$E$8=Resumen!$N$6),Amortización!F175*0.16,0),"") -> 0 | K175: 24211.26606 | L175: 1298047.634 | N175: 0 | R175: 0.1175 | T175: 155 | U175: 24064.00675 | V175: 24064.00675 | X175: 1.253401494 | Y175: 0 | AB175: 777.63 | AG175: 0 | AH175: 0 | AI175: 0 | AV175: 155 | AW175: 535981.9607 | AX175: 4213.075266 | AY175: 4667.509575 | AZ175: 0 | BA175: 0 | BB175: 446.6516339 | BC175: =IFERROR(IF(OR($E$11=Resumen!$N$6,$E$8=Resumen!$N$6),Amortización!AY175*0.16,0),"") -> 0 | BD175: 9327.236474 | BE175: 531768.8855 | BF175: 0 | BH175: 0.1045 | BJ175: 155 | BK175: 9265.629352
C176: 156 | D176: 1298047.634 | E176: 9858.149824 | F176: 12710.04975 | G176: =IF(D176="","",L175*Resumen!$L$86/1000) -> 571.1409592 | H176: 777.63 | I176: =IF($E$16=$V$1,0,IF(D176="","",Amortización!$AE$14*1.16)) -> 290 | J176: =IFERROR(IF(OR($E$11=Resumen!$N$6,$E$8=Resumen!$N$6),Amortización!F176*0.16,0),"") -> 0 | K176: 24206.97054 | L176: 1288189.485 | N176: 0 | Q176: =IF(OR(L175=0,L175=""),"",IF(E176>=D176,0,$E$17*10%)) -> 0 | R176: 0.1175 | T176: 156 | U176: 24059.71123 | V176: 24059.71123 | X176: 1.253401494 | Y176: 0 | AB176: 777.63 | AG176: 0 | AH176: 0 | AI176: 0 | AV176: 156 | AW176: 531768.8855 | AX176: 4249.76413 | AY176: 4630.820711 | AZ176: 0 | BA176: 0 | BB176: 443.1407379 | BC176: =IFERROR(IF(OR($E$11=Resumen!$N$6,$E$8=Resumen!$N$6),Amortización!AY176*0.16,0),"") -> 0 | BD176: 9323.725578 | BE176: 527519.1213 | BF176: 0 | BH176: 0.1045 | BJ176: 156 | BK176: 9262.602718
C177: 157 | D177: 1288189.485 | E177: 9954.677541 | F177: 12613.52204 | G177: =IF(D177="","",L176*Resumen!$L$86/1000) -> 566.8033732 | H177: 777.63 | I177: =IF($E$16=$V$1,0,IF(D177="","",Amortización!$AE$14*1.16)) -> 290 | J177: =IFERROR(IF(OR($E$11=Resumen!$N$6,$E$8=Resumen!$N$6),Amortización!F177*0.16,0),"") -> 0 | K177: 24202.63295 | L177: 1278234.807 | N177: 0 | R177: 0.1175 | T177: 157 | U177: 24055.37364 | V177: 24055.37364 | X177: 1.277216123 | Y177: 0 | AB177: 777.63 | AG177: 0 | AH177: 0 | AI177: 0 | AV177: 157 | AW177: 527519.1213 | AX177: 4286.772492 | AY177: 4593.812348 | AZ177: 0 | BA177: 0 | BB177: 439.5992678 | BC177: =IFERROR(IF(OR($E$11=Resumen!$N$6,$E$8=Resumen!$N$6),Amortización!AY177*0.16,0),"") -> 0 | BD177: 9320.184108 | BE177: 523232.3488 | BF177: 0 | BH177: 0.1045 | BJ177: 157 | BK177: 9259.549726
C178: 158 | D178: 1278234.807 | E178: 10052.15042 | F178: 12516.04915 | G178: =IF(D178="","",L177*Resumen!$L$86/1000) -> 562.4233151 | H178: 777.63 | I178: =IF($E$16=$V$1,0,IF(D178="","",Amortización!$AE$14*1.16)) -> 290 | J178: =IFERROR(IF(OR($E$11=Resumen!$N$6,$E$8=Resumen!$N$6),Amortización!F178*0.16,0),"") -> 0 | K178: 24198.25289 | L178: 1268182.657 | N178: 0 | Q178: =IF(OR(L177=0,L177=""),"",IF(E178>=D178,0,$E$17*10%)) -> 0 | R178: 0.1175 | T178: 158 | U178: 24050.99358 | V178: 24050.99358 | X178: 1.277216123 | Y178: 0 | AB178: 777.63 | AG178: 0 | AH178: 0 | AI178: 0 | AV178: 158 | AW178: 523232.3488 | AX178: 4324.103136 | AY178: 4556.481704 | AZ178: 0 | BA178: 0 | BB178: 436.0269574 | BC178: =IFERROR(IF(OR($E$11=Resumen!$N$6,$E$8=Resumen!$N$6),Amortización!AY178*0.16,0),"") -> 0 | BD178: 9316.611798 | BE178: 518908.2457 | BF178: 0 | BH178: 0.1045 | BJ178: 158 | BK178: 9256.470148
C179: 159 | D179: 1268182.657 | E179: 10150.57773 | F179: 12417.62185 | G179: =IF(D179="","",L178*Resumen!$L$86/1000) -> 558.0003689 | H179: 777.63 | I179: =IF($E$16=$V$1,0,IF(D179="","",Amortización!$AE$14*1.16)) -> 290 | J179: =IFERROR(IF(OR($E$11=Resumen!$N$6,$E$8=Resumen!$N$6),Amortización!F179*0.16,0),"") -> 0 | K179: 24193.82995 | L179: 1258032.079 | N179: 0 | R179: 0.1175 | T179: 159 | U179: 24046.57064 | V179: 24046.57064 | X179: 1.277216123 | Y179: 0 | AB179: 777.63 | AG179: 0 | AH179: 0 | AI179: 0 | AV179: 159 | AW179: 518908.2457 | AX179: 4361.758867 | AY179: 4518.825973 | AZ179: 0 | BA179: 0 | BB179: 432.4235381 | BC179: =IFERROR(IF(OR($E$11=Resumen!$N$6,$E$8=Resumen!$N$6),Amortización!AY179*0.16,0),"") -> 0 | BD179: 9313.008378 | BE179: 514546.4868 | BF179: 0 | BH179: 0.1045 | BJ179: 159 | BK179: 9253.363752
C180: 160 | D180: 1258032.079 | E180: 10249.9688 | F180: 12318.23077 | G180: =IF(D180="","",L179*Resumen!$L$86/1000) -> 553.5341147 | H180: 777.63 | I180: =IF($E$16=$V$1,0,IF(D180="","",Amortización!$AE$14*1.16)) -> 290 | J180: =IFERROR(IF(OR($E$11=Resumen!$N$6,$E$8=Resumen!$N$6),Amortización!F180*0.16,0),"") -> 0 | K180: 24189.36369 | L180: 1247782.11 | N180: 0 | Q180: =IF(OR(L179=0,L179=""),"",IF(E180>=D180,0,$E$17*10%)) -> 0 | R180: 0.1175 | T180: 160 | U180: 24042.10438 | V180: 24042.10438 | X180: 1.277216123 | Y180: 0 | AB180: 777.63 | AG180: 0 | AH180: 0 | AI180: 0 | AV180: 160 | AW180: 514546.4868 | AX180: 4399.742518 | AY180: 4480.842323 | AZ180: 0 | BA180: 0 | BB180: 428.788739 | BC180: =IFERROR(IF(OR($E$11=Resumen!$N$6,$E$8=Resumen!$N$6),Amortización!AY180*0.16,0),"") -> 0 | BD180: 9309.373579 | BE180: 510146.7443 | BF180: 0 | BH180: 0.1045 | BJ180: 160 | BK180: 9250.230305
C181: 161 | D181: 1247782.11 | E181: 10350.33308 | F181: 12217.86649 | G181: =IF(D181="","",L180*Resumen!$L$86/1000) -> 549.0241284 | H181: 777.63 | I181: =IF($E$16=$V$1,0,IF(D181="","",Amortización!$AE$14*1.16)) -> 290 | J181: =IFERROR(IF(OR($E$11=Resumen!$N$6,$E$8=Resumen!$N$6),Amortización!F181*0.16,0),"") -> 0 | K181: 24184.85371 | L181: 1237431.777 | N181: 0 | R181: 0.1175 | T181: 161 | U181: 24037.5944 | V181: 24037.5944 | X181: 1.277216123 | Y181: 0 | AB181: 777.63 | AG181: 0 | AH181: 0 | AI181: 0 | AV181: 161 | AW181: 510146.7443 | AX181: 4438.056942 | AY181: 4442.527898 | AZ181: 0 | BA181: 0 | BB181: 425.1222869 | BC181: =IFERROR(IF(OR($E$11=Resumen!$N$6,$E$8=Resumen!$N$6),Amortización!AY181*0.16,0),"") -> 0 | BD181: 9305.707127 | BE181: 505708.6874 | BF181: 0 | BH181: 0.1045 | BJ181: 161 | BK181: 9247.06957
C182: 162 | D182: 1237431.777 | E182: 10451.68009 | F182: 12116.51948 | G182: =IF(D182="","",L181*Resumen!$L$86/1000) -> 544.4699819 | H182: 777.63 | I182: =IF($E$16=$V$1,0,IF(D182="","",Amortización!$AE$14*1.16)) -> 290 | J182: =IFERROR(IF(OR($E$11=Resumen!$N$6,$E$8=Resumen!$N$6),Amortización!F182*0.16,0),"") -> 0 | K182: 24180.29956 | L182: 1226980.097 | N182: 0 | Q182: =IF(OR(L181=0,L181=""),"",IF(E182>=D182,0,$E$17*10%)) -> 0 | R182: 0.1175 | T182: 162 | U182: 24033.04025 | V182: 24033.04025 | X182: 1.277216123 | Y182: 0 | AB182: 777.63 | AG182: 0 | AH182: 0 | AI182: 0 | AV182: 162 | AW182: 505708.6874 | AX182: 4476.705021 | AY182: 4403.879819 | AZ182: 0 | BA182: 0 | BB182: 421.4239061 | BC182: =IFERROR(IF(OR($E$11=Resumen!$N$6,$E$8=Resumen!$N$6),Amortización!AY182*0.16,0),"") -> 0 | BD182: 9302.008747 | BE182: 501231.9823 | BF182: 0 | BH182: 0.1045 | BJ182: 162 | BK182: 9243.881311
C183: 163 | D183: 1226980.097 | E183: 10554.01946 | F183: 12014.18012 | G183: =IF(D183="","",L182*Resumen!$L$86/1000) -> 539.8712426 | H183: 777.63 | I183: =IF($E$16=$V$1,0,IF(D183="","",Amortización!$AE$14*1.16)) -> 290 | J183: =IFERROR(IF(OR($E$11=Resumen!$N$6,$E$8=Resumen!$N$6),Amortización!F183*0.16,0),"") -> 0 | K183: 24175.70082 | L183: 1216426.077 | N183: 0 | R183: 0.1175 | T183: 163 | U183: 24028.44151 | V183: 24028.44151 | X183: 1.277216123 | Y183: 0 | AB183: 777.63 | AG183: 0 | AH183: 0 | AI183: 0 | AV183: 163 | AW183: 501231.9823 | AX183: 4515.689661 | AY183: 4364.89518 | AZ183: 0 | BA183: 0 | BB183: 417.6933186 | BC183: =IFERROR(IF(OR($E$11=Resumen!$N$6,$E$8=Resumen!$N$6),Amortización!AY183*0.16,0),"") -> 0 | BD183: 9298.278159 | BE183: 496716.2927 | BF183: 0 | BH183: 0.1045 | BJ183: 163 | BK183: 9240.665287
C184: 164 | D184: 1216426.077 | E184: 10657.3609 | F184: 11910.83868 | G184: =IF(D184="","",L183*Resumen!$L$86/1000) -> 535.2274741 | H184: 777.63 | I184: =IF($E$16=$V$1,0,IF(D184="","",Amortización!$AE$14*1.16)) -> 290 | J184: =IFERROR(IF(OR($E$11=Resumen!$N$6,$E$8=Resumen!$N$6),Amortización!F184*0.16,0),"") -> 0 | K184: 24171.05705 | L184: 1205768.717 | N184: 0 | Q184: =IF(OR(L183=0,L183=""),"",IF(E184>=D184,0,$E$17*10%)) -> 0 | R184: 0.1175 | T184: 164 | U184: 24023.79774 | V184: 24023.79774 | X184: 1.277216123 | Y184: 0 | AB184: 777.63 | AG184: 0 | AH184: 0 | AI184: 0 | AV184: 164 | AW184: 496716.2927 | AX184: 4555.013792 | AY184: 4325.571049 | AZ184: 0 | BA184: 0 | BB184: 413.9302439 | BC184: =IFERROR(IF(OR($E$11=Resumen!$N$6,$E$8=Resumen!$N$6),Amortización!AY184*0.16,0),"") -> 0 | BD184: 9294.515084 | BE184: 492161.2789 | BF184: 0 | BH184: 0.1045 | BJ184: 164 | BK184: 9237.421258
C185: 165 | D185: 1205768.717 | E185: 10761.71423 | F185: 11806.48535 | G185: =IF(D185="","",L184*Resumen!$L$86/1000) -> 530.5382353 | H185: 777.63 | I185: =IF($E$16=$V$1,0,IF(D185="","",Amortización!$AE$14*1.16)) -> 290 | J185: =IFERROR(IF(OR($E$11=Resumen!$N$6,$E$8=Resumen!$N$6),Amortización!F185*0.16,0),"") -> 0 | K185: 24166.36781 | L185: 1195007.002 | N185: 0 | R185: 0.1175 | T185: 165 | U185: 24019.1085 | V185: 24019.1085 | X185: 1.277216123 | Y185: 0 | AB185: 777.63 | AG185: 0 | AH185: 0 | AI185: 0 | AV185: 165 | AW185: 492161.2789 | AX185: 4594.68037 | AY185: 4285.90447 | AZ185: 0 | BA185: 0 | BB185: 410.1343991 | BC185: =IFERROR(IF(OR($E$11=Resumen!$N$6,$E$8=Resumen!$N$6),Amortización!AY185*0.16,0),"") -> 0 | BD185: 9290.719239 | BE185: 487566.5985 | BF185: 0 | BH185: 0.1045 | BJ185: 165 | BK185: 9234.148977
C186: 166 | D186: 1195007.002 | E186: 10867.08935 | F186: 11701.11023 | G186: =IF(D186="","",L185*Resumen!$L$86/1000) -> 525.803081 | H186: 777.63 | I186: =IF($E$16=$V$1,0,IF(D186="","",Amortización!$AE$14*1.16)) -> 290 | J186: =IFERROR(IF(OR($E$11=Resumen!$N$6,$E$8=Resumen!$N$6),Amortización!F186*0.16,0),"") -> 0 | K186: 24161.63266 | L186: 1184139.913 | N186: 0 | Q186: =IF(OR(L185=0,L185=""),"",IF(E186>=D186,0,$E$17*10%)) -> 0 | R186: 0.1175 | T186: 166 | U186: 24014.37335 | V186: 24014.37335 | X186: 1.277216123 | Y186: 0 | AB186: 777.63 | AG186: 0 | AH186: 0 | AI186: 0 | AV186: 166 | AW186: 487566.5985 | AX186: 4634.692378 | AY186: 4245.892462 | AZ186: 0 | BA186: 0 | BB186: 406.3054988 | BC186: =IFERROR(IF(OR($E$11=Resumen!$N$6,$E$8=Resumen!$N$6),Amortización!AY186*0.16,0),"") -> 0 | BD186: 9286.890339 | BE186: 482931.9061 | BF186: 0 | BH186: 0.1045 | BJ186: 166 | BK186: 9230.848201
C187: 167 | D187: 1184139.913 | E187: 10973.49626 | F187: 11594.70331 | G187: =IF(D187="","",L186*Resumen!$L$86/1000) -> 521.0215617 | H187: 777.63 | I187: =IF($E$16=$V$1,0,IF(D187="","",Amortización!$AE$14*1.16)) -> 290 | J187: =IFERROR(IF(OR($E$11=Resumen!$N$6,$E$8=Resumen!$N$6),Amortización!F187*0.16,0),"") -> 0 | K187: 24156.85114 | L187: 1173166.417 | N187: 0 | R187: 0.1175 | T187: 167 | U187: 24009.59183 | V187: 24009.59183 | X187: 1.277216123 | Y187: 0 | AB187: 777.63 | AG187: 0 | AH187: 0 | AI187: 0 | AV187: 167 | AW187: 482931.9061 | AX187: 4675.052824 | AY187: 4205.532016 | AZ187: 0 | BA187: 0 | BB187: 402.4432551 | BC187: =IFERROR(IF(OR($E$11=Resumen!$N$6,$E$8=Resumen!$N$6),Amortización!AY187*0.16,0),"") -> 0 | BD187: 9283.028095 | BE187: 478256.8533 | BF187: 0 | BH187: 0.1045 | BJ187: 167 | BK187: 9227.518681
C188: 168 | D188: 1173166.417 | E188: 11080.94508 | F188: 11487.2545 | G188: =IF(D188="","",L187*Resumen!$L$86/1000) -> 516.1932234 | H188: 777.63 | I188: =IF($E$16=$V$1,0,IF(D188="","",Amortización!$AE$14*1.16)) -> 290 | J188: =IFERROR(IF(OR($E$11=Resumen!$N$6,$E$8=Resumen!$N$6),Amortización!F188*0.16,0),"") -> 0 | K188: 24152.0228 | L188: 1162085.472 | N188: 0 | Q188: =IF(OR(L187=0,L187=""),"",IF(E188>=D188,0,$E$17*10%)) -> 0 | R188: 0.1175 | T188: 168 | U188: 24004.76349 | V188: 24004.76349 | X188: 1.277216123 | Y188: 0 | AB188: 777.63 | AG188: 0 | AH188: 0 | AI188: 0 | AV188: 168 | AW188: 478256.8533 | AX188: 4715.764743 | AY188: 4164.820098 | AZ188: 0 | BA188: 0 | BB188: 398.5473778 | BC188: =IFERROR(IF(OR($E$11=Resumen!$N$6,$E$8=Resumen!$N$6),Amortización!AY188*0.16,0),"") -> 0 | BD188: 9279.132218 | BE188: 473541.0886 | BF188: 0 | BH188: 0.1045 | BJ188: 168 | BK188: 9224.160166
C189: 169 | D189: 1162085.472 | E189: 11189.446 | F189: 11378.75358 | G189: =IF(D189="","",L188*Resumen!$L$86/1000) -> 511.3176075 | H189: 777.63 | I189: =IF($E$16=$V$1,0,IF(D189="","",Amortización!$AE$14*1.16)) -> 290 | J189: =IFERROR(IF(OR($E$11=Resumen!$N$6,$E$8=Resumen!$N$6),Amortización!F189*0.16,0),"") -> 0 | K189: 24147.14718 | L189: 1150896.026 | N189: 0 | R189: 0.1175 | T189: 169 | U189: 23999.88787 | V189: 23999.88787 | X189: 1.301483229 | Y189: 0 | AB189: 777.63 | AG189: 0 | AH189: 0 | AI189: 0 | AV189: 169 | AW189: 473541.0886 | AX189: 4756.831194 | AY189: 4123.753646 | AZ189: 0 | BA189: 0 | BB189: 394.6175738 | BC189: =IFERROR(IF(OR($E$11=Resumen!$N$6,$E$8=Resumen!$N$6),Amortización!AY189*0.16,0),"") -> 0 | BD189: 9275.202414 | BE189: 468784.2574 | BF189: 0 | BH189: 0.1045 | BJ189: 169 | BK189: 9220.772404
C190: 170 | D190: 1150896.026 | E190: 11299.00933 | F190: 11269.19025 | G190: =IF(D190="","",L189*Resumen!$L$86/1000) -> 506.3942513 | H190: 777.63 | I190: =IF($E$16=$V$1,0,IF(D190="","",Amortización!$AE$14*1.16)) -> 290 | J190: =IFERROR(IF(OR($E$11=Resumen!$N$6,$E$8=Resumen!$N$6),Amortización!F190*0.16,0),"") -> 0 | K190: 24142.22383 | L190: 1139597.016 | N190: 0 | Q190: =IF(OR(L189=0,L189=""),"",IF(E190>=D190,0,$E$17*10%)) -> 0 | R190: 0.1175 | T190: 170 | U190: 23994.96452 | V190: 23994.96452 | X190: 1.301483229 | Y190: 0 | AB190: 777.63 | AG190: 0 | AH190: 0 | AI190: 0 | AV190: 170 | AW190: 468784.2574 | AX190: 4798.255266 | AY190: 4082.329575 | AZ190: 0 | BA190: 0 | BB190: 390.6535478 | BC190: =IFERROR(IF(OR($E$11=Resumen!$N$6,$E$8=Resumen!$N$6),Amortización!AY190*0.16,0),"") -> 0 | BD190: 9271.238388 | BE190: 463986.0021 | BF190: 0 | BH190: 0.1045 | BJ190: 170 | BK190: 9217.35514
C191: 171 | D191: 1139597.016 | E191: 11409.64546 | F191: 11158.55412 | G191: =IF(D191="","",L190*Resumen!$L$86/1000) -> 501.4226872 | H191: 777.63 | I191: =IF($E$16=$V$1,0,IF(D191="","",Amortización!$AE$14*1.16)) -> 290 | J191: =IFERROR(IF(OR($E$11=Resumen!$N$6,$E$8=Resumen!$N$6),Amortización!F191*0.16,0),"") -> 0 | K191: 24137.25226 | L191: 1128187.371 | N191: 0 | R191: 0.1175 | T191: 171 | U191: 23989.99295 | V191: 23989.99295 | X191: 1.301483229 | Y191: 0 | AB191: 777.63 | AG191: 0 | AH191: 0 | AI191: 0 | AV191: 171 | AW191: 463986.0021 | AX191: 4840.040072 | AY191: 4040.544768 | AZ191: 0 | BA191: 0 | BB191: 386.6550018 | BC191: =IFERROR(IF(OR($E$11=Resumen!$N$6,$E$8=Resumen!$N$6),Amortización!AY191*0.16,0),"") -> 0 | BD191: 9267.239842 | BE191: 459145.962 | BF191: 0 | BH191: 0.1045 | BJ191: 171 | BK191: 9213.908118
C192: 172 | D192: 1128187.371 | E192: 11521.3649 | F192: 11046.83467 | G192: =IF(D192="","",L191*Resumen!$L$86/1000) -> 496.4024432 | H192: 777.63 | I192: =IF($E$16=$V$1,0,IF(D192="","",Amortización!$AE$14*1.16)) -> 290 | J192: =IFERROR(IF(OR($E$11=Resumen!$N$6,$E$8=Resumen!$N$6),Amortización!F192*0.16,0),"") -> 0 | K192: 24132.23202 | L192: 1116666.006 | N192: 0 | Q192: =IF(OR(L191=0,L191=""),"",IF(E192>=D192,0,$E$17*10%)) -> 0 | R192: 0.1175 | T192: 172 | U192: 23984.97271 | V192: 23984.97271 | X192: 1.301483229 | Y192: 0 | AB192: 777.63 | AG192: 0 | AH192: 0 | AI192: 0 | AV192: 172 | AW192: 459145.962 | AX192: 4882.188754 | AY192: 3998.396086 | AZ192: 0 | BA192: 0 | BB192: 382.621635 | BC192: =IFERROR(IF(OR($E$11=Resumen!$N$6,$E$8=Resumen!$N$6),Amortización!AY192*0.16,0),"") -> 0 | BD192: 9263.206475 | BE192: 454263.7733 | BF192: 0 | BH192: 0.1045 | BJ192: 172 | BK192: 9210.431077
C193: 173 | D193: 1116666.006 | E193: 11634.17827 | F193: 10934.02131 | G193: =IF(D193="","",L192*Resumen!$L$86/1000) -> 491.3330426 | H193: 777.63 | I193: =IF($E$16=$V$1,0,IF(D193="","",Amortización!$AE$14*1.16)) -> 290 | J193: =IFERROR(IF(OR($E$11=Resumen!$N$6,$E$8=Resumen!$N$6),Amortización!F193*0.16,0),"") -> 0 | K193: 24127.16262 | L193: 1105031.828 | N193: 0 | R193: 0.1175 | T193: 173 | U193: 23979.90331 | V193: 23979.90331 | X193: 1.301483229 | Y193: 0 | AB193: 777.63 | AG193: 0 | AH193: 0 | AI193: 0 | AV193: 173 | AW193: 454263.7733 | AX193: 4924.704481 | AY193: 3955.880359 | AZ193: 0 | BA193: 0 | BB193: 378.5531444 | BC193: =IFERROR(IF(OR($E$11=Resumen!$N$6,$E$8=Resumen!$N$6),Amortización!AY193*0.16,0),"") -> 0 | BD193: 9259.137985 | BE193: 449339.0688 | BF193: 0 | BH193: 0.1045 | BJ193: 173 | BK193: 9206.923758
C194: 174 | D194: 1105031.828 | E194: 11748.09626 | F194: 10820.10331 | G194: =IF(D194="","",L193*Resumen!$L$86/1000) -> 486.2140042 | H194: 777.63 | I194: =IF($E$16=$V$1,0,IF(D194="","",Amortización!$AE$14*1.16)) -> 290 | J194: =IFERROR(IF(OR($E$11=Resumen!$N$6,$E$8=Resumen!$N$6),Amortización!F194*0.16,0),"") -> 0 | K194: 24122.04358 | L194: 1093283.731 | N194: 0 | Q194: =IF(OR(L193=0,L193=""),"",IF(E194>=D194,0,$E$17*10%)) -> 0 | R194: 0.1175 | T194: 174 | U194: 23974.78427 | V194: 23974.78427 | X194: 1.301483229 | Y194: 0 | AB194: 777.63 | AG194: 0 | AH194: 0 | AI194: 0 | AV194: 174 | AW194: 449339.0688 | AX194: 4967.590449 | AY194: 3912.994391 | AZ194: 0 | BA194: 0 | BB194: 374.449224 | BC194: =IFERROR(IF(OR($E$11=Resumen!$N$6,$E$8=Resumen!$N$6),Amortización!AY194*0.16,0),"") -> 0 | BD194: 9255.034064 | BE194: 444371.4784 | BF194: 0 | BH194: 0.1045 | BJ194: 174 | BK194: 9203.385896
C195: 175 | D195: 1093283.731 | E195: 11863.12971 | F195: 10705.06987 | G195: =IF(D195="","",L194*Resumen!$L$86/1000) -> 481.0448418 | H195: 777.63 | I195: =IF($E$16=$V$1,0,IF(D195="","",Amortización!$AE$14*1.16)) -> 290 | J195: =IFERROR(IF(OR($E$11=Resumen!$N$6,$E$8=Resumen!$N$6),Amortización!F195*0.16,0),"") -> 0 | K195: 24116.87442 | L195: 1081420.602 | N195: 0 | R195: 0.1175 | T195: 175 | U195: 23969.61511 | V195: 23969.61511 | X195: 1.301483229 | Y195: 0 | AB195: 777.63 | AG195: 0 | AH195: 0 | AI195: 0 | AV195: 175 | AW195: 444371.4784 | AX195: 5010.849883 | AY195: 3869.734957 | AZ195: 0 | BA195: 0 | BB195: 370.3095653 | BC195: =IFERROR(IF(OR($E$11=Resumen!$N$6,$E$8=Resumen!$N$6),Amortización!AY195*0.16,0),"") -> 0 | BD195: 9250.894406 | BE195: 439360.6285 | BF195: 0 | BH195: 0.1045 | BJ195: 175 | BK195: 9199.817224
C196: 176 | D196: 1081420.602 | E196: 11979.28952 | F196: 10588.91006 | G196: =IF(D196="","",L195*Resumen!$L$86/1000) -> 475.8250648 | H196: 777.63 | I196: =IF($E$16=$V$1,0,IF(D196="","",Amortización!$AE$14*1.16)) -> 290 | J196: =IFERROR(IF(OR($E$11=Resumen!$N$6,$E$8=Resumen!$N$6),Amortización!F196*0.16,0),"") -> 0 | K196: 24111.65464 | L196: 1069441.312 | N196: 0 | Q196: =IF(OR(L195=0,L195=""),"",IF(E196>=D196,0,$E$17*10%)) -> 0 | R196: 0.1175 | T196: 176 | U196: 23964.39533 | V196: 23964.39533 | X196: 1.301483229 | Y196: 0 | AB196: 777.63 | AG196: 0 | AH196: 0 | AI196: 0 | AV196: 176 | AW196: 439360.6285 | AX196: 5054.486034 | AY196: 3826.098806 | AZ196: 0 | BA196: 0 | BB196: 366.1338571 | BC196: =IFERROR(IF(OR($E$11=Resumen!$N$6,$E$8=Resumen!$N$6),Amortización!AY196*0.16,0),"") -> 0 | BD196: 9246.718697 | BE196: 434306.1424 | BF196: 0 | BH196: 0.1045 | BJ196: 176 | BK196: 9196.217476
C197: 177 | D197: 1069441.312 | E197: 12096.58673 | F197: 10471.61285 | G197: =IF(D197="","",L196*Resumen!$L$86/1000) -> 470.5541774 | H197: 777.63 | I197: =IF($E$16=$V$1,0,IF(D197="","",Amortización!$AE$14*1.16)) -> 290 | J197: =IFERROR(IF(OR($E$11=Resumen!$N$6,$E$8=Resumen!$N$6),Amortización!F197*0.16,0),"") -> 0 | K197: 24106.38375 | L197: 1057344.725 | N197: 0 | R197: 0.1175 | T197: 177 | U197: 23959.12444 | V197: 23959.12444 | X197: 1.301483229 | Y197: 0 | AB197: 777.63 | AG197: 0 | AH197: 0 | AI197: 0 | AV197: 177 | AW197: 434306.1424 | AX197: 5098.502183 | AY197: 3782.082657 | AZ197: 0 | BA197: 0 | BB197: 361.9217854 | BC197: =IFERROR(IF(OR($E$11=Resumen!$N$6,$E$8=Resumen!$N$6),Amortización!AY197*0.16,0),"") -> 0 | BD197: 9242.506626 | BE197: 429207.6403 | BF197: 0 | BH197: 0.1045 | BJ197: 177 | BK197: 9192.586379
C198: 178 | D198: 1057344.725 | E198: 12215.03247 | F198: 10353.1671 | G198: =IF(D198="","",L197*Resumen!$L$86/1000) -> 465.2316792 | H198: 777.63 | I198: =IF($E$16=$V$1,0,IF(D198="","",Amortización!$AE$14*1.16)) -> 290 | J198: =IFERROR(IF(OR($E$11=Resumen!$N$6,$E$8=Resumen!$N$6),Amortización!F198*0.16,0),"") -> 0 | K198: 24101.06126 | L198: 1045129.693 | N198: 0 | Q198: =IF(OR(L197=0,L197=""),"",IF(E198>=D198,0,$E$17*10%)) -> 0 | R198: 0.1175 | T198: 178 | U198: 23953.80195 | V198: 23953.80195 | X198: 1.301483229 | Y198: 0 | AB198: 777.63 | AG198: 0 | AH198: 0 | AI198: 0 | AV198: 178 | AW198: 429207.6403 | AX198: 5142.90164 | AY198: 3737.683201 | AZ198: 0 | BA198: 0 | BB198: 357.6730336 | BC198: =IFERROR(IF(OR($E$11=Resumen!$N$6,$E$8=Resumen!$N$6),Amortización!AY198*0.16,0),"") -> 0 | BD198: 9238.257874 | BE198: 424064.7386 | BF198: 0 | BH198: 0.1045 | BJ198: 178 | BK198: 9188.923662
C199: 179 | D199: 1045129.693 | E199: 12334.638 | F199: 10233.56158 | G199: =IF(D199="","",L198*Resumen!$L$86/1000) -> 459.8570649 | H199: 777.63 | I199: =IF($E$16=$V$1,0,IF(D199="","",Amortización!$AE$14*1.16)) -> 290 | J199: =IFERROR(IF(OR($E$11=Resumen!$N$6,$E$8=Resumen!$N$6),Amortización!F199*0.16,0),"") -> 0 | K199: 24095.68664 | L199: 1032795.055 | N199: 0 | R199: 0.1175 | T199: 179 | U199: 23948.42733 | V199: 23948.42733 | X199: 1.301483229 | Y199: 0 | AB199: 777.63 | AG199: 0 | AH199: 0 | AI199: 0 | AV199: 179 | AW199: 424064.7386 | AX199: 5187.687742 | AY199: 3692.897099 | AZ199: 0 | BA199: 0 | BB199: 353.3872822 | BC199: =IFERROR(IF(OR($E$11=Resumen!$N$6,$E$8=Resumen!$N$6),Amortización!AY199*0.16,0),"") -> 0 | BD199: 9233.972123 | BE199: 418877.0509 | BF199: 0 | BH199: 0.1045 | BJ199: 179 | BK199: 9185.229049
C200: 180 | D200: 1032795.055 | E200: 12455.41466 | F200: 10112.78491 | G200: =IF(D200="","",L199*Resumen!$L$86/1000) -> 454.4298242 | H200: 777.63 | I200: =IF($E$16=$V$1,0,IF(D200="","",Amortización!$AE$14*1.16)) -> 290 | J200: =IFERROR(IF(OR($E$11=Resumen!$N$6,$E$8=Resumen!$N$6),Amortización!F200*0.16,0),"") -> 0 | K200: 24090.2594 | L200: 1020339.64 | N200: 0 | Q200: =IF(OR(L199=0,L199=""),"",IF(E200>=D200,0,$E$17*10%)) -> 0 | R200: 0.1175 | T200: 180 | U200: 23943.00009 | V200: 23943.00009 | X200: 1.301483229 | Y200: 0 | AB200: 777.63 | AG200: 0 | AH200: 0 | AI200: 0 | AV200: 180 | AW200: 418877.0509 | AX200: 5232.863856 | AY200: 3647.720985 | AZ200: 0 | BA200: 0 | BB200: 349.0642091 | BC200: =IFERROR(IF(OR($E$11=Resumen!$N$6,$E$8=Resumen!$N$6),Amortización!AY200*0.16,0),"") -> 0 | BD200: 9229.649049 | BE200: 413644.187 | BF200: 0 | BH200: 0.1045 | BJ200: 180 | BK200: 9181.502262
C201: 181 | D201: 1020339.64 | E201: 12577.37393 | F201: 9990.825645 | G201: =IF(D201="","",L200*Resumen!$L$86/1000) -> 448.9494417 | H201: 777.63 | I201: =IF($E$16=$V$1,0,IF(D201="","",Amortización!$AE$14*1.16)) -> 290 | J201: =IFERROR(IF(OR($E$11=Resumen!$N$6,$E$8=Resumen!$N$6),Amortización!F201*0.16,0),"") -> 0 | K201: 24084.77902 | L201: 1007762.266 | N201: 0 | R201: 0.1175 | T201: 181 | U201: 23937.51971 | V201: 23937.51971 | X201: 1.32621141 | Y201: 0 | AB201: 777.63 | AG201: 0 | AH201: 0 | AI201: 0 | AV201: 181 | AW201: 413644.187 | AX201: 5278.433378 | AY201: 3602.151462 | AZ201: 0 | BA201: 0 | BB201: 344.7034892 | BC201: =IFERROR(IF(OR($E$11=Resumen!$N$6,$E$8=Resumen!$N$6),Amortización!AY201*0.16,0),"") -> 0 | BD201: 9225.28833 | BE201: 408365.7536 | BF201: 0 | BH201: 0.1045 | BJ201: 181 | BK201: 9177.743021
... 126 more rows

Sheet Oferta Vinculante
C2: Oferta Vinculante
D5: Oferta Pago Fijo | F5: Oferta Pago Bajo
